Workbook

Sheet Fiche organisateur N1
C8: TRADITIONAL STYLE
C10: Organisateur ==> Fiche N°1
D13: Date : | G13: [ JJ.MM.AAAA ]
D14: ORGANISATION :
D15: Ville | T15: 1
D16: Contact : | T16: 2
T17: 3 | V17: 0
D18: E-mail :
D19: Tel
D20: adresse évènement
D21: Juge
D26: IHT | E26: HWT

Sheet Fiche organisateur N2
D4: TRADITIONAL STYLE | L4: ="IHT" -> IHT | M4: ='Fiche organisateur N1'!$E$26 -> HWT | Q4: Secrétariat : vous pouvez faire vos remarques dans ce cadre
E5: Date : | F5: ='Rapport de concours '!H5 -> 0
E6: ORGANISATION : | F6: ='Rapport de concours '!H6 -> 0 | Q6: Note : sur cette feuille, vous pouvez ajuster les largeurs de colonnes…
E7: Ville | F7: ='Rapport de concours '!H7 -> 0
E8: Contact : | F8: ='Rapport de concours '!H8 -> 0 | G8: EVENTS DATE | H8: ='Fiche organisateur N1'!$E$13 -> 0 | K8: -
F9: ='Rapport de concours '!H9 -> 0
E10: E-mail : | F10: ='Rapport de concours '!H10 -> 0
E11: Tel | F11: ='Rapport de concours '!H11 -> 0
E12: adresse évènement | F12: ='Rapport de concours '!H12 -> 0
B14: Organisateur ==> Fiche N°2
B16: START N° | C16: Propriétaires | D16: Conducteurs | E16: Noms des Chiens | F16: Affixe | G16: Races + Sexe | H16: FCI Code | I16: Livre National | J16: PEDIGREE N° | K16: FAPAC | L16: Identifiant | M16: Carnet de travail
D37: NE PAS UTILISER CETTE FICHE COMME RAPPORT DE CONCOURS !

Sheet Rapport de concours
K4: IHT | L4: ='Fiche organisateur N1'!$E$26 -> HWT
G5: Date : | H5: ='Fiche organisateur N1'!E14 -> 0 | K5: Date | L5: ='Fiche organisateur N1'!$E$13 -> 0
G6: ORGANISATION : | H6: ='Fiche organisateur N1'!E15 -> 0
G7: Ville | H7: ='Fiche organisateur N1'!E16 -> 0
G8: Contact : | H8: ='Fiche organisateur N1'!E17 -> 0
H9: ='Fiche organisateur N1'!E18 -> 0
G10: E-mail : | H10: ='Fiche organisateur N1'!E19 -> 0
G11: Tel | H11: ='Fiche organisateur N1'!E20 -> 0
G12: adresse évènement | H12: ='Fiche organisateur N1'!E21 -> 0
B14: RAPPORT DE CONCOURS
C16: Propriétaires | D16: Conducteurs | E16: Noms des Chiens | F16: Affixe | G16: Races + Sexe | H16: N° FAPAC | I16: Identifiants | J16: FCI CODE | K16: POINTS | L16: Evaluation1 | M16: Evaluation2 | N16: Classement | P16: ='Fiche organisateur N2'!I16 -> Livre National | Q16: ='Fiche organisateur N2'!J16 -> PEDIGREE N°
B17: =IF(N17="X","-",N17) -> - | C17: ='Fiche organisateur N2'!C17 -> 0 | D17: ='Fiche organisateur N2'!D17 -> 0 | E17: ='Fiche organisateur N2'!E17 -> 0 | F17: ='Fiche organisateur N2'!F17 -> 0 | G17: ='Fiche organisateur N2'!G17 -> 0 | H17: ='Fiche organisateur N2'!K22 -> 0 | I17: ='Fiche organisateur N2'!L17 -> 0 | J17: ='Fiche organisateur N2'!H17 -> 0 | K17: ='01'!$B$38 -> - | L17: ='01'!$F$38 -> - | M17: ='01'!$B$39 -> . | N17: =IF(K17="-","X",IF(K17=0,"N.C.",_xlfn.RANK.EQ(K17,$K$17:$K$34,0))) -> X | O17: ='01'!$F$38 -> - | P17: ='Fiche organisateur N2'!I17 -> 0 | Q17: ='Fiche organisateur N2'!J17 -> 0
B18: - | C18: ='Fiche organisateur N2'!C18 -> 0 | D18: ='Fiche organisateur N2'!D18 -> 0 | E18: ='Fiche organisateur N2'!E18 -> 0 | F18: ='Fiche organisateur N2'!F18 -> 0 | G18: ='Fiche organisateur N2'!G18 -> 0 | H18: ='Fiche organisateur N2'!K17 -> 0 | I18: ='Fiche organisateur N2'!L18 -> 0 | J18: ='Fiche organisateur N2'!H18 -> 0 | K18: ='02'!$B$38 -> - | L18: ='01'!$F$38 -> - | M18: ='01'!$B$39 -> . | N18: X | O18: ='02'!$F$38 -> - | P18: ='Fiche organisateur N2'!I18 -> 0 | Q18: ='Fiche organisateur N2'!J18 -> 0
B19: - | C19: ='Fiche organisateur N2'!C19 -> 0 | D19: ='Fiche organisateur N2'!D19 -> 0 | E19: ='Fiche organisateur N2'!E19 -> 0 | F19: ='Fiche organisateur N2'!F19 -> 0 | G19: ='Fiche organisateur N2'!G19 -> 0 | H19: ='Fiche organisateur N2'!K18 -> 0 | I19: ='Fiche organisateur N2'!L19 -> 0 | J19: ='Fiche organisateur N2'!H19 -> 0 | K19: ='03'!$B$38 -> - | L19: ='01'!$F$38 -> - | M19: ='01'!$B$39 -> . | N19: X | O19: ='03'!$F$38 -> - | P19: ='Fiche organisateur N2'!I19 -> 0 | Q19: ='Fiche organisateur N2'!J19 -> 0
B20: - | C20: ='Fiche organisateur N2'!C20 -> 0 | D20: ='Fiche organisateur N2'!D20 -> 0 | E20: ='Fiche organisateur N2'!E20 -> 0 | F20: ='Fiche organisateur N2'!F20 -> 0 | G20: ='Fiche organisateur N2'!G20 -> 0 | H20: ='Fiche organisateur N2'!K19 -> 0 | I20: ='Fiche organisateur N2'!L20 -> 0 | J20: ='Fiche organisateur N2'!H20 -> 0 | K20: ='04'!$B$38 -> - | L20: ='01'!$F$38 -> - | M20: ='01'!$B$39 -> . | N20: X | O20: ='04'!$F$38 -> - | P20: ='Fiche organisateur N2'!I20 -> 0 | Q20: ='Fiche organisateur N2'!J20 -> 0 | S20: ='01'!$F$38 -> - | Z20: IHT1 | AA20: 100 | AB20: =AA20*89.999/100 -> 89.999 | AC20: =AA20*79.999/100 -> 79.999 | AD20: =AA20*69.999/100 -> 69.999 | AE20: =AA20*59.999/100 -> 59.999 | AF20: 0.1
B21: - | C21: ='Fiche organisateur N2'!C21 -> 0 | D21: ='Fiche organisateur N2'!D21 -> 0 | E21: ='Fiche organisateur N2'!E21 -> 0 | F21: ='Fiche organisateur N2'!F21 -> 0 | G21: ='Fiche organisateur N2'!G21 -> 0 | H21: ='Fiche organisateur N2'!K20 -> 0 | I21: ='Fiche organisateur N2'!L21 -> 0 | J21: ='Fiche organisateur N2'!H21 -> 0 | K21: ='05'!$B$38 -> - | L21: ='01'!$F$38 -> - | M21: ='01'!$B$39 -> . | N21: X | O21: ='05'!$F$38 -> - | P21: ='Fiche organisateur N2'!I21 -> 0 | Q21: ='Fiche organisateur N2'!J21 -> 0 | Z21: iIHT2 | AA21: 120 | AB21: =AA21*89.999/100 -> 107.9988 | AC21: =AA21*79.999/100 -> 95.9988 | AD21: =AA21*69.999/100 -> 83.9988 | AE21: =AA21*59.999/100 -> 71.9988 | AF21: 0.1
B22: - | C22: ='Fiche organisateur N2'!C22 -> 0 | D22: ='Fiche organisateur N2'!D22 -> 0 | E22: ='Fiche organisateur N2'!E22 -> 0 | F22: ='Fiche organisateur N2'!F22 -> 0 | G22: ='Fiche organisateur N2'!G22 -> 0 | H22: ='Fiche organisateur N2'!K21 -> 0 | I22: ='Fiche organisateur N2'!L22 -> 0 | J22: ='Fiche organisateur N2'!H22 -> 0 | K22: ='06'!$B$38 -> - | L22: ='01'!$F$38 -> - | M22: ='01'!$B$39 -> . | N22: X | O22: ='06'!$F$38 -> - | P22: ='Fiche organisateur N2'!I22 -> 0 | Q22: ='Fiche organisateur N2'!J22 -> 0 | Z22: IHT3 | AA22: 150 | AB22: 134.9985 | AC22: =AA22*79.999/100 -> 119.9985 | AD22: =AA22*69.999/100 -> 104.9985 | AE22: =AA22*59.999/100 -> 89.9985 | AF22: 0.1
B23: - | C23: ='Fiche organisateur N2'!C23 -> 0 | D23: ='Fiche organisateur N2'!D23 -> 0 | E23: ='Fiche organisateur N2'!E23 -> 0 | F23: ='Fiche organisateur N2'!F23 -> 0 | G23: ='Fiche organisateur N2'!G23 -> 0 | H23: ='Fiche organisateur N2'!K23 -> 0 | I23: ='Fiche organisateur N2'!L23 -> 0 | J23: ='Fiche organisateur N2'!H23 -> 0 | K23: ='07'!$B$38 -> - | L23: ='01'!$F$38 -> - | M23: ='01'!$B$39 -> . | N23: X | O23: ='07'!$F$38 -> - | P23: ='Fiche organisateur N2'!I23 -> 0 | Q23: ='Fiche organisateur N2'!J23 -> 0
B24: - | C24: ='Fiche organisateur N2'!C24 -> 0 | D24: ='Fiche organisateur N2'!D24 -> 0 | E24: ='Fiche organisateur N2'!E24 -> 0 | F24: ='Fiche organisateur N2'!F24 -> 0 | G24: ='Fiche organisateur N2'!G24 -> 0 | H24: ='Fiche organisateur N2'!K24 -> 0 | I24: ='Fiche organisateur N2'!L24 -> 0 | J24: ='Fiche organisateur N2'!H24 -> 0 | K24: ='08'!$B$38 -> - | L24: ='01'!$F$38 -> - | M24: ='01'!$B$39 -> . | N24: X | O24: ='08'!$F$38 -> - | P24: ='Fiche organisateur N2'!I24 -> 0 | Q24: ='Fiche organisateur N2'!J24 -> 0
B25: - | C25: ='Fiche organisateur N2'!C25 -> 0 | D25: ='Fiche organisateur N2'!D25 -> 0 | E25: ='Fiche organisateur N2'!E25 -> 0 | F25: ='Fiche organisateur N2'!F25 -> 0 | G25: ='Fiche organisateur N2'!G25 -> 0 | H25: ='Fiche organisateur N2'!K25 -> 0 | I25: ='Fiche organisateur N2'!L25 -> 0 | J25: ='Fiche organisateur N2'!H25 -> 0 | K25: ='09'!$B$38 -> - | L25: ='01'!$F$38 -> - | M25: ='01'!$B$39 -> . | N25: X | O25: ='09'!$F$38 -> - | P25: ='Fiche organisateur N2'!I25 -> 0 | Q25: ='Fiche organisateur N2'!J25 -> 0
B26: - | C26: ='Fiche organisateur N2'!C26 -> 0 | D26: ='Fiche organisateur N2'!D26 -> 0 | E26: ='Fiche organisateur N2'!E26 -> 0 | F26: ='Fiche organisateur N2'!F26 -> 0 | G26: ='Fiche organisateur N2'!G26 -> 0 | H26: ='Fiche organisateur N2'!K26 -> 0 | I26: ='Fiche organisateur N2'!L26 -> 0 | J26: ='Fiche organisateur N2'!H26 -> 0 | K26: ='10'!$B$38 -> - | L26: ='01'!$F$38 -> - | M26: ='01'!$B$39 -> . | N26: X | O26: ='10'!$F$38 -> - | P26: ='Fiche organisateur N2'!I26 -> 0 | Q26: ='Fiche organisateur N2'!J26 -> 0
B27: - | C27: ='Fiche organisateur N2'!C27 -> 0 | D27: ='Fiche organisateur N2'!D27 -> 0 | E27: ='Fiche organisateur N2'!E27 -> 0 | F27: ='Fiche organisateur N2'!F27 -> 0 | G27: ='Fiche organisateur N2'!G27 -> 0 | H27: ='Fiche organisateur N2'!K27 -> 0 | I27: ='Fiche organisateur N2'!L27 -> 0 | J27: ='Fiche organisateur N2'!H27 -> 0 | K27: ='11'!$B$38 -> - | L27: ='01'!$F$38 -> - | M27: ='01'!$B$39 -> . | N27: X | O27: ='11'!$F$38 -> - | P27: ='Fiche organisateur N2'!I27 -> 0 | Q27: ='Fiche organisateur N2'!J27 -> 0
B28: - | C28: ='Fiche organisateur N2'!C28 -> 0 | D28: ='Fiche organisateur N2'!D28 -> 0 | E28: ='Fiche organisateur N2'!E28 -> 0 | F28: ='Fiche organisateur N2'!F28 -> 0 | G28: ='Fiche organisateur N2'!G28 -> 0 | H28: ='Fiche organisateur N2'!K28 -> 0 | I28: ='Fiche organisateur N2'!L28 -> 0 | J28: ='Fiche organisateur N2'!H28 -> 0 | K28: ='12'!$B$38 -> - | L28: ='01'!$F$38 -> - | M28: ='01'!$B$39 -> . | N28: X | O28: ='12'!$F$38 -> - | P28: ='Fiche organisateur N2'!I28 -> 0 | Q28: ='Fiche organisateur N2'!J28 -> 0
B29: - | C29: ='Fiche organisateur N2'!C29 -> 0 | D29: ='Fiche organisateur N2'!D29 -> 0 | E29: ='Fiche organisateur N2'!E29 -> 0 | F29: ='Fiche organisateur N2'!F29 -> 0 | G29: ='Fiche organisateur N2'!G29 -> 0 | H29: ='Fiche organisateur N2'!K29 -> 0 | I29: ='Fiche organisateur N2'!L29 -> 0 | J29: ='Fiche organisateur N2'!H29 -> 0 | K29: ='13'!$B$38 -> - | L29: ='01'!$F$38 -> - | M29: ='01'!$B$39 -> . | N29: X | O29: ='13'!$F$38 -> - | P29: ='Fiche organisateur N2'!I29 -> 0 | Q29: ='Fiche organisateur N2'!J29 -> 0
B30: - | C30: ='Fiche organisateur N2'!C30 -> 0 | D30: ='Fiche organisateur N2'!D30 -> 0 | E30: ='Fiche organisateur N2'!E30 -> 0 | F30: ='Fiche organisateur N2'!F30 -> 0 | G30: ='Fiche organisateur N2'!G30 -> 0 | H30: ='Fiche organisateur N2'!K30 -> 0 | I30: ='Fiche organisateur N2'!L30 -> 0 | J30: ='Fiche organisateur N2'!H30 -> 0 | K30: ='14'!$B$38 -> - | L30: ='01'!$F$38 -> - | M30: ='01'!$B$39 -> . | N30: X | O30: ='14'!$F$38 -> - | P30: ='Fiche organisateur N2'!I30 -> 0 | Q30: ='Fiche organisateur N2'!J30 -> 0
B31: - | C31: ='Fiche organisateur N2'!C31 -> 0 | D31: ='Fiche organisateur N2'!D31 -> 0 | E31: ='Fiche organisateur N2'!E31 -> 0 | F31: ='Fiche organisateur N2'!F31 -> 0 | G31: ='Fiche organisateur N2'!G31 -> 0 | H31: ='Fiche organisateur N2'!K31 -> 0 | I31: ='Fiche organisateur N2'!L31 -> 0 | J31: ='Fiche organisateur N2'!H31 -> 0 | K31: ='15'!$B$38 -> - | L31: ='01'!$F$38 -> - | M31: ='01'!$B$39 -> . | N31: X | O31: ='15'!$F$38 -> - | P31: ='Fiche organisateur N2'!I31 -> 0 | Q31: ='Fiche organisateur N2'!J31 -> 0
B32: - | C32: ='Fiche organisateur N2'!C32 -> 0 | D32: ='Fiche organisateur N2'!D32 -> 0 | E32: ='Fiche organisateur N2'!E32 -> 0 | F32: ='Fiche organisateur N2'!F32 -> 0 | G32: ='Fiche organisateur N2'!G32 -> 0 | H32: ='Fiche organisateur N2'!K32 -> 0 | I32: ='Fiche organisateur N2'!L32 -> 0 | J32: ='Fiche organisateur N2'!H32 -> 0 | K32: ='16'!$B$38 -> - | L32: ='01'!$F$38 -> - | M32: ='01'!$B$39 -> . | N32: X | O32: ='16'!$F$38 -> - | P32: ='Fiche organisateur N2'!I32 -> 0 | Q32: ='Fiche organisateur N2'!J32 -> 0
B33: - | C33: ='Fiche organisateur N2'!C33 -> 0 | D33: ='Fiche organisateur N2'!D33 -> 0 | E33: ='Fiche organisateur N2'!E33 -> 0 | F33: ='Fiche organisateur N2'!F33 -> 0 | G33: ='Fiche organisateur N2'!G33 -> 0 | H33: ='Fiche organisateur N2'!K33 -> 0 | I33: ='Fiche organisateur N2'!L33 -> 0 | J33: ='Fiche organisateur N2'!H33 -> 0 | K33: ='17'!$B$38 -> - | L33: ='01'!$F$38 -> - | M33: ='01'!$B$39 -> . | N33: X | O33: ='17'!$F$38 -> - | P33: ='Fiche organisateur N2'!I33 -> 0 | Q33: ='Fiche organisateur N2'!J33 -> 0
B34: - | C34: ='Fiche organisateur N2'!C34 -> 0 | D34: ='Fiche organisateur N2'!D34 -> 0 | E34: ='Fiche organisateur N2'!E34 -> 0 | F34: ='Fiche organisateur N2'!F34 -> 0 | G34: ='Fiche organisateur N2'!G34 -> 0 | H34: ='Fiche organisateur N2'!K34 -> 0 | I34: ='Fiche organisateur N2'!L34 -> 0 | J34: ='Fiche organisateur N2'!H34 -> 0 | K34: ='18'!$B$38 -> - | L34: ='01'!$F$38 -> - | M34: ='01'!$B$39 -> . | N34: X | O34: ='18'!$F$38 -> - | P34: ='Fiche organisateur N2'!I34 -> 0 | Q34: ='Fiche organisateur N2'!J34 -> 0
D37: =COUNTA('Fiche organisateur N2'!E17:E34) -> 0 | E37: (= inscrits)
C38: Nombre de chiens | D38: =COUNT(K17:K34) -> 0 | E38: (=entrés sur le terrain) | F38: 3 | G38: =D38*F38 -> 0 | H38: <==== Montant de la redevance CC (chèque global à l'ordre de CC/ CUNTRP) à joindre au présent rapport
D39: =COUNT(K17:K34)-COUNTIF(K17:K34,"=0") -> 0 | E39: (=ayant un score non nul)
B42: Observations
H44: Judge | I44: ='Fiche organisateur N1'!F53 -> 0 | K44: Signature :

Sheet CODE FCI
B2: NOMS DE RACE FCI (liste à jour au 28 mai 2015) | C2: CODES RACE FCI | D2: NOMS DE RACE EN LANGUE D'ORIGINE
B3: AFFENPINSCHER | C3: 186 | D3: AFFENPINSCHER
B4: AIREDALE TERRIER | C4: 7 | D4: AIREDALE TERRIER
B5: AKITA | C5: 255 | D5: AKITA
B6: AKITA AMERICAIN | C6: 344 | D6: AMERICAN AKITA
B7: ANGLO FRANCAIS DE PETITE VENERIE | C7: 325 | D7: ANGLO FRANCAIS DE PETITE VENERIE
B8: ARIEGEOIS | C8: 20 | D8: ARIEGEOIS
B9: AZAWAKH | C9: 307 | D9: AZAWAKH
B10: BANGKAEW DE THAILANDE | C10: 358 | D10: THAI BANGKAEW DOG
B11: BARBET | C11: 105 | D11: BARBET
B12: BARBU TCHEQUE | C12: 245 | D12: CESKY FOUSEK
B13: BARZOÏ | C13: 193 | D13: RUSSKAYA PSOVAYA BORZAYA
B14: BASENJI | C14: 43 | D14: BASENJI
B15: BASSET ARTESIEN NORMAND | C15: 34 | D15: BASSET ARTESIEN NORMAND
B16: BASSET BLEU DE GASCOGNE | C16: 35 | D16: BASSET BLEU DE GASCOGNE
B17: BASSET DE WESTPHALIE | C17: 100 | D17: WESTFÄLISCHE DACHSBRACKE
B18: BASSET DES ALPES | C18: 254 | D18: ALPENLÄNDISCHE DACHSBRACKE
B19: BASSET FAUVE DE BRETAGNE | C19: 36 | D19: BASSET FAUVE DE BRETAGNE
B20: BASSET HOUND | C20: 163 | D20: BASSET HOUND
B21: BASSET SUEDOIS | C21: 130 | D21: DREVER
B22: BEAGLE | C22: 161 | D22: BEAGLE
B23: BEAGLE HARRIER | C23: 290 | D23: BEAGLE HARRIER
B24: BEARDED COLLIE | C24: 271 | D24: BEARDED COLLIE
B25: BEDLINGTON TERRIER | C25: 9 | D25: BEDLINGTON TERRIER
B26: BERGER ALLEMAND | C26: 166 | D26: DEUTSCHER SCHÄFERHUND
B27: BERGER AMERICAIN MINIATURE | C27: 916 | D27: AMERICAN SHEPERD MINIATURE
B28: BERGER AUSTRALIEN | C28: 342 | D28: AUSTRALIAN SHEPHERD
B29: BERGER BERGAMASQUE | C29: 194 | D29: CANE DA PASTORE BERGAMASCO
B30: BERGER BLANC SUISSE | C30: 347 | D30: BERGER BLANC SUISSE / WEISSER SCHWEIZER SCHAFERHUND
B31: BERGER D'ASIE CENTRALE | C31: 335 | D31: SREDNEASIATSKAÏA OVTCHARKA
B32: BERGER DE BEAUCE | C32: 44 | D32: BERGER DE BEAUCE
B33: BERGER DE BOSNIE-HERZEGOVINE ET DE CROATIE | C33: 355 | D33: TORNJAK
B34: BERGER DE BRIE | C34: 113 | D34: BERGER DE BRIE
B35: BERGER DE LA MAREMME ET DES ABRUZZES | C35: 201 | D35: CANE DA PASTORE MAREMMANO-ABRUZZESE
B36: BERGER DE LA SERRA DE AIRES | C36: 93 | D36: CÃO DA SERRA DE AIRES
B37: BERGER DE L'EUROPE DU SUD-EST | C37: 357 | D37: CIOBANESC ROMANESC DE BUCOVINA
B38: BERGER DE PICARDIE | C38: 176
B39: BERGER DE RUSSIE MERIDIONALE | C39: 326 | D39: IOUJNOROUSSKAÏA OVTCHARKA
B40: BERGER DES PYRENEES A FACE RASE | C40: 138 | D40: BERGER DES PYRENEES A FACE RASE
B41: BERGER DES PYRENEES A POIL LONG | C41: 141 | D41: BERGER DES PYRENEES A POIL LONG
B42: BERGER DU CAUCASE | C42: 328 | D42: KAVKAZSKAÏA OVTCHARKA
B43: BERGER DU KARST | C43: 278 | D43: KRASZKI OVCAR
B44: BERGER FINNOIS DE LAPONIE | C44: 284 | D44: LAPINPOROKOIRA
B45: BERGER HOLLANDAIS | C45: 223 | D45: HOLLANDSE HERDERSHOND
B46: BERGER POLONAIS DE PLAINE | C46: 251 | D46: POLSKI OWCZAREK NIZINNY
B47: BICHON A POIL FRISE | C47: 215
B48: BICHON BOLONAIS | C48: 196 | D48: BOLOGNESE
B49: BICHON HAVANAIS | C49: 250 | D49: BICHON HAVANAIS
B50: BICHON MALTAIS | C50: 65 | D50: MALTESE
B51: BILLY | C51: 25 | D51: BILLY
B52: BORDER COLLIE | C52: 297 | D52: BORDER COLLIE
B53: BORDER TERRIER | C53: 10 | D53: BORDER TERRIER
B54: BOULEDOGUE FRANCAIS | C54: 101 | D54: BOULEDOGUE FRANCAIS
B55: BOUVIER AUSTRALIEN | C55: 287 | D55: AUSTRALIAN CATTLE DOG
B56: BOUVIER AUSTRALIEN COURTE QUEUE | C56: 351 | D56: AUSTRALIAN STUMPY TAIL CATTLE DOG
B57: BOUVIER BERNOIS | C57: 45 | D57: BERNER SENNENHUND , DÜRRBÄCHLER
B58: BOUVIER DE L'APPENZELL | C58: 46 | D58: APPENZELLER SENNENHUND
B59: BOUVIER DE L'ENTLEBUCH | C59: 47 | D59: ENTLEBUCHER SENNENHUND
B60: BOUVIER DES ARDENNES | C60: 171 | D60: BOUVIER DES ARDENNES
B61: BOUVIER DES FLANDRES | C61: 191 | D61: BOUVIER DES FLANDRES
B62: BOXER | C62: 144 | D62: BOXER
B63: BRACHET ALLEMAND | C63: 299 | D63: DEUTSCHE BRACKE
B64: BRACHET DE STYRIE A POIL DUR | C64: 62 | D64: STEIRISCHE RAUHHAARBRACKE
B65: BRACHET NOIR ET FEU | C65: 63 | D65: BRANDLBRACKE
B66: BRACHET POLONAIS | C66: 52 | D66: OGAR POLSKI
B67: BRACHET TYROLIEN | C67: 68 | D67: TIROLER BRACKE
B68: BRAQUE ALLEMAND A POIL COURT | C68: 119 | D68: DEUTSCH KURZHAAR
B69: BRAQUE D AUVERGNE | C69: 180 | D69: BRAQUE D'AUVERGNE
B70: BRAQUE DE BURGOS | C70: 90 | D70: PERDIGUERO DE BURGOS
B71: BRAQUE DE L ARIEGE | C71: 177 | D71: BRAQUE DE L'ARIEGE
B72: BRAQUE DE WEIMAR | C72: 99 | D72: WEIMARANER
B73: BRAQUE DU BOURBONNAIS | C73: 179 | D73: BRAQUE DU BOURBONNAIS
B74: BRAQUE FRANCAIS, TYPE GASCOGNE | C74: 133
B75: BRAQUE FRANCAIS, TYPE PYRENEES | C75: 134
B76: BRAQUE HONGROIS A POIL COURT | C76: 57 | D76: RÖVIDSZÖRU MAGYAR VIZSLA
B77: BRAQUE HONGROIS A POIL DUR | C77: 239 | D77: DRÖTZÖRÜ MAGYAR VIZSLA
B78: BRAQUE ITALIEN | C78: 202 | D78: BRACCO ITALIANO
B79: BRAQUE SAINT GERMAIN | C79: 115 | D79: BRAQUE SAINT GERMAIN
B80: BRAQUE SLOVAQUE A POIL DUR | C80: 320 | D80: SLOVENSKI HRUBOSRSTY STAVAC (OHAR)
B81: BRIQUET DE PROVENCE | C81: 911
B82: BRIQUET GRIFFON VENDEEN | C82: 19 | D82: BRIQUET GRIFFON VENDEEN
B83: BROHOLMER | C83: 315 | D83: BROHOLMER
B84: BRUNO SAINT-HUBERT FRANCAIS | C84: 905 | D84: JURA LAUFHUND - CHIEN COURANT
B85: BUHUND NORVEGIEN | C85: 237 | D85: NORSK BUHUND
B86: BULL TERRIER | C86: 11 | D86: BULL TERRIER
B87: BULL TERRIER MINIATURE | C87: 359 | D87: MINIATURE BULL TERRIER
B88: BULLDOG | C88: 149 | D88: BULLDOG
B89: BULLMASTIFF | C89: 157 | D89: BULLMASTIFF
B90: CAIRN TERRIER | C90: 4 | D90: CAIRN TERRIER
B91: CANICHE | C91: 172 | D91: CANICHE
B92: CARLIN | C92: 253 | D92: PUG
B93: CAVALIER KING CHARLES | C93: 136 | D93: CAVALIER KING CHARLES SPANIEL
B94: CHIEN A LOUTRE | C94: 294 | D94: OTTERHOUND
B95: CHIEN CHINOIS A CRETE | C95: 288 | D95: CHINESE CRESTED DOG
B96: CHIEN COURANT DE BOSNIE A POIL DUR | C96: 155 | D96: BOSANSKI OSTRODLAKI GONIC - BARAK
B97: CHIEN COURANT DE HALDEN | C97: 267 | D97: HALDENSTOVER
B98: CHIEN COURANT DE HAMILTON | C98: 132 | D98: HAMILTONSTOVARE
B99: CHIEN COURANT DE HYGEN | C99: 266 | D99: HYGENHUND
B100: CHIEN COURANT DE LA VALLE DE LA SAVE | C100: 154 | D100: POSAVSKI GONIC
B101: CHIEN COURANT DE MONTAGNE DU MONTENEGRO | C101: 279 | D101: CRNOGORSKI PLANINSKI GONIC
B102: CHIEN COURANT DE SCHILLER | C102: 131 | D102: SCHILLERSTÖVARE
B103: CHIEN COURANT DE TRANSYLVANIE | C103: 241 | D103: ERDELYI KOPO
B104: CHIEN COURANT D'ISTRIE A POIL DUR | C104: 152 | D104: ISTARSKI OSTRODLAKI GONIC
B105: CHIEN COURANT D'ISTRIE A POIL RAS | C105: 151 | D105: ISTARSKI KRATKODLAKI GONIC
B106: CHIEN COURANT DU SMALAND | C106: 129 | D106: SMALANDSSTOVARE
B107: CHIEN COURANT ESPAGNOL | C107: 204 | D107: SABUESO ESPAÑOL
B108: CHIEN COURANT FINLANDAIS | C108: 51 | D108: SUOMENAJOKOIRA
B109: CHIEN COURANT GREC | C109: 214 | D109: HELLINIKOS ICHNILATIS
B110: CHIEN COURANT ITALIEN A POIL DUR | C110: 198 | D110: SEGUGIO ITALIANO A PELO FORTE
B111: CHIEN COURANT ITALIEN A POIL RAS | C111: 337 | D111: SEGUGIO ITALIANO A PELO RAZO
B112: CHIEN COURANT NORVEGIEN | C112: 203 | D112: DUNKER
B113: CHIEN COURANT POLONAIS | C113: 354 | D113: GONZCY POLSKI
B114: CHIEN COURANT SERBE | C114: 150 | D114: SERBSKI GONIC
B115: CHIEN COURANT SLOVAQUE | C115: 244 | D115: SLOVENSKY KOPOV
B116: CHIEN COURANT SUISSE | C116: 59 | D116: SCHWEIZER LAUFHUND
B117: CHIEN COURANT TRICOLORE SERBE | C117: 229 | D117: SERPSKI TROBOJNI GONIC
B118: CHIEN D'ARRET ALLEMAND A POIL DUR | C118: 98 | D118: DEUTSCH DRAHTHAAR
B119: CHIEN D'ARRET ALLEMAND A POIL LONG | C119: 117 | D119: DEUTSCH LANGHAAR
B120: CHIEN D'ARRET ALLEMAND A POIL RAIDE | C120: 232 | D120: DEUTSCH STICHELHAAR
B121: CHIEN D'ARRET DANOIS ANCESTRAL | C121: 281 | D121: GAMMEL DANSK HONSHUND
B122: CHIEN D'ARRET FRISON | C122: 222 | D122: STABYHOUN
B123: CHIEN D'ARRET PORTUGAIS | C123: 187 | D123: PERDIGUEIRO PORTUGUES
B124: CHIEN D'ARTOIS | C124: 28 | D124: CHIEN D'ARTOIS
B125: CHIEN DE BERGER ANGLAIS ANCESTRAL | C125: 16 | D125: OLD ENGLISH SHEEPDOG
B126: CHIEN DE BERGER BELGE | C126: 15 | D126: BELGISCHE HERDERSHOND
B127: CHIEN DE BERGER CATALAN | C127: 87 | D127: PERRO DE PASTOR CATALAN - GOS D'ATURA CATALA
B128: CHIEN DE BERGER CROATE | C128: 277 | D128: HRVATSKI OVCAR
B129: CHIEN DE BERGER D ANATOLIE | C129: 331 | D129: COBAN KOPEGI
B130: CHIEN DE BERGER DE MAJORQUE | C130: 321 | D130: PERRO DE PASTOR MALLORQUIN - CA DE BESTIAR
B131: CHIEN DE BERGER DES SHETLAND | C131: 88 | D131: SHETLAND SHEEPDOG
B132: CHIEN DE BERGER DES TATRAS | C132: 252 | D132: POLSKI OWCZAREK PODHALANSKI
B133: CHIEN DE BERGER ISLANDAIS | C133: 289 | D133: ISLENSKUR FJARHUNDUR
B134: CHIEN DE BERGER ROUMAIN DE MIORITZA | C134: 349 | D134: CIOBANESC ROMÂNESC MIORITIC
B135: CHIEN DE BERGER ROUMAIN DES CARPATHES | C135: 350 | D135: CIOBANESC ROMÂNESC CARPATIN
B136: CHIEN DE BERGER YOUGOSLAVE DE CHARPLANINA | C136: 41 | D136: JUGOSLOVENSKI OVCARSKI PAS
B137: CHIEN DE CANAAN | C137: 273 | D137: CANAAN DOG
B138: CHIEN DE CASTRO LABOREIRO | C138: 170 | D138: CAO DE CASTRO LABOREIRO
B139: CHIEN DE COUR ITALIEN | C139: 343 | D139: CANE CORSO
B140: CHIEN DE FERME DANO-SUEDOIS | C140: 356 | D140: DANSK-SVENSK GARDSHUND
B141: CHIEN DE GARENNE DES CANARIES | C141: 329 | D141: PODENCO CANARIO
B142: CHIEN DE GARENNE PORTUGAIS | C142: 94 | D142: PODENGO PORTUGUÈS
B143: CHIEN DE LA SERRA DA ESTRELA | C143: 173 | D143: CAO DA SERRA DA ESTRELA
B144: CHIEN DE LEONBERG | C144: 145 | D144: LEONBERGER
B145: CHIEN DE MONTAGNE DE L'ATLAS | C145: 247 | D145: AÏDI
B146: CHIEN DE MONTAGNE DES PYRENEES | C146: 137 | D146: CHIEN DE MONTAGNE DES PYRENEES
B147: CHIEN DE PERDRIX DE DRENTE | C147: 224 | D147: DRENTSCHE PATRIJSHOND
B148: CHIEN DE RHODESIE A CRETE DORSALE | C148: 146 | D148: RHODESIAN RIDGEBACK
B149: CHIEN DE ROUGE DE BAVIERE | C149: 217 | D149: BAYRISCHER GEBIRGSSCHWEISSHUND
B150: CHIEN DE ROUGE DU HANOVRE | C150: 213 | D150: HANNOVERSCHER SCHWEISSHUND
B151: CHIEN DE SAINT HUBERT | C151: 84 | D151: CHIEN DE SAINT HUBERT
B152: CHIEN DE TAÏWAN | C152: 348 | D152: TAÏWAN DOG
B153: CHIEN D'EAU AMERICAIN | C153: 301 | D153: AMERICAN WATER SPANIEL
B154: CHIEN D'EAU ESPAGNOL | C154: 336 | D154: PERRO DE AGUA ESPAÑOL
B155: CHIEN D'EAU FRISON | C155: 221 | D155: WETTERHOUN
B156: CHIEN D'EAU PORTUGAIS | C156: 37 | D156: CÃO DE AGUA PORTUGUÊS
B157: CHIEN D'EAU ROMAGNOL | C157: 298 | D157: LAGOTTO ROMAGNOLO
B158: CHIEN D'ELAN NORVEGIEN GRIS | C158: 242 | D158: NORSK ELKHUND GRA
B159: CHIEN D'ELAN NORVEGIEN NOIR | C159: 268 | D159: NORSK ELGHUND SORT
B160: CHIEN D'ELAN SUEDOIS / JÄMTHUND | C160: 42 | D160: JÄMTHUND
B161: CHIEN D'OURS DE CARELIE | C161: 48 | D161: KARJALANKARHUKOIRA
B162: CHIEN D'OYSEL ALLEMAND | C162: 104 | D162: DEUTSCHER WACHTELHUND
B163: CHIEN DU GROENLAND | C163: 274 | D163: GRONLANDSHUND
B164: CHIEN DU PHARAON | C164: 248 | D164: PHARAOH HOUND
B165: CHIEN FINNOIS DE LAPONIE | C165: 189 | D165: SUOMENLAPINKOIRA
B166: CHIEN FONNESE | C166: 913 | D166: CANE FONNESE
B167: CHIEN LOUP DE SAARLOOS | C167: 311 | D167: SAARLOOS WOLFHOND
B168: CHIEN LOUP TCHECOSLOVAQUE | C168: 332 | D168: CESKOSLOVENSKY VECIAK
B169: CHIEN N. ET F. POUR LA CHASSE AU RATON | C169: 300 | D169: BLACK AND TAN COONHOUND
B170: CHIEN NORVEGIEN DE MACAREUX | C170: 265 | D170: NORSK LUNDEHUND
B171: CHIEN NU DU MEXIQUE | C171: 234 | D171: XOLOITZCUINTLE
B172: CHIEN NU DU PEROU | C172: 310 | D172: PERRO SIN PELO DEL PERU
B173: CHIEN PARTICOLORE A POIL FRISE | C173: 912 | D173: CHIEN PARTICOLORE A POIL FRISE
B174: CHIEN THAILANDAIS A CRETE DORSALE | C174: 338 | D174: THAI RIDGEBACK DOG
B175: CHIHUAHUA | C175: 218 | D175: CHIHUAHUA
B176: CHOW CHOW | C176: 205 | D176: CHOW-CHOW
B177: CIMARRON URUGUAYEN | C177: 353 | D177: CIMARRON URUGUAYO
B178: CIRNECO DE L ETNA | C178: 199 | D178: CIRNECO DELL'ETNA
B179: CLUMBER SPANIEL | C179: 109 | D179: CLUMBER SPANIEL
B180: COCKER SPANIEL AMERICAIN | C180: 167 | D180: AMERICAN COCKER SPANIEL
B181: COCKER SPANIEL ANGLAIS | C181: 5 | D181: ENGLISH COCKER SPANIEL
B182: COLLIE A POIL COURT | C182: 296 | D182: SMOOTH COLLEY
B183: COLLIE A POIL LONG | C183: 156 | D183: ROUGH COLLEY
B184: CONTINENTAL BULLDOG | C184: 915 | D184: CONTINENTAL BULLDOG
B185: COTON DE TULEAR | C185: 283 | D185: COTON DE TULEAR
B186: CROISE | D186: CROISE
B187: CURSINU | C187: 901 | D187: U'CURSINU
B188: DALMATIEN | C188: 153 | D188: DALMATIEN
B189: DANDIE DINMONT TERRIER | C189: 168 | D189: DANDIE DINMONT TERRIER
B190: DOBERMANN | C190: 143 | D190: DOBERMANN
B191: DOGUE ALLEMAND | C191: 235 | D191: DEUTSCHE DOGGE
B192: DOGUE ARGENTIN | C192: 292 | D192: DOGO ARGENTINO
B193: DOGUE DE BORDEAUX | C193: 116 | D193: DOGUE DE BORDEAUX
B194: DOGUE DE MAJORQUE | C194: 249 | D194: PERRO DOGO MALLORQUIN
B195: DOGUE DES CANARIES | C195: 346 | D195: DOGO CANARIO
B196: DOGUE DU TIBET | C196: 230 | D196: DO-KHYI
B197: ENGLISH SPRINGER SPANIEL | C197: 125 | D197: ENGLISH SPRINGER SPANIEL
B198: EPAGNEUL BLEU DE PICARDIE | C198: 106 | D198: EPAGNEUL BLEU DE PICARDIE
B199: EPAGNEUL BRETON | C199: 95 | D199: EPAGNEUL BRETON
B200: EPAGNEUL DE PONT AUDEMER | C200: 114 | D200: EPAGNEUL DE PONT AUDEMER
B201: EPAGNEUL DE SAINT USUGE | C201: 906 | D201: EPAGNEUL DE SAINT USUGE
... 154 more rows

Sheet SCC (hidden)
A1: DATE | B1: ORGANISATEUR | C1: Code Race FCI | D1: LO | E1: NUMERO | F1: IDENTIFIANT | G1: RESULTAT | H1: NIVEAU | I1: qualificatif 1 | J1: qualificatif 2 | O1: RESULTAT
A2: ='Fiche organisateur N2'!$H$8 -> 00:00:00 | B2: ='Fiche organisateur N2'!$F$5 -> 0 | C2: ='Rapport de concours '!J17 -> 0 | D2: ='Rapport de concours '!P17 -> 0 | E2: ='Rapport de concours '!Q17 -> 0 | F2: ='Rapport de concours '!I17 -> 0 | G2: ='Rapport de concours '!O17 -> - | H2: TS3 | I2: ='Rapport de concours '!L17 -> - | J2: ='Rapport de concours '!M17 -> . | O2: ='Rapport de concours '!O17 -> -
A3: ='Fiche organisateur N2'!$H$8 -> 00:00:00 | B3: ='Fiche organisateur N2'!$F$5 -> 0 | C3: ='Rapport de concours '!J18 -> 0 | D3: ='Rapport de concours '!P18 -> 0 | E3: ='Rapport de concours '!Q18 -> 0 | F3: ='Rapport de concours '!I18 -> 0 | G3: ='Rapport de concours '!O18 -> - | H3: TS3 | I3: ='Rapport de concours '!L18 -> - | J3: ='Rapport de concours '!M18 -> . | O3: ='Rapport de concours '!O18 -> -
A4: ='Fiche organisateur N2'!$H$8 -> 00:00:00 | B4: ='Fiche organisateur N2'!$F$5 -> 0 | C4: ='Rapport de concours '!J19 -> 0 | D4: ='Rapport de concours '!P19 -> 0 | E4: ='Rapport de concours '!Q19 -> 0 | F4: ='Rapport de concours '!I19 -> 0 | G4: ='Rapport de concours '!O19 -> - | H4: TS3 | I4: ='Rapport de concours '!L19 -> - | J4: ='Rapport de concours '!M19 -> . | O4: ='Rapport de concours '!W19 -> 0
A5: ='Fiche organisateur N2'!$H$8 -> 00:00:00 | B5: ='Fiche organisateur N2'!$F$5 -> 0 | C5: ='Rapport de concours '!J20 -> 0 | D5: ='Rapport de concours '!P20 -> 0 | E5: ='Rapport de concours '!Q20 -> 0 | F5: ='Rapport de concours '!I20 -> 0 | G5: ='Rapport de concours '!O20 -> - | H5: TS3 | I5: ='Rapport de concours '!L20 -> - | J5: ='Rapport de concours '!M20 -> . | O5: ='Rapport de concours '!W20 -> 0
A6: ='Fiche organisateur N2'!$H$8 -> 00:00:00 | B6: ='Fiche organisateur N2'!$F$5 -> 0 | C6: ='Rapport de concours '!J21 -> 0 | D6: ='Rapport de concours '!P21 -> 0 | E6: ='Rapport de concours '!Q21 -> 0 | F6: ='Rapport de concours '!I21 -> 0 | G6: ='Rapport de concours '!O21 -> - | H6: TS3 | I6: ='Rapport de concours '!L21 -> - | J6: ='Rapport de concours '!M21 -> . | O6: ='Rapport de concours '!W21 -> 0
A7: ='Fiche organisateur N2'!$H$8 -> 00:00:00 | B7: ='Fiche organisateur N2'!$F$5 -> 0 | C7: ='Rapport de concours '!J22 -> 0 | D7: ='Rapport de concours '!P22 -> 0 | E7: ='Rapport de concours '!Q22 -> 0 | F7: ='Rapport de concours '!I22 -> 0 | G7: ='Rapport de concours '!O22 -> - | H7: TS3 | I7: ='Rapport de concours '!L22 -> - | J7: ='Rapport de concours '!M22 -> . | O7: ='Rapport de concours '!W22 -> 0
A8: ='Fiche organisateur N2'!$H$8 -> 00:00:00 | B8: ='Fiche organisateur N2'!$F$5 -> 0 | C8: ='Rapport de concours '!J23 -> 0 | D8: ='Rapport de concours '!P23 -> 0 | E8: ='Rapport de concours '!Q23 -> 0 | F8: ='Rapport de concours '!I23 -> 0 | G8: ='Rapport de concours '!O23 -> - | H8: TS3 | I8: ='Rapport de concours '!L23 -> - | J8: ='Rapport de concours '!M23 -> . | O8: ='Rapport de concours '!W23 -> 0
A9: ='Fiche organisateur N2'!$H$8 -> 00:00:00 | B9: ='Fiche organisateur N2'!$F$5 -> 0 | C9: ='Rapport de concours '!J24 -> 0 | D9: ='Rapport de concours '!P24 -> 0 | E9: ='Rapport de concours '!Q24 -> 0 | F9: ='Rapport de concours '!I24 -> 0 | G9: ='Rapport de concours '!O24 -> - | H9: TS3 | I9: ='Rapport de concours '!L24 -> - | J9: ='Rapport de concours '!M24 -> . | O9: ='Rapport de concours '!W24 -> 0
A10: ='Fiche organisateur N2'!$H$8 -> 00:00:00 | B10: ='Fiche organisateur N2'!$F$5 -> 0 | C10: ='Rapport de concours '!J25 -> 0 | D10: ='Rapport de concours '!P25 -> 0 | E10: ='Rapport de concours '!Q25 -> 0 | F10: ='Rapport de concours '!I25 -> 0 | G10: ='Rapport de concours '!O25 -> - | H10: TS3 | I10: ='Rapport de concours '!L25 -> - | J10: ='Rapport de concours '!M25 -> . | O10: ='Rapport de concours '!W25 -> 0
A11: ='Fiche organisateur N2'!$H$8 -> 00:00:00 | B11: ='Fiche organisateur N2'!$F$5 -> 0 | C11: ='Rapport de concours '!J26 -> 0 | D11: ='Rapport de concours '!P26 -> 0 | E11: ='Rapport de concours '!Q26 -> 0 | F11: ='Rapport de concours '!I26 -> 0 | G11: ='Rapport de concours '!O26 -> - | H11: TS3 | I11: ='Rapport de concours '!L26 -> - | J11: ='Rapport de concours '!M26 -> . | O11: ='Rapport de concours '!W26 -> 0
A12: ='Fiche organisateur N2'!$H$8 -> 00:00:00 | B12: ='Fiche organisateur N2'!$F$5 -> 0 | C12: ='Rapport de concours '!J27 -> 0 | D12: ='Rapport de concours '!P27 -> 0 | E12: ='Rapport de concours '!Q27 -> 0 | F12: ='Rapport de concours '!I27 -> 0 | G12: ='Rapport de concours '!O27 -> - | H12: TS3 | I12: ='Rapport de concours '!L27 -> - | J12: ='Rapport de concours '!M27 -> . | O12: ='Rapport de concours '!W27 -> 0
A13: ='Fiche organisateur N2'!$H$8 -> 00:00:00 | B13: ='Fiche organisateur N2'!$F$5 -> 0 | C13: ='Rapport de concours '!J28 -> 0 | D13: ='Rapport de concours '!P28 -> 0 | E13: ='Rapport de concours '!Q28 -> 0 | F13: ='Rapport de concours '!I28 -> 0 | G13: ='Rapport de concours '!O28 -> - | H13: TS3 | I13: ='Rapport de concours '!L28 -> - | J13: ='Rapport de concours '!M28 -> . | O13: ='Rapport de concours '!W28 -> 0
A14: ='Fiche organisateur N2'!$H$8 -> 00:00:00 | B14: ='Fiche organisateur N2'!$F$5 -> 0 | C14: ='Rapport de concours '!J29 -> 0 | D14: ='Rapport de concours '!P29 -> 0 | E14: ='Rapport de concours '!Q29 -> 0 | F14: ='Rapport de concours '!I29 -> 0 | G14: ='Rapport de concours '!O29 -> - | H14: TS3 | I14: ='Rapport de concours '!L29 -> - | J14: ='Rapport de concours '!M29 -> . | O14: ='Rapport de concours '!W29 -> 0
A15: ='Fiche organisateur N2'!$H$8 -> 00:00:00 | B15: ='Fiche organisateur N2'!$F$5 -> 0 | C15: ='Rapport de concours '!J30 -> 0 | D15: ='Rapport de concours '!P30 -> 0 | E15: ='Rapport de concours '!Q30 -> 0 | F15: ='Rapport de concours '!I30 -> 0 | G15: ='Rapport de concours '!O30 -> - | H15: TS3 | I15: ='Rapport de concours '!L30 -> - | J15: ='Rapport de concours '!M30 -> . | O15: ='Rapport de concours '!W30 -> 0
A16: ='Fiche organisateur N2'!$H$8 -> 00:00:00 | B16: ='Fiche organisateur N2'!$F$5 -> 0 | C16: ='Rapport de concours '!J31 -> 0 | D16: ='Rapport de concours '!P31 -> 0 | E16: ='Rapport de concours '!Q31 -> 0 | F16: ='Rapport de concours '!I31 -> 0 | G16: ='Rapport de concours '!O31 -> - | H16: TS3 | I16: ='Rapport de concours '!L31 -> - | J16: ='Rapport de concours '!M31 -> . | O16: ='Rapport de concours '!W31 -> 0
A17: ='Fiche organisateur N2'!$H$8 -> 00:00:00 | B17: ='Fiche organisateur N2'!$F$5 -> 0 | C17: ='Rapport de concours '!J32 -> 0 | D17: ='Rapport de concours '!P32 -> 0 | E17: ='Rapport de concours '!Q32 -> 0 | F17: ='Rapport de concours '!I32 -> 0 | G17: ='Rapport de concours '!O32 -> - | H17: TS3 | I17: ='Rapport de concours '!L32 -> - | J17: ='Rapport de concours '!M32 -> . | O17: ='Rapport de concours '!W32 -> 0
A18: ='Fiche organisateur N2'!$H$8 -> 00:00:00 | B18: ='Fiche organisateur N2'!$F$5 -> 0 | C18: ='Rapport de concours '!J33 -> 0 | D18: ='Rapport de concours '!P33 -> 0 | E18: ='Rapport de concours '!Q33 -> 0 | F18: ='Rapport de concours '!I33 -> 0 | G18: ='Rapport de concours '!O33 -> - | H18: TS3 | I18: ='Rapport de concours '!L33 -> - | J18: ='Rapport de concours '!M33 -> . | O18: ='Rapport de concours '!W33 -> 0
A19: ='Fiche organisateur N2'!$H$8 -> 00:00:00 | B19: ='Fiche organisateur N2'!$F$5 -> 0 | C19: ='Rapport de concours '!J34 -> 0 | D19: ='Rapport de concours '!P34 -> 0 | E19: ='Rapport de concours '!Q34 -> 0 | F19: ='Rapport de concours '!I34 -> 0 | G19: ='Rapport de concours '!O34 -> - | H19: TS3 | I19: ='Rapport de concours '!L34 -> - | J19: ='Rapport de concours '!M34 -> . | O19: ='Rapport de concours '!W34 -> 0

Sheet 00
G1: IHT TS | H1: ='Fiche organisateur N1'!$E$26 -> HWT
G5: COUNTRY LOGO
A6: Organisation | B6: ='Fiche organisateur N2'!F5 -> 0
A7: PLACE | B7: ='Fiche organisateur N2'!F6 -> 0 | C7: Date : | D7: ='Fiche organisateur N2'!$H$8 -> 0
A8: Contact : | B8: 0
B10: 0 | E10: 0
B11: Feuille de Préparation | E11: 0
B12: A remplir avec le juge | E12: 0
E13: 0
A14: for the country---> | Z14: IHT1 | AA14: IHT2 | AB14: IHT3
A15: EXERCISES | B15: OBSERVATIONS | C15: Mini | D15: SCORE | E15: Control of the flock | G15: MOVING | I15: DIFFICULT PASSAGES | K15: BEHAVIOUR | Z15: 35 | AA15: 35 | AB15: 40
D16: =IF(COUNT(E16:L16)=0,"-",E16+G16+I16+K16-C16) -> - | R16: Exercices | U16: HWT
D17: =IF(COUNT(E17:L17)=0,"-",E17+G17+I17+K17-C17) -> - | R17: GUARDING | U17: 50
D18: - | R18: Pen / Sortie du parc | U18: 10
D19: - | R19: Stop | U19: 15 | Z19: 45 | AA19: 55 | AB19: 70
D20: - | R20: Graze / Pâturage | U20: 15
D21: - | R21: Re-pen / Rentrée au parc | U21: 10
D22: - | R22: Moving / Conduite du troupeau | U22: 30
D23: - | R23: Behaviour / Comportement | U23: 20
D24: - | R24: Aptitude naturelle / Natural ability
D25: - | R25: Absence d’agressivité/ gentleness
D26: - | R26: Intelligence d’exécution/ Intelligence of execution
D27: - | R27: Obéissance / Obedience
D28: - | U28: 100
D29: -
D30: -
D31: -
A32: Aptitude naturelle | D32: -
A33: Gentillesse | D33: -
A34: Intelligence de l'execution | D34: -
A35: Obéissance | D35: -
A36: POINTS TOTAL | D36: =SUM(D16:D35) -> 0 | E36: 50 | F36: =IF(J10=1,AI50,IF(J10=2,AI54,AI58)) -> 0 | G36: 30 | H36: =IF(L10=1,W51,IF(L10=2,W55,W59)) -> 0.1 | I36: 0 | J36: =IF(N10=1,#REF!,IF(N10=2,#REF!,#REF!)) ->  | K36: 20 | L36: =IF(P10=1,#REF!,IF(P10=2,#REF!,#REF!)) -> 
A37: Détails des pénéalités | D37: 0 | E37: Pénalités en Négatif
A38: POINTS | B38: =IF((C36)=0,"-",D36+D37-C36) -> - | C38: =IF(COUNT(D38:K38)=0,"-",D38+F38+H38+J38-B38) -> - | D38: EVALUATION | F38: =$L$55 -> - | I38: ='Rapport de concours '!$N$17 -> X | L38: 0
B39: - | M39: =SUM(E16:E35) -> 0 | N39: =SUM(G16:G35) -> 0 | O39: =SUM(I16:I35) -> 0 | P39: =SUM(K16:K35) -> 0 | Q39: =IF(E36=M39,"OK","CHECK POINTS") -> CHECK POINTS | R39: =IF(G36=N39,"OK","CHECK POINTS") -> CHECK POINTS | S39: =IF(I36=O39,"OK","CHECK POINTS") -> OK | T39: =IF(K36=P39,"OK","CHECK POINTS") -> CHECK POINTS
A40: Observations : | Q40: =SUM(E16:F31) -> 0 | R40: =SUM(G16:H31) -> 0 | S40: =SUM(I16:J31) -> 0 | T40: =SUM(K32:L35) -> 0 | U40: TOTAL PAR LIGNE
Q45: 48 | R45: IHT1 | S45: GUARDING | U45: 35
Q46: 49 | R46: IHT1 | S46: MOVING | U46: 45
Q47: 50 | R47: IHT1 | S47: DIFFICULT PASS | U47: 10
Q48: 51 | R48: IHT1 | S48: BEHAVIOUR | U48: 10
Q49: 52 | R49: IHT2 | S49: GUARDING | U49: 35
Q50: 53 | R50: IHT2 | S50: MOVING | U50: 55
Q51: 54 | R51: IHT2 | S51: DIFFICULT PASS | U51: 20
Q52: 55 | R52: IHT2 | S52: BEHAVIOUR | U52: 10
Q53: 56 | R53: IHT3 | S53: GUARDING | U53: 40
Q54: 57 | R54: IHT3 | S54: MOVING | U54: 70
L55: =IF(B38="-","-",IF(B38>S58,"EXCELLENT",IF(B38>T58,"TRES BON",IF(B38>U58,"BON",IF(B38>V58,"insuffisant",IF(B37>0.1,"insuffisant ","éliminé ")))))) -> - | Q55: 58 | R55: IHT3 | S55: DIFFICULT PASS | U55: 30
Q56: 59 | R56: IHT3 | S56: BEHAVIOUR | U56: 10
Q58: IHT1 | R58: 100 | S58: =R58*89.999/100 -> 89.999 | T58: =R58*79.999/100 -> 79.999 | U58: =R58*69.999/100 -> 69.999 | V58: =R58*59.999/100 -> 59.999 | W58: 0.1
Q59: iIHT2 | R59: 120 | S59: =R59*89.999/100 -> 107.9988 | T59: =R59*79.999/100 -> 95.9988 | U59: =R59*69.999/100 -> 83.9988 | V59: =R59*59.999/100 -> 71.9988 | W59: 0.1
Q60: IHT3 | R60: 150 | S60: 134.9985 | T60: =R60*79.999/100 -> 119.9985 | U60: =R60*69.999/100 -> 104.9985 | V60: =R60*59.999/100 -> 89.9985 | W60: 0.1

Sheet 01
G1: IHT TS | H1: HWT
B5: IHT TS | G5: COUNTRY LOGO
A6: Organisation | B6: ='Fiche organisateur N2'!F5 -> 0
A7: Ville | B7: ='Fiche organisateur N2'!F6 -> 0 | C7: Date : | E7: ='Fiche organisateur N2'!$H$8 -> 0
A8: Contact : | B8: 0
A9: Propriètaire | B9: ='Fiche organisateur N2'!$C$17 -> 0 | C9: Race et sexe | E9: ='Fiche organisateur N2'!$G$17 -> 0
A10: Conducteur | B10: ='Fiche organisateur N2'!$D$17 -> 0 | C10: Né | E10: ='Fiche organisateur N2'!$K$17 -> 0
A11: Nom du chien | B11: ='Fiche organisateur N2'!$E$17 -> 0 | C11: PEDIGREE | E11: ='Fiche organisateur N2'!$J$17 -> 0
A12: Affixe | B12: ='Fiche organisateur N2'!$F$17 -> 0 | C12: Identifiant | E12: ='Fiche organisateur N2'!$L$17 -> 0
A14: for the country---> | E14: ='00'!E14 -> 0 | G14: ='00'!G14 -> 0 | I14: ='00'!I14 -> 0 | K14: ='00'!K14 -> 0
A15: EXERCISES | B15: OBSERVATIONS | C15: Mini | D15: SCORE | E15: ='00'!E15 -> Control of the flock | G15: ='00'!G15 -> MOVING | I15: ='00'!I15 -> DIFFICULT PASSAGES | K15: ='00'!K15 -> BEHAVIOUR
A16: ='00'!A16 -> 0 | D16: =IF(COUNT(E16:L16)=0,"-",E16+G16+I16+K16-C16) -> 0 | E16: ='00'!E16 -> 0 | G16: ='00'!G16 -> 0 | I16: ='00'!I16 -> 0 | K16: ='00'!K16 -> 0
A17: 0 | D17: 0 | E17: ='00'!E17 -> 0 | G17: ='00'!G17 -> 0 | I17: ='00'!I17 -> 0 | K17: ='00'!K17 -> 0
A18: ='00'!A18 -> 0 | D18: 0 | E18: ='00'!E18 -> 0 | G18: ='00'!G18 -> 0 | I18: ='00'!I18 -> 0 | K18: ='00'!K18 -> 0
A19: ='00'!A19 -> 0 | D19: 0 | E19: ='00'!E19 -> 0 | G19: ='00'!G19 -> 0 | I19: ='00'!I19 -> 0 | K19: ='00'!K19 -> 0
A20: ='00'!A20 -> 0 | D20: 0 | E20: ='00'!E20 -> 0 | G20: ='00'!G20 -> 0 | I20: ='00'!I20 -> 0 | K20: ='00'!K20 -> 0
A21: ='00'!A21 -> 0 | D21: 0 | E21: ='00'!E21 -> 0 | G21: ='00'!G21 -> 0 | I21: ='00'!I21 -> 0 | K21: ='00'!K21 -> 0
A22: ='00'!A22 -> 0 | D22: 0 | E22: ='00'!E22 -> 0 | G22: ='00'!G22 -> 0 | I22: ='00'!I22 -> 0 | K22: ='00'!K22 -> 0
A23: ='00'!A23 -> 0 | D23: 0 | E23: ='00'!E23 -> 0 | G23: ='00'!G23 -> 0 | I23: ='00'!I23 -> 0 | K23: ='00'!K23 -> 0
A24: ='00'!A24 -> 0 | D24: 0 | E24: ='00'!E24 -> 0 | G24: ='00'!G24 -> 0 | I24: ='00'!I24 -> 0 | K24: ='00'!K24 -> 0
A25: ='00'!A25 -> 0 | D25: 0 | E25: ='00'!E25 -> 0 | G25: ='00'!G25 -> 0 | I25: ='00'!I25 -> 0 | K25: ='00'!K25 -> 0
A26: ='00'!A26 -> 0 | D26: 0 | E26: ='00'!E26 -> 0 | G26: ='00'!G26 -> 0 | I26: ='00'!I26 -> 0 | K26: ='00'!K26 -> 0
A27: ='00'!A27 -> 0 | D27: 0 | E27: ='00'!E27 -> 0 | G27: ='00'!G27 -> 0 | I27: ='00'!I27 -> 0 | K27: ='00'!K27 -> 0
A28: ='00'!A28 -> 0 | D28: 0 | E28: ='00'!E28 -> 0 | G28: ='00'!G28 -> 0 | I28: ='00'!I28 -> 0 | K28: ='00'!K28 -> 0
A29: ='00'!A29 -> 0 | D29: 0 | E29: ='00'!E29 -> 0 | G29: ='00'!G29 -> 0 | I29: ='00'!I29 -> 0 | K29: ='00'!K29 -> 0
A30: ='00'!A30 -> 0 | D30: 0 | E30: ='00'!E30 -> 0 | G30: ='00'!G30 -> 0 | I30: ='00'!I30 -> 0 | K30: ='00'!K30 -> 0
A31: ='00'!A31 -> 0 | D31: 0 | E31: ='00'!E31 -> 0 | G31: ='00'!G31 -> 0 | I31: ='00'!I31 -> 0 | K31: ='00'!K31 -> 0
A32: ='00'!A32 -> Aptitude naturelle | D32: 0 | E32: ='00'!E32 -> 0 | G32: ='00'!G32 -> 0 | I32: ='00'!I32 -> 0 | K32: ='00'!K32 -> 0
A33: ='00'!A33 -> Gentillesse | D33: 0 | E33: ='00'!E33 -> 0 | G33: ='00'!G33 -> 0 | I33: ='00'!I33 -> 0 | K33: ='00'!K33 -> 0
A34: ='00'!A34 -> Intelligence de l'execution | D34: 0 | E34: ='00'!E34 -> 0 | G34: ='00'!G34 -> 0 | I34: ='00'!I34 -> 0 | K34: ='00'!K34 -> 0
A35: ='00'!A35 -> Obéissance | D35: 0 | E35: ='00'!E35 -> 0 | G35: ='00'!G35 -> 0 | I35: ='00'!I35 -> 0 | K35: ='00'!K35 -> 0
A36: POINTS TOTAL | C36: =SUM(C16:C35) -> 0 | D36: =SUM(D16:D35) -> 0 | E36: ='00'!E36 -> 50 | G36: ='00'!G36 -> 30 | I36: ='00'!I36 -> 0 | K36: ='00'!K36 -> 20
A37: Détails des pénéalités | D37: 0 | E37: Pénalités en Négatif | I37: Classement
A38: POINTS | B38: =IF((C36)=0,"-",D36+D37) -> - | C38: =IF(COUNT(D38:K38)=0,"-",D38+F38+H38+J38-B38) -> - | D38: EVALUATION | F38: =$L$55 -> - | I38: ='Rapport de concours '!N17 -> X | L38: =COUNT(S17:S34) -> 0
B39: .
A40: Observations : | Q40: 0
Q45: 48 | R45: IHT1 | S45: GUARDING | U45: 35
Q46: 49 | R46: IHT1 | S46: MOVING | U46: 45
Q47: 50 | R47: IHT1 | S47: DIFFICULT PASS | U47: 10
Q48: 51 | R48: IHT1 | S48: BEHAVIOUR | U48: 10
Q49: 52 | R49: IHT2 | S49: GUARDING | U49: 35
Q50: 53 | R50: IHT2 | S50: MOVING | U50: 55
Q51: 54 | R51: IHT2 | S51: DIFFICULT PASS | U51: 20
Q52: 55 | R52: IHT2 | S52: BEHAVIOUR | U52: 10
Q53: 56 | R53: IHT3 | S53: GUARDING | U53: 40
Q54: 57 | R54: IHT3 | S54: MOVING | U54: 70
L55: =IF(B38="-","-",IF(B38>S58,"EXCELLENT",IF(B38>T58,"TRES BON",IF(B38>U58,"BON",IF(B38>V58,"insuffisant",IF(B37>0.1,"insuffisant ","éliminé ")))))) -> - | Q55: 58 | R55: IHT3 | S55: DIFFICULT PASS | U55: 30
Q56: 59 | R56: IHT3 | S56: BEHAVIOUR | U56: 10
Q58: IHT1 | R58: 100 | S58: =R58*89.999/100 -> 89.999 | T58: =R58*79.999/100 -> 79.999 | U58: =R58*69.999/100 -> 69.999 | V58: =R58*59.999/100 -> 59.999 | W58: 0.1
Q59: iIHT2 | R59: 120 | S59: =R59*89.999/100 -> 107.9988 | T59: =R59*79.999/100 -> 95.9988 | U59: =R59*69.999/100 -> 83.9988 | V59: =R59*59.999/100 -> 71.9988 | W59: 0.1
Q60: IHT3 | R60: 150 | S60: 134.9985 | T60: =R60*79.999/100 -> 119.9985 | U60: =R60*69.999/100 -> 104.9985 | V60: =R60*59.999/100 -> 89.9985 | W60: 0.1

Sheet 02
G1: IHT TS | H1: HWT
B5: IHT TS | G5: COUNTRY LOGO
A6: Organisation | B6: ='Fiche organisateur N2'!F5 -> 0
A7: Ville | B7: ='Fiche organisateur N2'!F6 -> 0 | C7: Date : | E7: ='Fiche organisateur N2'!$H$8 -> 0
A8: Contact : | B8: 0
A9: Propriètaire | B9: ='Fiche organisateur N2'!$C$18 -> 0 | C9: Race et sexe | E9: ='Fiche organisateur N2'!$G$18 -> 0
A10: Conducteur | B10: ='Fiche organisateur N2'!$D$18 -> 0 | C10: Né | E10: ='Fiche organisateur N2'!$K$18 -> 0
A11: Nom du chien | B11: ='Fiche organisateur N2'!$E$18 -> 0 | C11: PEDIGREE | E11: ='Fiche organisateur N2'!$J$18 -> 0
A12: Affixe | B12: ='Fiche organisateur N2'!$F$18 -> 0 | C12: Identifiant | E12: ='Fiche organisateur N2'!$L$18 -> 0
A14: for the country---> | E14: ='00'!E14 -> 0 | G14: ='00'!G14 -> 0 | I14: ='00'!I14 -> 0 | K14: ='00'!K14 -> 0
A15: EXERCISES | B15: OBSERVATIONS | C15: Mini | D15: SCORE | E15: ='00'!E15 -> Control of the flock | G15: ='00'!G15 -> MOVING | I15: ='00'!I15 -> DIFFICULT PASSAGES | K15: ='00'!K15 -> BEHAVIOUR
A16: ='00'!A16 -> 0 | D16: =IF(COUNT(E16:L16)=0,"-",E16+G16+I16+K16-C16) -> 0 | E16: ='00'!E16 -> 0 | G16: ='00'!G16 -> 0 | I16: ='00'!I16 -> 0 | K16: ='00'!K16 -> 0
A17: 0 | D17: 0 | E17: ='00'!E17 -> 0 | G17: ='00'!G17 -> 0 | I17: ='00'!I17 -> 0 | K17: ='00'!K17 -> 0
A18: ='00'!A18 -> 0 | D18: 0 | E18: ='00'!E18 -> 0 | G18: ='00'!G18 -> 0 | I18: ='00'!I18 -> 0 | K18: ='00'!K18 -> 0
A19: ='00'!A19 -> 0 | D19: 0 | E19: ='00'!E19 -> 0 | G19: ='00'!G19 -> 0 | I19: ='00'!I19 -> 0 | K19: ='00'!K19 -> 0
A20: ='00'!A20 -> 0 | D20: 0 | E20: ='00'!E20 -> 0 | G20: ='00'!G20 -> 0 | I20: ='00'!I20 -> 0 | K20: ='00'!K20 -> 0
A21: ='00'!A21 -> 0 | D21: 0 | E21: ='00'!E21 -> 0 | G21: ='00'!G21 -> 0 | I21: ='00'!I21 -> 0 | K21: ='00'!K21 -> 0
A22: ='00'!A22 -> 0 | D22: 0 | E22: ='00'!E22 -> 0 | G22: ='00'!G22 -> 0 | I22: ='00'!I22 -> 0 | K22: ='00'!K22 -> 0
A23: ='00'!A23 -> 0 | D23: 0 | E23: ='00'!E23 -> 0 | G23: ='00'!G23 -> 0 | I23: ='00'!I23 -> 0 | K23: ='00'!K23 -> 0
A24: ='00'!A24 -> 0 | D24: 0 | E24: ='00'!E24 -> 0 | G24: ='00'!G24 -> 0 | I24: ='00'!I24 -> 0 | K24: ='00'!K24 -> 0
A25: ='00'!A25 -> 0 | D25: 0 | E25: ='00'!E25 -> 0 | G25: ='00'!G25 -> 0 | I25: ='00'!I25 -> 0 | K25: ='00'!K25 -> 0
A26: ='00'!A26 -> 0 | D26: 0 | E26: ='00'!E26 -> 0 | G26: ='00'!G26 -> 0 | I26: ='00'!I26 -> 0 | K26: ='00'!K26 -> 0
A27: ='00'!A27 -> 0 | D27: 0 | E27: ='00'!E27 -> 0 | G27: ='00'!G27 -> 0 | I27: ='00'!I27 -> 0 | K27: ='00'!K27 -> 0
A28: ='00'!A28 -> 0 | D28: 0 | E28: ='00'!E28 -> 0 | G28: ='00'!G28 -> 0 | I28: ='00'!I28 -> 0 | K28: ='00'!K28 -> 0
A29: ='00'!A29 -> 0 | D29: 0 | E29: ='00'!E29 -> 0 | G29: ='00'!G29 -> 0 | I29: ='00'!I29 -> 0 | K29: ='00'!K29 -> 0
A30: ='00'!A30 -> 0 | D30: 0 | E30: ='00'!E30 -> 0 | G30: ='00'!G30 -> 0 | I30: ='00'!I30 -> 0 | K30: ='00'!K30 -> 0
A31: ='00'!A31 -> 0 | D31: 0 | E31: ='00'!E31 -> 0 | G31: ='00'!G31 -> 0 | I31: ='00'!I31 -> 0 | K31: ='00'!K31 -> 0
A32: ='00'!A32 -> Aptitude naturelle | D32: 0 | E32: ='00'!E32 -> 0 | G32: ='00'!G32 -> 0 | I32: ='00'!I32 -> 0 | K32: ='00'!K32 -> 0
A33: ='00'!A33 -> Gentillesse | D33: 0 | E33: ='00'!E33 -> 0 | G33: ='00'!G33 -> 0 | I33: ='00'!I33 -> 0 | K33: ='00'!K33 -> 0
A34: ='00'!A34 -> Intelligence de l'execution | D34: 0 | E34: ='00'!E34 -> 0 | G34: ='00'!G34 -> 0 | I34: ='00'!I34 -> 0 | K34: ='00'!K34 -> 0
A35: ='00'!A35 -> Obéissance | D35: 0 | E35: ='00'!E35 -> 0 | G35: ='00'!G35 -> 0 | I35: ='00'!I35 -> 0 | K35: ='00'!K35 -> 0
A36: POINTS TOTAL | C36: =SUM(C16:C35) -> 0 | D36: =SUM(D16:D35) -> 0 | E36: ='00'!E36 -> 50 | G36: ='00'!G36 -> 30 | I36: ='00'!I36 -> 0 | K36: ='00'!K36 -> 20
A37: Détails des pénéalités | D37: 0 | E37: Pénalités en Négatif | I37: RANKING
A38: POINTS | B38: =IF((C36)=0,"-",D36+D37) -> - | C38: =IF(COUNT(D38:K38)=0,"-",D38+F38+H38+J38-B38) -> - | D38: EVALUATION | F38: =$L$55 -> - | I38: ='Rapport de concours '!N18 -> X | L38: =COUNT(S17:S34) -> 0
A39: CACIT / RCACIT / CACT / RCACT : | B39: . | D39: <== UPON JUDGE'S DECISION
A40: Observations : | Q40: 0
Q45: 48 | R45: IHT1 | S45: GUARDING | U45: 35
Q46: 49 | R46: IHT1 | S46: MOVING | U46: 45
Q47: 50 | R47: IHT1 | S47: DIFFICULT PASS | U47: 10
Q48: 51 | R48: IHT1 | S48: BEHAVIOUR | U48: 10
Q49: 52 | R49: IHT2 | S49: GUARDING | U49: 35
Q50: 53 | R50: IHT2 | S50: MOVING | U50: 55
Q51: 54 | R51: IHT2 | S51: DIFFICULT PASS | U51: 20
Q52: 55 | R52: IHT2 | S52: BEHAVIOUR | U52: 10
Q53: 56 | R53: IHT3 | S53: GUARDING | U53: 40
Q54: 57 | R54: IHT3 | S54: MOVING | U54: 70
L55: =IF(B38="-","-",IF(B38>S58,"EXCELLENT",IF(B38>T58,"TRES BON",IF(B38>U58,"BON",IF(B38>V58,"insuffisant",IF(B37>0.1,"insuffisant ","éliminé ")))))) -> - | Q55: 58 | R55: IHT3 | S55: DIFFICULT PASS | U55: 30
Q56: 59 | R56: IHT3 | S56: BEHAVIOUR | U56: 10
Q58: IHT1 | R58: 100 | S58: =R58*89.999/100 -> 89.999 | T58: =R58*79.999/100 -> 79.999 | U58: =R58*69.999/100 -> 69.999 | V58: =R58*59.999/100 -> 59.999 | W58: 0.1
Q59: iIHT2 | R59: 120 | S59: =R59*89.999/100 -> 107.9988 | T59: =R59*79.999/100 -> 95.9988 | U59: =R59*69.999/100 -> 83.9988 | V59: =R59*59.999/100 -> 71.9988 | W59: 0.1
Q60: IHT3 | R60: 150 | S60: 134.9985 | T60: =R60*79.999/100 -> 119.9985 | U60: =R60*69.999/100 -> 104.9985 | V60: =R60*59.999/100 -> 89.9985 | W60: 0.1

Sheet 03
G1: IHT TS | H1: HWT
B5: IHT TS | G5: COUNTRY LOGO
A6: Organisation | B6: ='Fiche organisateur N2'!F5 -> 0
A7: Ville | B7: ='Fiche organisateur N2'!F6 -> 0 | C7: Date : | E7: ='Fiche organisateur N2'!$H$8 -> 0
A8: Contact : | B8: 0
A9: Propriètaire | B9: ='Fiche organisateur N2'!$C$19 -> 0 | C9: Race et sexe | E9: ='Fiche organisateur N2'!$G$19 -> 0
A10: Conducteur | B10: ='Fiche organisateur N2'!$D$19 -> 0 | C10: Né | E10: ='Fiche organisateur N2'!$K$19 -> 0
A11: Nom du chien | B11: ='Fiche organisateur N2'!$E$19 -> 0 | C11: PEDIGREE | E11: ='Fiche organisateur N2'!$J$19 -> 0
A12: Affixe | B12: ='Fiche organisateur N2'!$F$19 -> 0 | C12: Identifiant | E12: ='Fiche organisateur N2'!$L$19 -> 0
A14: for the country---> | E14: ='00'!E14 -> 0 | G14: ='00'!G14 -> 0 | I14: ='00'!I14 -> 0 | K14: ='00'!K14 -> 0
A15: EXERCISES | B15: OBSERVATIONS | C15: Mini | D15: SCORE | E15: ='00'!E15 -> Control of the flock | G15: ='00'!G15 -> MOVING | I15: ='00'!I15 -> DIFFICULT PASSAGES | K15: ='00'!K15 -> BEHAVIOUR
A16: ='00'!A16 -> 0 | B16: ='00'!B16 -> 0 | D16: =IF(COUNT(E16:L16)=0,"-",E16+G16+I16+K16-C16) -> 0 | E16: ='00'!E16 -> 0 | G16: ='00'!G16 -> 0 | I16: ='00'!I16 -> 0 | K16: ='00'!K16 -> 0
A17: 0 | B17: 0 | D17: 0 | E17: ='00'!E17 -> 0 | G17: ='00'!G17 -> 0 | I17: ='00'!I17 -> 0 | K17: ='00'!K17 -> 0
A18: ='00'!A18 -> 0 | B18: ='00'!B18 -> 0 | D18: 0 | E18: ='00'!E18 -> 0 | G18: ='00'!G18 -> 0 | I18: ='00'!I18 -> 0 | K18: ='00'!K18 -> 0
A19: ='00'!A19 -> 0 | B19: ='00'!B19 -> 0 | D19: 0 | E19: ='00'!E19 -> 0 | G19: ='00'!G19 -> 0 | I19: ='00'!I19 -> 0 | K19: ='00'!K19 -> 0
A20: ='00'!A20 -> 0 | B20: ='00'!B20 -> 0 | D20: 0 | E20: ='00'!E20 -> 0 | G20: ='00'!G20 -> 0 | I20: ='00'!I20 -> 0 | K20: ='00'!K20 -> 0
A21: ='00'!A21 -> 0 | B21: ='00'!B21 -> 0 | D21: 0 | E21: ='00'!E21 -> 0 | G21: ='00'!G21 -> 0 | I21: ='00'!I21 -> 0 | K21: ='00'!K21 -> 0
A22: ='00'!A22 -> 0 | B22: ='00'!B22 -> 0 | D22: 0 | E22: ='00'!E22 -> 0 | G22: ='00'!G22 -> 0 | I22: ='00'!I22 -> 0 | K22: ='00'!K22 -> 0
A23: ='00'!A23 -> 0 | B23: ='00'!B23 -> 0 | D23: 0 | E23: ='00'!E23 -> 0 | G23: ='00'!G23 -> 0 | I23: ='00'!I23 -> 0 | K23: ='00'!K23 -> 0
A24: ='00'!A24 -> 0 | B24: ='00'!B24 -> 0 | D24: 0 | E24: ='00'!E24 -> 0 | G24: ='00'!G24 -> 0 | I24: ='00'!I24 -> 0 | K24: ='00'!K24 -> 0
A25: ='00'!A25 -> 0 | B25: ='00'!B25 -> 0 | D25: 0 | E25: ='00'!E25 -> 0 | G25: ='00'!G25 -> 0 | I25: ='00'!I25 -> 0 | K25: ='00'!K25 -> 0
A26: ='00'!A26 -> 0 | B26: ='00'!B26 -> 0 | D26: 0 | E26: ='00'!E26 -> 0 | G26: ='00'!G26 -> 0 | I26: ='00'!I26 -> 0 | K26: ='00'!K26 -> 0
A27: ='00'!A27 -> 0 | B27: ='00'!B27 -> 0 | D27: 0 | E27: ='00'!E27 -> 0 | G27: ='00'!G27 -> 0 | I27: ='00'!I27 -> 0 | K27: ='00'!K27 -> 0
A28: ='00'!A28 -> 0 | B28: ='00'!B28 -> 0 | D28: 0 | E28: ='00'!E28 -> 0 | G28: ='00'!G28 -> 0 | I28: ='00'!I28 -> 0 | K28: ='00'!K28 -> 0
A29: ='00'!A29 -> 0 | B29: ='00'!B29 -> 0 | D29: 0 | E29: ='00'!E29 -> 0 | G29: ='00'!G29 -> 0 | I29: ='00'!I29 -> 0 | K29: ='00'!K29 -> 0
A30: ='00'!A30 -> 0 | B30: ='00'!B30 -> 0 | D30: 0 | E30: ='00'!E30 -> 0 | G30: ='00'!G30 -> 0 | I30: ='00'!I30 -> 0 | K30: ='00'!K30 -> 0
A31: ='00'!A31 -> 0 | B31: ='00'!B31 -> 0 | D31: 0 | E31: ='00'!E31 -> 0 | G31: ='00'!G31 -> 0 | I31: ='00'!I31 -> 0 | K31: ='00'!K31 -> 0
A32: ='00'!A32 -> Aptitude naturelle | B32: ='00'!B32 -> 0 | D32: 0 | E32: ='00'!E32 -> 0 | G32: ='00'!G32 -> 0 | I32: ='00'!I32 -> 0 | K32: ='00'!K32 -> 0
A33: ='00'!A33 -> Gentillesse | B33: ='00'!B33 -> 0 | D33: 0 | E33: ='00'!E33 -> 0 | G33: ='00'!G33 -> 0 | I33: ='00'!I33 -> 0 | K33: ='00'!K33 -> 0
A34: ='00'!A34 -> Intelligence de l'execution | B34: ='00'!B34 -> 0 | D34: 0 | E34: ='00'!E34 -> 0 | G34: ='00'!G34 -> 0 | I34: ='00'!I34 -> 0 | K34: ='00'!K34 -> 0
A35: ='00'!A35 -> Obéissance | B35: ='00'!B35 -> 0 | D35: 0 | E35: ='00'!E35 -> 0 | G35: ='00'!G35 -> 0 | I35: ='00'!I35 -> 0 | K35: ='00'!K35 -> 0
A36: POINTS TOTAL | C36: =SUM(C16:C35) -> 0 | D36: =SUM(D16:D35) -> 0 | E36: ='00'!E36 -> 50 | G36: ='00'!G36 -> 30 | I36: ='00'!I36 -> 0 | K36: ='00'!K36 -> 20
A37: Détails des pénéalités | D37: 0 | E37: Pénalités en Négatif | I37: RANKING
A38: POINTS | B38: =IF((C36)=0,"-",D36+D37) -> - | C38: =IF(COUNT(D38:K38)=0,"-",D38+F38+H38+J38-B38) -> - | D38: EVALUATION | F38: =$L$55 -> - | I38: ='Rapport de concours '!N19 -> X | L38: =COUNT(S17:S34) -> 0
A39: CACIT / RCACIT / CACT / RCACT : | B39: . | D39: <== UPON JUDGE'S DECISION
A40: Observations : | Q40: 0
Q45: 48 | R45: IHT1 | S45: GUARDING | U45: 35
Q46: 49 | R46: IHT1 | S46: MOVING | U46: 45
Q47: 50 | R47: IHT1 | S47: DIFFICULT PASS | U47: 10
Q48: 51 | R48: IHT1 | S48: BEHAVIOUR | U48: 10
Q49: 52 | R49: IHT2 | S49: GUARDING | U49: 35
Q50: 53 | R50: IHT2 | S50: MOVING | U50: 55
Q51: 54 | R51: IHT2 | S51: DIFFICULT PASS | U51: 20
Q52: 55 | R52: IHT2 | S52: BEHAVIOUR | U52: 10
Q53: 56 | R53: IHT3 | S53: GUARDING | U53: 40
Q54: 57 | R54: IHT3 | S54: MOVING | U54: 70
L55: =IF(B38="-","-",IF(B38>S58,"EXCELLENT",IF(B38>T58,"TRES BON",IF(B38>U58,"BON",IF(B38>V58,"insuffisant",IF(B37>0.1,"insuffisant ","éliminé ")))))) -> - | Q55: 58 | R55: IHT3 | S55: DIFFICULT PASS | U55: 30
Q56: 59 | R56: IHT3 | S56: BEHAVIOUR | U56: 10
Q58: IHT1 | R58: 100 | S58: =R58*89.999/100 -> 89.999 | T58: =R58*79.999/100 -> 79.999 | U58: =R58*69.999/100 -> 69.999 | V58: =R58*59.999/100 -> 59.999 | W58: 0.1
Q59: iIHT2 | R59: 120 | S59: =R59*89.999/100 -> 107.9988 | T59: =R59*79.999/100 -> 95.9988 | U59: =R59*69.999/100 -> 83.9988 | V59: =R59*59.999/100 -> 71.9988 | W59: 0.1
Q60: IHT3 | R60: 150 | S60: 134.9985 | T60: =R60*79.999/100 -> 119.9985 | U60: =R60*69.999/100 -> 104.9985 | V60: =R60*59.999/100 -> 89.9985 | W60: 0.1

Sheet 04
G1: IHT TS | H1: HWT
B5: IHT TS | G5: COUNTRY LOGO
A6: Organisation | B6: ='Fiche organisateur N2'!F5 -> 0
A7: Ville | B7: ='Fiche organisateur N2'!F6 -> 0 | C7: Date : | E7: ='Fiche organisateur N2'!$H$8 -> 0
A8: Contact : | B8: 0
A9: Propriètaire | B9: ='Fiche organisateur N2'!$C$20 -> 0 | C9: Race et sexe | E9: ='Fiche organisateur N2'!$G$20 -> 0
A10: Conducteur | B10: ='Fiche organisateur N2'!$D$20 -> 0 | C10: Né | E10: ='Fiche organisateur N2'!$K$20 -> 0
A11: Nom du chien | B11: ='Fiche organisateur N2'!$E$20 -> 0 | C11: PEDIGREE | E11: ='Fiche organisateur N2'!$J$20 -> 0
A12: Affixe | B12: ='Fiche organisateur N2'!$F$20 -> 0 | C12: Identifiant | E12: ='Fiche organisateur N2'!$L$20 -> 0
A14: for the country---> | E14: ='00'!E14 -> 0 | G14: ='00'!G14 -> 0 | I14: ='00'!I14 -> 0 | K14: ='00'!K14 -> 0
A15: EXERCISES | B15: OBSERVATIONS | C15: Mini | D15: SCORE | E15: ='00'!E15 -> Control of the flock | G15: ='00'!G15 -> MOVING | I15: ='00'!I15 -> DIFFICULT PASSAGES | K15: ='00'!K15 -> BEHAVIOUR
A16: ='00'!A16 -> 0 | D16: =IF(COUNT(E16:L16)=0,"-",E16+G16+I16+K16-C16) -> 0 | E16: ='00'!E16 -> 0 | G16: ='00'!G16 -> 0 | I16: ='00'!I16 -> 0 | K16: ='00'!K16 -> 0
A17: 0 | D17: 0 | E17: ='00'!E17 -> 0 | G17: ='00'!G17 -> 0 | I17: ='00'!I17 -> 0 | K17: ='00'!K17 -> 0
A18: ='00'!A18 -> 0 | D18: 0 | E18: ='00'!E18 -> 0 | G18: ='00'!G18 -> 0 | I18: ='00'!I18 -> 0 | K18: ='00'!K18 -> 0
A19: ='00'!A19 -> 0 | D19: 0 | E19: ='00'!E19 -> 0 | G19: ='00'!G19 -> 0 | I19: ='00'!I19 -> 0 | K19: ='00'!K19 -> 0
A20: ='00'!A20 -> 0 | D20: 0 | E20: ='00'!E20 -> 0 | G20: ='00'!G20 -> 0 | I20: ='00'!I20 -> 0 | K20: ='00'!K20 -> 0
A21: ='00'!A21 -> 0 | D21: 0 | E21: ='00'!E21 -> 0 | G21: ='00'!G21 -> 0 | I21: ='00'!I21 -> 0 | K21: ='00'!K21 -> 0
A22: ='00'!A22 -> 0 | D22: 0 | E22: ='00'!E22 -> 0 | G22: ='00'!G22 -> 0 | I22: ='00'!I22 -> 0 | K22: ='00'!K22 -> 0
A23: ='00'!A23 -> 0 | D23: 0 | E23: ='00'!E23 -> 0 | G23: ='00'!G23 -> 0 | I23: ='00'!I23 -> 0 | K23: ='00'!K23 -> 0
A24: ='00'!A24 -> 0 | D24: 0 | E24: ='00'!E24 -> 0 | G24: ='00'!G24 -> 0 | I24: ='00'!I24 -> 0 | K24: ='00'!K24 -> 0
A25: ='00'!A25 -> 0 | D25: 0 | E25: ='00'!E25 -> 0 | G25: ='00'!G25 -> 0 | I25: ='00'!I25 -> 0 | K25: ='00'!K25 -> 0
A26: ='00'!A26 -> 0 | D26: 0 | E26: ='00'!E26 -> 0 | G26: ='00'!G26 -> 0 | I26: ='00'!I26 -> 0 | K26: ='00'!K26 -> 0
A27: ='00'!A27 -> 0 | D27: 0 | E27: ='00'!E27 -> 0 | G27: ='00'!G27 -> 0 | I27: ='00'!I27 -> 0 | K27: ='00'!K27 -> 0
A28: ='00'!A28 -> 0 | D28: 0 | E28: ='00'!E28 -> 0 | G28: ='00'!G28 -> 0 | I28: ='00'!I28 -> 0 | K28: ='00'!K28 -> 0
A29: ='00'!A29 -> 0 | D29: 0 | E29: ='00'!E29 -> 0 | G29: ='00'!G29 -> 0 | I29: ='00'!I29 -> 0 | K29: ='00'!K29 -> 0
A30: ='00'!A30 -> 0 | D30: 0 | E30: ='00'!E30 -> 0 | G30: ='00'!G30 -> 0 | I30: ='00'!I30 -> 0 | K30: ='00'!K30 -> 0
A31: ='00'!A31 -> 0 | D31: 0 | E31: ='00'!E31 -> 0 | G31: ='00'!G31 -> 0 | I31: ='00'!I31 -> 0 | K31: ='00'!K31 -> 0
A32: ='00'!A32 -> Aptitude naturelle | D32: 0 | E32: ='00'!E32 -> 0 | G32: ='00'!G32 -> 0 | I32: ='00'!I32 -> 0 | K32: ='00'!K32 -> 0
A33: ='00'!A33 -> Gentillesse | D33: 0 | E33: ='00'!E33 -> 0 | G33: ='00'!G33 -> 0 | I33: ='00'!I33 -> 0 | K33: ='00'!K33 -> 0
A34: ='00'!A34 -> Intelligence de l'execution | D34: 0 | E34: ='00'!E34 -> 0 | G34: ='00'!G34 -> 0 | I34: ='00'!I34 -> 0 | K34: ='00'!K34 -> 0
A35: ='00'!A35 -> Obéissance | D35: 0 | E35: ='00'!E35 -> 0 | G35: ='00'!G35 -> 0 | I35: ='00'!I35 -> 0 | K35: ='00'!K35 -> 0
A36: POINTS TOTAL | C36: =SUM(C16:C35) -> 0 | D36: =SUM(D16:D35) -> 0 | E36: ='00'!E36 -> 50 | G36: ='00'!G36 -> 30 | I36: ='00'!I36 -> 0 | K36: ='00'!K36 -> 20
A37: Détails des pénéalités | D37: 0 | E37: Pénalités en Négatif | I37: RANKING
A38: POINTS | B38: =IF((C36)=0,"-",D36+D37) -> - | C38: =IF(COUNT(D38:K38)=0,"-",D38+F38+H38+J38-B38) -> - | D38: EVALUATION | F38: =$L$55 -> - | I38: ='Rapport de concours '!N20 -> X | L38: =COUNT(S17:S34) -> 0
A39: CACIT / RCACIT / CACT / RCACT : | B39: . | D39: <== UPON JUDGE'S DECISION
A40: Observations : | Q40: 0
Q45: 48 | R45: IHT1 | S45: GUARDING | U45: 35
Q46: 49 | R46: IHT1 | S46: MOVING | U46: 45
Q47: 50 | R47: IHT1 | S47: DIFFICULT PASS | U47: 10
Q48: 51 | R48: IHT1 | S48: BEHAVIOUR | U48: 10
Q49: 52 | R49: IHT2 | S49: GUARDING | U49: 35
Q50: 53 | R50: IHT2 | S50: MOVING | U50: 55
Q51: 54 | R51: IHT2 | S51: DIFFICULT PASS | U51: 20
Q52: 55 | R52: IHT2 | S52: BEHAVIOUR | U52: 10
Q53: 56 | R53: IHT3 | S53: GUARDING | U53: 40
Q54: 57 | R54: IHT3 | S54: MOVING | U54: 70
L55: =IF(B38="-","-",IF(B38>S58,"EXCELLENT",IF(B38>T58,"TRES BON",IF(B38>U58,"BON",IF(B38>V58,"insuffisant",IF(B37>0.1,"insuffisant ","éliminé ")))))) -> - | Q55: 58 | R55: IHT3 | S55: DIFFICULT PASS | U55: 30
Q56: 59 | R56: IHT3 | S56: BEHAVIOUR | U56: 10
Q58: IHT1 | R58: 100 | S58: =R58*89.999/100 -> 89.999 | T58: =R58*79.999/100 -> 79.999 | U58: =R58*69.999/100 -> 69.999 | V58: =R58*59.999/100 -> 59.999 | W58: 0.1
Q59: iIHT2 | R59: 120 | S59: =R59*89.999/100 -> 107.9988 | T59: =R59*79.999/100 -> 95.9988 | U59: =R59*69.999/100 -> 83.9988 | V59: =R59*59.999/100 -> 71.9988 | W59: 0.1
Q60: IHT3 | R60: 150 | S60: 134.9985 | T60: =R60*79.999/100 -> 119.9985 | U60: =R60*69.999/100 -> 104.9985 | V60: =R60*59.999/100 -> 89.9985 | W60: 0.1

Sheet 05
G1: IHT TS | H1: HWT
B5: IHT TS | G5: COUNTRY LOGO
A6: Organisation | B6: ='Fiche organisateur N2'!F5 -> 0
A7: Ville | B7: ='Fiche organisateur N2'!F6 -> 0 | C7: Date : | E7: ='Fiche organisateur N2'!$H$8 -> 0
A8: Contact : | B8: 0
A9: Propriètaire | B9: ='Fiche organisateur N2'!$C$21 -> 0 | C9: Race et sexe | E9: ='Fiche organisateur N2'!$G$21 -> 0
A10: Conducteur | B10: ='Fiche organisateur N2'!$D$21 -> 0 | C10: Né | E10: ='Fiche organisateur N2'!$K$21 -> 0
A11: Nom du chien | B11: ='Fiche organisateur N2'!$E$21 -> 0 | C11: PEDIGREE | E11: ='Fiche organisateur N2'!$J$21 -> 0
A12: Affixe | B12: ='Fiche organisateur N2'!$F$21 -> 0 | C12: Identifiant | E12: ='Fiche organisateur N2'!$L$21 -> 0
A14: for the country--->
A15: EXERCISES | B15: OBSERVATIONS | C15: Mini | D15: SCORE | E15: GUARDING | G15: MOVING | I15: DIFFICULT PASSAGES | K15: BEHAVIOUR
A16: ='00'!A16 -> 0 | D16: =IF(COUNT(E16:L16)=0,"-",E16+G16+I16+K16-C16) -> 0 | E16: ='00'!E16 -> 0 | G16: ='00'!G16 -> 0 | I16: ='00'!I16 -> 0 | K16: ='00'!K16 -> 0
A17: 0 | D17: 0 | E17: ='00'!E17 -> 0 | G17: ='00'!G17 -> 0 | I17: ='00'!I17 -> 0 | K17: ='00'!K17 -> 0
A18: ='00'!A18 -> 0 | D18: 0 | E18: ='00'!E18 -> 0 | G18: ='00'!G18 -> 0 | I18: ='00'!I18 -> 0 | K18: ='00'!K18 -> 0
A19: ='00'!A19 -> 0 | D19: 0 | E19: ='00'!E19 -> 0 | G19: ='00'!G19 -> 0 | I19: ='00'!I19 -> 0 | K19: ='00'!K19 -> 0
A20: ='00'!A20 -> 0 | D20: 0 | E20: ='00'!E20 -> 0 | G20: ='00'!G20 -> 0 | I20: ='00'!I20 -> 0 | K20: ='00'!K20 -> 0
A21: ='00'!A21 -> 0 | D21: 0 | E21: ='00'!E21 -> 0 | G21: ='00'!G21 -> 0 | I21: ='00'!I21 -> 0 | K21: ='00'!K21 -> 0
A22: ='00'!A22 -> 0 | D22: 0 | E22: ='00'!E22 -> 0 | G22: ='00'!G22 -> 0 | I22: ='00'!I22 -> 0 | K22: ='00'!K22 -> 0
A23: ='00'!A23 -> 0 | D23: 0 | E23: ='00'!E23 -> 0 | G23: ='00'!G23 -> 0 | I23: ='00'!I23 -> 0 | K23: ='00'!K23 -> 0
A24: ='00'!A24 -> 0 | D24: 0 | E24: ='00'!E24 -> 0 | G24: ='00'!G24 -> 0 | I24: ='00'!I24 -> 0 | K24: ='00'!K24 -> 0
A25: ='00'!A25 -> 0 | D25: 0 | E25: ='00'!E25 -> 0 | G25: ='00'!G25 -> 0 | I25: ='00'!I25 -> 0 | K25: ='00'!K25 -> 0
A26: ='00'!A26 -> 0 | D26: 0 | E26: ='00'!E26 -> 0 | G26: ='00'!G26 -> 0 | I26: ='00'!I26 -> 0 | K26: ='00'!K26 -> 0
A27: ='00'!A27 -> 0 | D27: 0 | E27: ='00'!E27 -> 0 | G27: ='00'!G27 -> 0 | I27: ='00'!I27 -> 0 | K27: ='00'!K27 -> 0
A28: ='00'!A28 -> 0 | D28: 0 | E28: ='00'!E28 -> 0 | G28: ='00'!G28 -> 0 | I28: ='00'!I28 -> 0 | K28: ='00'!K28 -> 0
A29: ='00'!A29 -> 0 | D29: 0 | E29: ='00'!E29 -> 0 | G29: ='00'!G29 -> 0 | I29: ='00'!I29 -> 0 | K29: ='00'!K29 -> 0
A30: ='00'!A30 -> 0 | D30: 0 | E30: ='00'!E30 -> 0 | G30: ='00'!G30 -> 0 | I30: ='00'!I30 -> 0 | K30: ='00'!K30 -> 0
A31: ='00'!A31 -> 0 | D31: 0 | E31: ='00'!E31 -> 0 | G31: ='00'!G31 -> 0 | I31: ='00'!I31 -> 0 | K31: ='00'!K31 -> 0
A32: ='00'!A32 -> Aptitude naturelle | D32: 0 | E32: ='00'!E32 -> 0 | G32: ='00'!G32 -> 0 | I32: ='00'!I32 -> 0 | K32: ='00'!K32 -> 0
A33: ='00'!A33 -> Gentillesse | D33: 0 | E33: ='00'!E33 -> 0 | G33: ='00'!G33 -> 0 | I33: ='00'!I33 -> 0 | K33: ='00'!K33 -> 0
A34: ='00'!A34 -> Intelligence de l'execution | D34: 0 | E34: ='00'!E34 -> 0 | G34: ='00'!G34 -> 0 | I34: ='00'!I34 -> 0 | K34: ='00'!K34 -> 0
A35: ='00'!A35 -> Obéissance | D35: 0 | E35: ='00'!E35 -> 0 | G35: ='00'!G35 -> 0 | I35: ='00'!I35 -> 0 | K35: ='00'!K35 -> 0
A36: POINTS TOTAL | C36: =SUM(C16:C35) -> 0 | D36: =SUM(D16:D35) -> 0 | E36: ='00'!E36 -> 50 | G36: ='00'!G36 -> 30 | I36: ='00'!I36 -> 0 | K36: ='00'!K36 -> 20
A37: Détails des pénéalités | D37: 0 | E37: Pénalités en Négatif | I37: RANKING
A38: POINTS | B38: =IF((C36)=0,"-",D36+D37) -> - | C38: =IF(COUNT(D38:K38)=0,"-",D38+F38+H38+J38-B38) -> - | D38: EVALUATION | F38: =$L$55 -> - | I38: ='Rapport de concours '!N21 -> X | L38: =COUNT(S17:S34) -> 0
A39: CACIT / RCACIT / CACT / RCACT : | B39: . | D39: <== UPON JUDGE'S DECISION
A40: Observations : | Q40: 0
Q45: 48 | R45: IHT1 | S45: GUARDING | U45: 35
Q46: 49 | R46: IHT1 | S46: MOVING | U46: 45
Q47: 50 | R47: IHT1 | S47: DIFFICULT PASS | U47: 10
Q48: 51 | R48: IHT1 | S48: BEHAVIOUR | U48: 10
Q49: 52 | R49: IHT2 | S49: GUARDING | U49: 35
Q50: 53 | R50: IHT2 | S50: MOVING | U50: 55
Q51: 54 | R51: IHT2 | S51: DIFFICULT PASS | U51: 20
Q52: 55 | R52: IHT2 | S52: BEHAVIOUR | U52: 10
Q53: 56 | R53: IHT3 | S53: GUARDING | U53: 40
Q54: 57 | R54: IHT3 | S54: MOVING | U54: 70
L55: =IF(B38="-","-",IF(B38>S58,"EXCELLENT",IF(B38>T58,"TRES BON",IF(B38>U58,"BON",IF(B38>V58,"insuffisant",IF(B37>0.1,"insuffisant ","éliminé ")))))) -> - | Q55: 58 | R55: IHT3 | S55: DIFFICULT PASS | U55: 30
Q56: 59 | R56: IHT3 | S56: BEHAVIOUR | U56: 10
Q58: IHT1 | R58: 100 | S58: =R58*89.999/100 -> 89.999 | T58: =R58*79.999/100 -> 79.999 | U58: =R58*69.999/100 -> 69.999 | V58: =R58*59.999/100 -> 59.999 | W58: 0.1
Q59: iIHT2 | R59: 120 | S59: =R59*89.999/100 -> 107.9988 | T59: =R59*79.999/100 -> 95.9988 | U59: =R59*69.999/100 -> 83.9988 | V59: =R59*59.999/100 -> 71.9988 | W59: 0.1
Q60: IHT3 | R60: 150 | S60: 134.9985 | T60: =R60*79.999/100 -> 119.9985 | U60: =R60*69.999/100 -> 104.9985 | V60: =R60*59.999/100 -> 89.9985 | W60: 0.1

Sheet 06
G1: IHT TS | H1: HWT
B5: IHT TS | G5: COUNTRY LOGO
A6: Organisation | B6: ='Fiche organisateur N2'!F5 -> 0
A7: Ville | B7: ='Fiche organisateur N2'!F6 -> 0 | C7: Date : | E7: ='Fiche organisateur N2'!$H$8 -> 0
A8: Contact : | B8: 0
A9: Propriètaire | B9: ='Fiche organisateur N2'!$C$22 -> 0 | C9: Race et sexe | E9: ='Fiche organisateur N2'!$G$22 -> 0
A10: Conducteur | B10: ='Fiche organisateur N2'!$D$22 -> 0 | C10: Né | E10: ='Fiche organisateur N2'!$K$22 -> 0
A11: Nom du chien | B11: ='Fiche organisateur N2'!$E$22 -> 0 | C11: PEDIGREE | E11: ='Fiche organisateur N2'!$J$22 -> 0
A12: Affixe | B12: ='Fiche organisateur N2'!$F$22 -> 0 | C12: Identifiant | E12: ='Fiche organisateur N2'!$L$22 -> 0
A14: for the country--->
A15: EXERCISES | B15: OBSERVATIONS | C15: Mini | D15: SCORE | E15: GUARDING | G15: MOVING | I15: DIFFICULT PASSAGES | K15: BEHAVIOUR
A16: ='00'!A16 -> 0 | D16: =IF(COUNT(E16:L16)=0,"-",E16+G16+I16+K16-C16) -> 0 | E16: ='00'!E16 -> 0 | G16: ='00'!G16 -> 0 | I16: ='00'!I16 -> 0 | K16: ='00'!K16 -> 0
A17: 0 | D17: 0 | E17: ='00'!E17 -> 0 | G17: ='00'!G17 -> 0 | I17: ='00'!I17 -> 0 | K17: ='00'!K17 -> 0
A18: ='00'!A18 -> 0 | D18: 0 | E18: ='00'!E18 -> 0 | G18: ='00'!G18 -> 0 | I18: ='00'!I18 -> 0 | K18: ='00'!K18 -> 0
A19: ='00'!A19 -> 0 | D19: 0 | E19: ='00'!E19 -> 0 | G19: ='00'!G19 -> 0 | I19: ='00'!I19 -> 0 | K19: ='00'!K19 -> 0
A20: ='00'!A20 -> 0 | D20: 0 | E20: ='00'!E20 -> 0 | G20: ='00'!G20 -> 0 | I20: ='00'!I20 -> 0 | K20: ='00'!K20 -> 0
A21: ='00'!A21 -> 0 | D21: 0 | E21: ='00'!E21 -> 0 | G21: ='00'!G21 -> 0 | I21: ='00'!I21 -> 0 | K21: ='00'!K21 -> 0
A22: ='00'!A22 -> 0 | D22: 0 | E22: ='00'!E22 -> 0 | G22: ='00'!G22 -> 0 | I22: ='00'!I22 -> 0 | K22: ='00'!K22 -> 0
A23: ='00'!A23 -> 0 | D23: 0 | E23: ='00'!E23 -> 0 | G23: ='00'!G23 -> 0 | I23: ='00'!I23 -> 0 | K23: ='00'!K23 -> 0
A24: ='00'!A24 -> 0 | D24: 0 | E24: ='00'!E24 -> 0 | G24: ='00'!G24 -> 0 | I24: ='00'!I24 -> 0 | K24: ='00'!K24 -> 0
A25: ='00'!A25 -> 0 | D25: 0 | E25: ='00'!E25 -> 0 | G25: ='00'!G25 -> 0 | I25: ='00'!I25 -> 0 | K25: ='00'!K25 -> 0
A26: ='00'!A26 -> 0 | D26: 0 | E26: ='00'!E26 -> 0 | G26: ='00'!G26 -> 0 | I26: ='00'!I26 -> 0 | K26: ='00'!K26 -> 0
A27: ='00'!A27 -> 0 | D27: 0 | E27: ='00'!E27 -> 0 | G27: ='00'!G27 -> 0 | I27: ='00'!I27 -> 0 | K27: ='00'!K27 -> 0
A28: ='00'!A28 -> 0 | D28: 0 | E28: ='00'!E28 -> 0 | G28: ='00'!G28 -> 0 | I28: ='00'!I28 -> 0 | K28: ='00'!K28 -> 0
A29: ='00'!A29 -> 0 | D29: 0 | E29: ='00'!E29 -> 0 | G29: ='00'!G29 -> 0 | I29: ='00'!I29 -> 0 | K29: ='00'!K29 -> 0
A30: ='00'!A30 -> 0 | D30: 0 | E30: ='00'!E30 -> 0 | G30: ='00'!G30 -> 0 | I30: ='00'!I30 -> 0 | K30: ='00'!K30 -> 0
A31: ='00'!A31 -> 0 | D31: 0 | E31: ='00'!E31 -> 0 | G31: ='00'!G31 -> 0 | I31: ='00'!I31 -> 0 | K31: ='00'!K31 -> 0
A32: ='00'!A32 -> Aptitude naturelle | D32: 0 | E32: ='00'!E32 -> 0 | G32: ='00'!G32 -> 0 | I32: ='00'!I32 -> 0 | K32: ='00'!K32 -> 0
A33: ='00'!A33 -> Gentillesse | D33: 0 | E33: ='00'!E33 -> 0 | G33: ='00'!G33 -> 0 | I33: ='00'!I33 -> 0 | K33: ='00'!K33 -> 0
A34: ='00'!A34 -> Intelligence de l'execution | D34: 0 | E34: ='00'!E34 -> 0 | G34: ='00'!G34 -> 0 | I34: ='00'!I34 -> 0 | K34: ='00'!K34 -> 0
A35: ='00'!A35 -> Obéissance | D35: 0 | E35: ='00'!E35 -> 0 | G35: ='00'!G35 -> 0 | I35: ='00'!I35 -> 0 | K35: ='00'!K35 -> 0
A36: POINTS TOTAL | C36: =SUM(C16:C35) -> 0 | D36: =SUM(D16:D35) -> 0 | E36: ='00'!E36 -> 50 | G36: ='00'!G36 -> 30 | I36: ='00'!I36 -> 0 | K36: ='00'!K36 -> 20
A37: Détails des pénéalités | D37: 0 | E37: Pénalités en Négatif | I37: RANKING
A38: POINTS | B38: =IF((C36)=0,"-",D36+D37) -> - | C38: =IF(COUNT(D38:K38)=0,"-",D38+F38+H38+J38-B38) -> - | D38: EVALUATION | F38: =$L$55 -> - | I38: ='Rapport de concours '!N22 -> X | L38: =COUNT(S17:S34) -> 0
A39: CACIT / RCACIT / CACT / RCACT : | B39: . | D39: <== UPON JUDGE'S DECISION
A40: Observations : | Q40: 0
Q45: 48 | R45: IHT1 | S45: GUARDING | U45: 35
Q46: 49 | R46: IHT1 | S46: MOVING | U46: 45
Q47: 50 | R47: IHT1 | S47: DIFFICULT PASS | U47: 10
Q48: 51 | R48: IHT1 | S48: BEHAVIOUR | U48: 10
Q49: 52 | R49: IHT2 | S49: GUARDING | U49: 35
Q50: 53 | R50: IHT2 | S50: MOVING | U50: 55
Q51: 54 | R51: IHT2 | S51: DIFFICULT PASS | U51: 20
Q52: 55 | R52: IHT2 | S52: BEHAVIOUR | U52: 10
Q53: 56 | R53: IHT3 | S53: GUARDING | U53: 40
Q54: 57 | R54: IHT3 | S54: MOVING | U54: 70
L55: =IF(B38="-","-",IF(B38>S58,"EXCELLENT",IF(B38>T58,"TRES BON",IF(B38>U58,"BON",IF(B38>V58,"insuffisant",IF(B37>0.1,"insuffisant ","éliminé ")))))) -> - | Q55: 58 | R55: IHT3 | S55: DIFFICULT PASS | U55: 30
Q56: 59 | R56: IHT3 | S56: BEHAVIOUR | U56: 10
Q58: IHT1 | R58: 100 | S58: =R58*89.999/100 -> 89.999 | T58: =R58*79.999/100 -> 79.999 | U58: =R58*69.999/100 -> 69.999 | V58: =R58*59.999/100 -> 59.999 | W58: 0.1
Q59: iIHT2 | R59: 120 | S59: =R59*89.999/100 -> 107.9988 | T59: =R59*79.999/100 -> 95.9988 | U59: =R59*69.999/100 -> 83.9988 | V59: =R59*59.999/100 -> 71.9988 | W59: 0.1
Q60: IHT3 | R60: 150 | S60: 134.9985 | T60: =R60*79.999/100 -> 119.9985 | U60: =R60*69.999/100 -> 104.9985 | V60: =R60*59.999/100 -> 89.9985 | W60: 0.1

Sheet 07
G1: IHT TS | H1: HWT
B5: IHT TS | G5: COUNTRY LOGO
A6: Organisation | B6: ='Fiche organisateur N2'!F5 -> 0
A7: Ville | B7: ='Fiche organisateur N2'!F6 -> 0 | C7: Date : | E7: ='Fiche organisateur N2'!$H$8 -> 0
A8: Contact : | B8: 0
A9: Propriètaire | B9: ='Fiche organisateur N2'!$C$23 -> 0 | C9: Race et sexe | E9: ='Fiche organisateur N2'!$G$23 -> 0
A10: Conducteur | B10: ='Fiche organisateur N2'!$D$23 -> 0 | C10: Né | E10: ='Fiche organisateur N2'!$K$23 -> 0
A11: Nom du chien | B11: ='Fiche organisateur N2'!$E$23 -> 0 | C11: PEDIGREE | E11: ='Fiche organisateur N2'!$J$23 -> 0
A12: Affixe | B12: ='Fiche organisateur N2'!$F$23 -> 0 | C12: Identifiant | E12: ='Fiche organisateur N2'!$L$23 -> 0
A14: for the country--->
A15: EXERCISES | B15: OBSERVATIONS | C15: Mini | D15: SCORE | E15: GUARDING | G15: MOVING | I15: DIFFICULT PASSAGES | K15: BEHAVIOUR
A16: ='00'!A16 -> 0 | D16: =IF(COUNT(E16:L16)=0,"-",E16+G16+I16+K16-C16) -> 0 | E16: ='00'!E16 -> 0 | G16: ='00'!G16 -> 0 | I16: ='00'!I16 -> 0 | K16: ='00'!K16 -> 0
A17: 0 | D17: 0 | E17: ='00'!E17 -> 0 | G17: ='00'!G17 -> 0 | I17: ='00'!I17 -> 0 | K17: ='00'!K17 -> 0
A18: ='00'!A18 -> 0 | D18: 0 | E18: ='00'!E18 -> 0 | G18: ='00'!G18 -> 0 | I18: ='00'!I18 -> 0 | K18: ='00'!K18 -> 0
A19: ='00'!A19 -> 0 | D19: 0 | E19: ='00'!E19 -> 0 | G19: ='00'!G19 -> 0 | I19: ='00'!I19 -> 0 | K19: ='00'!K19 -> 0
A20: ='00'!A20 -> 0 | D20: 0 | E20: ='00'!E20 -> 0 | G20: ='00'!G20 -> 0 | I20: ='00'!I20 -> 0 | K20: ='00'!K20 -> 0
A21: ='00'!A21 -> 0 | D21: 0 | E21: ='00'!E21 -> 0 | G21: ='00'!G21 -> 0 | I21: ='00'!I21 -> 0 | K21: ='00'!K21 -> 0
A22: ='00'!A22 -> 0 | D22: 0 | E22: ='00'!E22 -> 0 | G22: ='00'!G22 -> 0 | I22: ='00'!I22 -> 0 | K22: ='00'!K22 -> 0
A23: ='00'!A23 -> 0 | D23: 0 | E23: ='00'!E23 -> 0 | G23: ='00'!G23 -> 0 | I23: ='00'!I23 -> 0 | K23: ='00'!K23 -> 0
A24: ='00'!A24 -> 0 | D24: 0 | E24: ='00'!E24 -> 0 | G24: ='00'!G24 -> 0 | I24: ='00'!I24 -> 0 | K24: ='00'!K24 -> 0
A25: ='00'!A25 -> 0 | D25: 0 | E25: ='00'!E25 -> 0 | G25: ='00'!G25 -> 0 | I25: ='00'!I25 -> 0 | K25: ='00'!K25 -> 0
A26: ='00'!A26 -> 0 | D26: 0 | E26: ='00'!E26 -> 0 | G26: ='00'!G26 -> 0 | I26: ='00'!I26 -> 0 | K26: ='00'!K26 -> 0
A27: ='00'!A27 -> 0 | D27: 0 | E27: ='00'!E27 -> 0 | G27: ='00'!G27 -> 0 | I27: ='00'!I27 -> 0 | K27: ='00'!K27 -> 0
A28: ='00'!A28 -> 0 | D28: 0 | E28: ='00'!E28 -> 0 | G28: ='00'!G28 -> 0 | I28: ='00'!I28 -> 0 | K28: ='00'!K28 -> 0
A29: ='00'!A29 -> 0 | D29: 0 | E29: ='00'!E29 -> 0 | G29: ='00'!G29 -> 0 | I29: ='00'!I29 -> 0 | K29: ='00'!K29 -> 0
A30: ='00'!A30 -> 0 | D30: 0 | E30: ='00'!E30 -> 0 | G30: ='00'!G30 -> 0 | I30: ='00'!I30 -> 0 | K30: ='00'!K30 -> 0
A31: ='00'!A31 -> 0 | D31: 0 | E31: ='00'!E31 -> 0 | G31: ='00'!G31 -> 0 | I31: ='00'!I31 -> 0 | K31: ='00'!K31 -> 0
A32: ='00'!A32 -> Aptitude naturelle | D32: 0 | E32: ='00'!E32 -> 0 | G32: ='00'!G32 -> 0 | I32: ='00'!I32 -> 0 | K32: ='00'!K32 -> 0
A33: ='00'!A33 -> Gentillesse | D33: 0 | E33: ='00'!E33 -> 0 | G33: ='00'!G33 -> 0 | I33: ='00'!I33 -> 0 | K33: ='00'!K33 -> 0
A34: ='00'!A34 -> Intelligence de l'execution | D34: 0 | E34: ='00'!E34 -> 0 | G34: ='00'!G34 -> 0 | I34: ='00'!I34 -> 0 | K34: ='00'!K34 -> 0
A35: ='00'!A35 -> Obéissance | D35: 0 | E35: ='00'!E35 -> 0 | G35: ='00'!G35 -> 0 | I35: ='00'!I35 -> 0 | K35: ='00'!K35 -> 0
A36: POINTS TOTAL | C36: =SUM(C16:C35) -> 0 | D36: =SUM(D16:D35) -> 0 | E36: ='00'!E36 -> 50 | G36: ='00'!G36 -> 30 | I36: ='00'!I36 -> 0 | K36: ='00'!K36 -> 20
A37: Détails des pénéalités | D37: 0 | E37: Pénalités en Négatif | I37: RANKING
A38: POINTS | B38: =IF((C36)=0,"-",D36+D37) -> - | C38: =IF(COUNT(D38:K38)=0,"-",D38+F38+H38+J38-B38) -> - | D38: EVALUATION | F38: =$L$55 -> - | I38: ='Rapport de concours '!N23 -> X | L38: =COUNT(S17:S34) -> 0
A39: CACIT / RCACIT / CACT / RCACT : | B39: . | D39: <== UPON JUDGE'S DECISION
A40: Observations : | Q40: 0
Q45: 48 | R45: IHT1 | S45: GUARDING | U45: 35
Q46: 49 | R46: IHT1 | S46: MOVING | U46: 45
Q47: 50 | R47: IHT1 | S47: DIFFICULT PASS | U47: 10
Q48: 51 | R48: IHT1 | S48: BEHAVIOUR | U48: 10
Q49: 52 | R49: IHT2 | S49: GUARDING | U49: 35
Q50: 53 | R50: IHT2 | S50: MOVING | U50: 55
Q51: 54 | R51: IHT2 | S51: DIFFICULT PASS | U51: 20
Q52: 55 | R52: IHT2 | S52: BEHAVIOUR | U52: 10
Q53: 56 | R53: IHT3 | S53: GUARDING | U53: 40
Q54: 57 | R54: IHT3 | S54: MOVING | U54: 70
L55: =IF(B38="-","-",IF(B38>S58,"EXCELLENT",IF(B38>T58,"TRES BON",IF(B38>U58,"BON",IF(B38>V58,"insuffisant",IF(B37>0.1,"insuffisant ","éliminé ")))))) -> - | Q55: 58 | R55: IHT3 | S55: DIFFICULT PASS | U55: 30
Q56: 59 | R56: IHT3 | S56: BEHAVIOUR | U56: 10
Q58: IHT1 | R58: 100 | S58: =R58*89.999/100 -> 89.999 | T58: =R58*79.999/100 -> 79.999 | U58: =R58*69.999/100 -> 69.999 | V58: =R58*59.999/100 -> 59.999 | W58: 0.1
Q59: iIHT2 | R59: 120 | S59: =R59*89.999/100 -> 107.9988 | T59: =R59*79.999/100 -> 95.9988 | U59: =R59*69.999/100 -> 83.9988 | V59: =R59*59.999/100 -> 71.9988 | W59: 0.1
Q60: IHT3 | R60: 150 | S60: 134.9985 | T60: =R60*79.999/100 -> 119.9985 | U60: =R60*69.999/100 -> 104.9985 | V60: =R60*59.999/100 -> 89.9985 | W60: 0.1

Sheet 08
G1: IHT TS | H1: HWT
B5: IHT TS | G5: COUNTRY LOGO
A6: Organisation | B6: ='Fiche organisateur N2'!F5 -> 0
A7: Ville | B7: ='Fiche organisateur N2'!F6 -> 0 | C7: Date : | E7: ='Fiche organisateur N2'!$H$8 -> 0
A8: Contact : | B8: 0
A9: Propriètaire | B9: ='Fiche organisateur N2'!$C$24 -> 0 | C9: Race et sexe | E9: ='Fiche organisateur N2'!$G$24 -> 0
A10: Conducteur | B10: ='Fiche organisateur N2'!$D$24 -> 0 | C10: Né | E10: ='Fiche organisateur N2'!$K$24 -> 0
A11: Nom du chien | B11: ='Fiche organisateur N2'!$E$24 -> 0 | C11: PEDIGREE | E11: ='Fiche organisateur N2'!$J$24 -> 0
A12: Affixe | B12: ='Fiche organisateur N2'!$F$24 -> 0 | C12: Identifiant | E12: ='Fiche organisateur N2'!$L$24 -> 0
A14: for the country--->
A15: EXERCISES | B15: OBSERVATIONS | C15: Mini | D15: SCORE | E15: GUARDING | G15: MOVING | I15: DIFFICULT PASSAGES | K15: BEHAVIOUR
A16: ='00'!A16 -> 0 | D16: =IF(COUNT(E16:L16)=0,"-",E16+G16+I16+K16-C16) -> 0 | E16: ='00'!E16 -> 0 | G16: ='00'!G16 -> 0 | I16: ='00'!I16 -> 0 | K16: ='00'!K16 -> 0
A17: 0 | D17: 0 | E17: ='00'!E17 -> 0 | G17: ='00'!G17 -> 0 | I17: ='00'!I17 -> 0 | K17: ='00'!K17 -> 0
A18: ='00'!A18 -> 0 | D18: 0 | E18: ='00'!E18 -> 0 | G18: ='00'!G18 -> 0 | I18: ='00'!I18 -> 0 | K18: ='00'!K18 -> 0
A19: ='00'!A19 -> 0 | D19: 0 | E19: ='00'!E19 -> 0 | G19: ='00'!G19 -> 0 | I19: ='00'!I19 -> 0 | K19: ='00'!K19 -> 0
A20: ='00'!A20 -> 0 | D20: 0 | E20: ='00'!E20 -> 0 | G20: ='00'!G20 -> 0 | I20: ='00'!I20 -> 0 | K20: ='00'!K20 -> 0
A21: ='00'!A21 -> 0 | D21: 0 | E21: ='00'!E21 -> 0 | G21: ='00'!G21 -> 0 | I21: ='00'!I21 -> 0 | K21: ='00'!K21 -> 0
A22: ='00'!A22 -> 0 | D22: 0 | E22: ='00'!E22 -> 0 | G22: ='00'!G22 -> 0 | I22: ='00'!I22 -> 0 | K22: ='00'!K22 -> 0
A23: ='00'!A23 -> 0 | D23: 0 | E23: ='00'!E23 -> 0 | G23: ='00'!G23 -> 0 | I23: ='00'!I23 -> 0 | K23: ='00'!K23 -> 0
A24: ='00'!A24 -> 0 | D24: 0 | E24: ='00'!E24 -> 0 | G24: ='00'!G24 -> 0 | I24: ='00'!I24 -> 0 | K24: ='00'!K24 -> 0
A25: ='00'!A25 -> 0 | D25: 0 | E25: ='00'!E25 -> 0 | G25: ='00'!G25 -> 0 | I25: ='00'!I25 -> 0 | K25: ='00'!K25 -> 0
A26: ='00'!A26 -> 0 | D26: 0 | E26: ='00'!E26 -> 0 | G26: ='00'!G26 -> 0 | I26: ='00'!I26 -> 0 | K26: ='00'!K26 -> 0
A27: ='00'!A27 -> 0 | D27: 0 | E27: ='00'!E27 -> 0 | G27: ='00'!G27 -> 0 | I27: ='00'!I27 -> 0 | K27: ='00'!K27 -> 0
A28: ='00'!A28 -> 0 | D28: 0 | E28: ='00'!E28 -> 0 | G28: ='00'!G28 -> 0 | I28: ='00'!I28 -> 0 | K28: ='00'!K28 -> 0
A29: ='00'!A29 -> 0 | D29: 0 | E29: ='00'!E29 -> 0 | G29: ='00'!G29 -> 0 | I29: ='00'!I29 -> 0 | K29: ='00'!K29 -> 0
A30: ='00'!A30 -> 0 | D30: 0 | E30: ='00'!E30 -> 0 | G30: ='00'!G30 -> 0 | I30: ='00'!I30 -> 0 | K30: ='00'!K30 -> 0
A31: ='00'!A31 -> 0 | D31: 0 | E31: ='00'!E31 -> 0 | G31: ='00'!G31 -> 0 | I31: ='00'!I31 -> 0 | K31: ='00'!K31 -> 0
A32: ='00'!A32 -> Aptitude naturelle | D32: 0 | E32: ='00'!E32 -> 0 | G32: ='00'!G32 -> 0 | I32: ='00'!I32 -> 0 | K32: ='00'!K32 -> 0
A33: ='00'!A33 -> Gentillesse | D33: 0 | E33: ='00'!E33 -> 0 | G33: ='00'!G33 -> 0 | I33: ='00'!I33 -> 0 | K33: ='00'!K33 -> 0
A34: ='00'!A34 -> Intelligence de l'execution | D34: 0 | E34: ='00'!E34 -> 0 | G34: ='00'!G34 -> 0 | I34: ='00'!I34 -> 0 | K34: ='00'!K34 -> 0
A35: ='00'!A35 -> Obéissance | D35: 0 | E35: ='00'!E35 -> 0 | G35: ='00'!G35 -> 0 | I35: ='00'!I35 -> 0 | K35: ='00'!K35 -> 0
A36: POINTS TOTAL | C36: =SUM(C16:C35) -> 0 | D36: =SUM(D16:D35) -> 0 | E36: ='00'!E36 -> 50 | G36: ='00'!G36 -> 30 | I36: ='00'!I36 -> 0 | K36: ='00'!K36 -> 20
A37: Détails des pénéalités | D37: 0 | E37: Pénalités en Négatif | I37: RANKING
A38: POINTS | B38: =IF((C36)=0,"-",D36+D37) -> - | C38: =IF(COUNT(D38:K38)=0,"-",D38+F38+H38+J38-B38) -> - | D38: EVALUATION | F38: =$L$55 -> - | I38: ='Rapport de concours '!N24 -> X | L38: =COUNT(S17:S34) -> 0
A39: CACIT / RCACIT / CACT / RCACT : | B39: . | D39: <== UPON JUDGE'S DECISION
A40: Observations : | Q40: 0
Q45: 48 | R45: IHT1 | S45: GUARDING | U45: 35
Q46: 49 | R46: IHT1 | S46: MOVING | U46: 45
Q47: 50 | R47: IHT1 | S47: DIFFICULT PASS | U47: 10
Q48: 51 | R48: IHT1 | S48: BEHAVIOUR | U48: 10
Q49: 52 | R49: IHT2 | S49: GUARDING | U49: 35
Q50: 53 | R50: IHT2 | S50: MOVING | U50: 55
Q51: 54 | R51: IHT2 | S51: DIFFICULT PASS | U51: 20
Q52: 55 | R52: IHT2 | S52: BEHAVIOUR | U52: 10
Q53: 56 | R53: IHT3 | S53: GUARDING | U53: 40
Q54: 57 | R54: IHT3 | S54: MOVING | U54: 70
L55: =IF(B38="-","-",IF(B38>S58,"EXCELLENT",IF(B38>T58,"TRES BON",IF(B38>U58,"BON",IF(B38>V58,"insuffisant",IF(B37>0.1,"insuffisant ","éliminé ")))))) -> - | Q55: 58 | R55: IHT3 | S55: DIFFICULT PASS | U55: 30
Q56: 59 | R56: IHT3 | S56: BEHAVIOUR | U56: 10
Q58: IHT1 | R58: 100 | S58: =R58*89.999/100 -> 89.999 | T58: =R58*79.999/100 -> 79.999 | U58: =R58*69.999/100 -> 69.999 | V58: =R58*59.999/100 -> 59.999 | W58: 0.1
Q59: iIHT2 | R59: 120 | S59: =R59*89.999/100 -> 107.9988 | T59: =R59*79.999/100 -> 95.9988 | U59: =R59*69.999/100 -> 83.9988 | V59: =R59*59.999/100 -> 71.9988 | W59: 0.1
Q60: IHT3 | R60: 150 | S60: 134.9985 | T60: =R60*79.999/100 -> 119.9985 | U60: =R60*69.999/100 -> 104.9985 | V60: =R60*59.999/100 -> 89.9985 | W60: 0.1

Sheet 09
G1: IHT TS | H1: HWT
B5: IHT TS | G5: COUNTRY LOGO
A6: Organisation | B6: ='Fiche organisateur N2'!F5 -> 0
A7: Ville | B7: ='Fiche organisateur N2'!F6 -> 0 | C7: Date : | E7: ='Fiche organisateur N2'!$H$8 -> 0
A8: Contact : | B8: 0
A9: Propriètaire | B9: ='Fiche organisateur N2'!$C$25 -> 0 | C9: Race et sexe | E9: ='Fiche organisateur N2'!$G$25 -> 0
A10: Conducteur | B10: ='Fiche organisateur N2'!$D$25 -> 0 | C10: Né | E10: ='Fiche organisateur N2'!$K$25 -> 0
A11: Nom du chien | B11: ='Fiche organisateur N2'!$E$25 -> 0 | C11: PEDIGREE | E11: ='Fiche organisateur N2'!$J$25 -> 0
A12: Affixe | B12: ='Fiche organisateur N2'!$F$25 -> 0 | C12: Identifiant | E12: ='Fiche organisateur N2'!$L$25 -> 0
A14: for the country--->
A15: EXERCISES | B15: OBSERVATIONS | C15: Mini | D15: SCORE | E15: GUARDING | G15: MOVING | I15: DIFFICULT PASSAGES | K15: BEHAVIOUR
A16: ='00'!A16 -> 0 | D16: =IF(COUNT(E16:L16)=0,"-",E16+G16+I16+K16-C16) -> 0 | E16: ='00'!E16 -> 0 | G16: ='00'!G16 -> 0 | I16: ='00'!I16 -> 0 | K16: ='00'!K16 -> 0
A17: 0 | D17: 0 | E17: ='00'!E17 -> 0 | G17: ='00'!G17 -> 0 | I17: ='00'!I17 -> 0 | K17: ='00'!K17 -> 0
A18: ='00'!A18 -> 0 | D18: 0 | E18: ='00'!E18 -> 0 | G18: ='00'!G18 -> 0 | I18: ='00'!I18 -> 0 | K18: ='00'!K18 -> 0
A19: ='00'!A19 -> 0 | D19: 0 | E19: ='00'!E19 -> 0 | G19: ='00'!G19 -> 0 | I19: ='00'!I19 -> 0 | K19: ='00'!K19 -> 0
A20: ='00'!A20 -> 0 | D20: 0 | E20: ='00'!E20 -> 0 | G20: ='00'!G20 -> 0 | I20: ='00'!I20 -> 0 | K20: ='00'!K20 -> 0
A21: ='00'!A21 -> 0 | D21: 0 | E21: ='00'!E21 -> 0 | G21: ='00'!G21 -> 0 | I21: ='00'!I21 -> 0 | K21: ='00'!K21 -> 0
A22: ='00'!A22 -> 0 | D22: 0 | E22: ='00'!E22 -> 0 | G22: ='00'!G22 -> 0 | I22: ='00'!I22 -> 0 | K22: ='00'!K22 -> 0
A23: ='00'!A23 -> 0 | D23: 0 | E23: ='00'!E23 -> 0 | G23: ='00'!G23 -> 0 | I23: ='00'!I23 -> 0 | K23: ='00'!K23 -> 0
A24: ='00'!A24 -> 0 | D24: 0 | E24: ='00'!E24 -> 0 | G24: ='00'!G24 -> 0 | I24: ='00'!I24 -> 0 | K24: ='00'!K24 -> 0
A25: ='00'!A25 -> 0 | D25: 0 | E25: ='00'!E25 -> 0 | G25: ='00'!G25 -> 0 | I25: ='00'!I25 -> 0 | K25: ='00'!K25 -> 0
A26: ='00'!A26 -> 0 | D26: 0 | E26: ='00'!E26 -> 0 | G26: ='00'!G26 -> 0 | I26: ='00'!I26 -> 0 | K26: ='00'!K26 -> 0
A27: ='00'!A27 -> 0 | D27: 0 | E27: ='00'!E27 -> 0 | G27: ='00'!G27 -> 0 | I27: ='00'!I27 -> 0 | K27: ='00'!K27 -> 0
A28: ='00'!A28 -> 0 | D28: 0 | E28: ='00'!E28 -> 0 | G28: ='00'!G28 -> 0 | I28: ='00'!I28 -> 0 | K28: ='00'!K28 -> 0
A29: ='00'!A29 -> 0 | D29: 0 | E29: ='00'!E29 -> 0 | G29: ='00'!G29 -> 0 | I29: ='00'!I29 -> 0 | K29: ='00'!K29 -> 0
A30: ='00'!A30 -> 0 | D30: 0 | E30: ='00'!E30 -> 0 | G30: ='00'!G30 -> 0 | I30: ='00'!I30 -> 0 | K30: ='00'!K30 -> 0
A31: ='00'!A31 -> 0 | D31: 0 | E31: ='00'!E31 -> 0 | G31: ='00'!G31 -> 0 | I31: ='00'!I31 -> 0 | K31: ='00'!K31 -> 0
A32: ='00'!A32 -> Aptitude naturelle | D32: 0 | E32: ='00'!E32 -> 0 | G32: ='00'!G32 -> 0 | I32: ='00'!I32 -> 0 | K32: ='00'!K32 -> 0
A33: ='00'!A33 -> Gentillesse | D33: 0 | E33: ='00'!E33 -> 0 | G33: ='00'!G33 -> 0 | I33: ='00'!I33 -> 0 | K33: ='00'!K33 -> 0
A34: ='00'!A34 -> Intelligence de l'execution | D34: 0 | E34: ='00'!E34 -> 0 | G34: ='00'!G34 -> 0 | I34: ='00'!I34 -> 0 | K34: ='00'!K34 -> 0
A35: ='00'!A35 -> Obéissance | D35: 0 | E35: ='00'!E35 -> 0 | G35: ='00'!G35 -> 0 | I35: ='00'!I35 -> 0 | K35: ='00'!K35 -> 0
A36: POINTS TOTAL | C36: =SUM(C16:C35) -> 0 | D36: =SUM(D16:D35) -> 0 | E36: ='00'!E36 -> 50 | G36: ='00'!G36 -> 30 | I36: ='00'!I36 -> 0 | K36: ='00'!K36 -> 20
A37: Détails des pénéalités | D37: 0 | E37: Pénalités en Négatif | I37: RANKING
A38: POINTS | B38: =IF((C36)=0,"-",D36+D37) -> - | C38: =IF(COUNT(D38:K38)=0,"-",D38+F38+H38+J38-B38) -> - | D38: EVALUATION | F38: =$L$55 -> - | I38: ='Rapport de concours '!N25 -> X | L38: =COUNT(S17:S34) -> 0
A39: CACIT / RCACIT / CACT / RCACT : | B39: . | D39: <== UPON JUDGE'S DECISION
A40: Observations : | Q40: 0
Q45: 48 | R45: IHT1 | S45: GUARDING | U45: 35
Q46: 49 | R46: IHT1 | S46: MOVING | U46: 45
Q47: 50 | R47: IHT1 | S47: DIFFICULT PASS | U47: 10
Q48: 51 | R48: IHT1 | S48: BEHAVIOUR | U48: 10
Q49: 52 | R49: IHT2 | S49: GUARDING | U49: 35
Q50: 53 | R50: IHT2 | S50: MOVING | U50: 55
Q51: 54 | R51: IHT2 | S51: DIFFICULT PASS | U51: 20
Q52: 55 | R52: IHT2 | S52: BEHAVIOUR | U52: 10
Q53: 56 | R53: IHT3 | S53: GUARDING | U53: 40
Q54: 57 | R54: IHT3 | S54: MOVING | U54: 70
L55: =IF(B38="-","-",IF(B38>S58,"EXCELLENT",IF(B38>T58,"TRES BON",IF(B38>U58,"BON",IF(B38>V58,"insuffisant",IF(B37>0.1,"insuffisant ","éliminé ")))))) -> - | Q55: 58 | R55: IHT3 | S55: DIFFICULT PASS | U55: 30
Q56: 59 | R56: IHT3 | S56: BEHAVIOUR | U56: 10
Q58: IHT1 | R58: 100 | S58: =R58*89.999/100 -> 89.999 | T58: =R58*79.999/100 -> 79.999 | U58: =R58*69.999/100 -> 69.999 | V58: =R58*59.999/100 -> 59.999 | W58: 0.1
Q59: iIHT2 | R59: 120 | S59: =R59*89.999/100 -> 107.9988 | T59: =R59*79.999/100 -> 95.9988 | U59: =R59*69.999/100 -> 83.9988 | V59: =R59*59.999/100 -> 71.9988 | W59: 0.1
Q60: IHT3 | R60: 150 | S60: 134.9985 | T60: =R60*79.999/100 -> 119.9985 | U60: =R60*69.999/100 -> 104.9985 | V60: =R60*59.999/100 -> 89.9985 | W60: 0.1

Sheet 10
G1: IHT TS | H1: HWT
B5: IHT TS | G5: COUNTRY LOGO
A6: Organisation | B6: ='Fiche organisateur N2'!F5 -> 0
A7: Ville | B7: ='Fiche organisateur N2'!F6 -> 0 | C7: Date : | E7: ='Fiche organisateur N2'!$H$8 -> 0
A8: Contact : | B8: 0
A9: Propriètaire | B9: ='Fiche organisateur N2'!$C$26 -> 0 | C9: Race et sexe | E9: ='Fiche organisateur N2'!$G$26 -> 0
A10: Conducteur | B10: ='Fiche organisateur N2'!$D$26 -> 0 | C10: Né | E10: ='Fiche organisateur N2'!$K$26 -> 0
A11: Nom du chien | B11: ='Fiche organisateur N2'!$E$26 -> 0 | C11: PEDIGREE | E11: ='Fiche organisateur N2'!$J$17 -> 0
A12: Affixe | B12: ='Fiche organisateur N2'!$F$26 -> 0 | C12: Identifiant | E12: ='Fiche organisateur N2'!$L$17 -> 0
A14: for the country--->
A15: EXERCISES | B15: OBSERVATIONS | C15: Mini | D15: SCORE | E15: GUARDING | G15: MOVING | I15: DIFFICULT PASSAGES | K15: BEHAVIOUR
A16: ='00'!A16 -> 0 | D16: =IF(COUNT(E16:L16)=0,"-",E16+G16+I16+K16-C16) -> 0 | E16: ='00'!E16 -> 0 | G16: ='00'!G16 -> 0 | I16: ='00'!I16 -> 0 | K16: ='00'!K16 -> 0
A17: 0 | D17: 0 | E17: ='00'!E17 -> 0 | G17: ='00'!G17 -> 0 | I17: ='00'!I17 -> 0 | K17: ='00'!K17 -> 0
A18: ='00'!A18 -> 0 | D18: 0 | E18: ='00'!E18 -> 0 | G18: ='00'!G18 -> 0 | I18: ='00'!I18 -> 0 | K18: ='00'!K18 -> 0
A19: ='00'!A19 -> 0 | D19: 0 | E19: ='00'!E19 -> 0 | G19: ='00'!G19 -> 0 | I19: ='00'!I19 -> 0 | K19: ='00'!K19 -> 0
A20: ='00'!A20 -> 0 | D20: 0 | E20: ='00'!E20 -> 0 | G20: ='00'!G20 -> 0 | I20: ='00'!I20 -> 0 | K20: ='00'!K20 -> 0
A21: ='00'!A21 -> 0 | D21: 0 | E21: ='00'!E21 -> 0 | G21: ='00'!G21 -> 0 | I21: ='00'!I21 -> 0 | K21: ='00'!K21 -> 0
A22: ='00'!A22 -> 0 | D22: 0 | E22: ='00'!E22 -> 0 | G22: ='00'!G22 -> 0 | I22: ='00'!I22 -> 0 | K22: ='00'!K22 -> 0
A23: ='00'!A23 -> 0 | D23: 0 | E23: ='00'!E23 -> 0 | G23: ='00'!G23 -> 0 | I23: ='00'!I23 -> 0 | K23: ='00'!K23 -> 0
A24: ='00'!A24 -> 0 | D24: 0 | E24: ='00'!E24 -> 0 | G24: ='00'!G24 -> 0 | I24: ='00'!I24 -> 0 | K24: ='00'!K24 -> 0
A25: ='00'!A25 -> 0 | D25: 0 | E25: ='00'!E25 -> 0 | G25: ='00'!G25 -> 0 | I25: ='00'!I25 -> 0 | K25: ='00'!K25 -> 0
A26: ='00'!A26 -> 0 | D26: 0 | E26: ='00'!E26 -> 0 | G26: ='00'!G26 -> 0 | I26: ='00'!I26 -> 0 | K26: ='00'!K26 -> 0
A27: ='00'!A27 -> 0 | D27: 0 | E27: ='00'!E27 -> 0 | G27: ='00'!G27 -> 0 | I27: ='00'!I27 -> 0 | K27: ='00'!K27 -> 0
A28: ='00'!A28 -> 0 | D28: 0 | E28: ='00'!E28 -> 0 | G28: ='00'!G28 -> 0 | I28: ='00'!I28 -> 0 | K28: ='00'!K28 -> 0
A29: ='00'!A29 -> 0 | D29: 0 | E29: ='00'!E29 -> 0 | G29: ='00'!G29 -> 0 | I29: ='00'!I29 -> 0 | K29: ='00'!K29 -> 0
A30: ='00'!A30 -> 0 | D30: 0 | E30: ='00'!E30 -> 0 | G30: ='00'!G30 -> 0 | I30: ='00'!I30 -> 0 | K30: ='00'!K30 -> 0
A31: ='00'!A31 -> 0 | D31: 0 | E31: ='00'!E31 -> 0 | G31: ='00'!G31 -> 0 | I31: ='00'!I31 -> 0 | K31: ='00'!K31 -> 0
A32: ='00'!A32 -> Aptitude naturelle | D32: 0 | E32: ='00'!E32 -> 0 | G32: ='00'!G32 -> 0 | I32: ='00'!I32 -> 0 | K32: ='00'!K32 -> 0
A33: ='00'!A33 -> Gentillesse | D33: 0 | E33: ='00'!E33 -> 0 | G33: ='00'!G33 -> 0 | I33: ='00'!I33 -> 0 | K33: ='00'!K33 -> 0
A34: ='00'!A34 -> Intelligence de l'execution | D34: 0 | E34: ='00'!E34 -> 0 | G34: ='00'!G34 -> 0 | I34: ='00'!I34 -> 0 | K34: ='00'!K34 -> 0
A35: ='00'!A35 -> Obéissance | D35: 0 | E35: ='00'!E35 -> 0 | G35: ='00'!G35 -> 0 | I35: ='00'!I35 -> 0 | K35: ='00'!K35 -> 0
A36: POINTS TOTAL | C36: =SUM(C16:C35) -> 0 | D36: =SUM(D16:D35) -> 0 | E36: ='00'!E36 -> 50 | G36: ='00'!G36 -> 30 | I36: ='00'!I36 -> 0 | K36: ='00'!K36 -> 20
A37: Détails des pénéalités | D37: 0 | E37: Pénalités en Négatif | I37: RANKING
A38: POINTS | B38: =IF((C36)=0,"-",D36+D37) -> - | C38: =IF(COUNT(D38:K38)=0,"-",D38+F38+H38+J38-B38) -> - | D38: EVALUATION | F38: =$L$55 -> - | I38: ='Rapport de concours '!N26 -> X | L38: =COUNT(S17:S34) -> 0
A39: CACIT / RCACIT / CACT / RCACT : | B39: . | D39: <== UPON JUDGE'S DECISION
A40: Observations : | Q40: 0
Q45: 48 | R45: IHT1 | S45: GUARDING | U45: 35
Q46: 49 | R46: IHT1 | S46: MOVING | U46: 45
Q47: 50 | R47: IHT1 | S47: DIFFICULT PASS | U47: 10
Q48: 51 | R48: IHT1 | S48: BEHAVIOUR | U48: 10
Q49: 52 | R49: IHT2 | S49: GUARDING | U49: 35
Q50: 53 | R50: IHT2 | S50: MOVING | U50: 55
Q51: 54 | R51: IHT2 | S51: DIFFICULT PASS | U51: 20
Q52: 55 | R52: IHT2 | S52: BEHAVIOUR | U52: 10
Q53: 56 | R53: IHT3 | S53: GUARDING | U53: 40
Q54: 57 | R54: IHT3 | S54: MOVING | U54: 70
L55: =IF(B38="-","-",IF(B38>S58,"EXCELLENT",IF(B38>T58,"TRES BON",IF(B38>U58,"BON",IF(B38>V58,"insuffisant",IF(B37>0.1,"insuffisant ","éliminé ")))))) -> - | Q55: 58 | R55: IHT3 | S55: DIFFICULT PASS | U55: 30
Q56: 59 | R56: IHT3 | S56: BEHAVIOUR | U56: 10
Q58: IHT1 | R58: 100 | S58: =R58*89.999/100 -> 89.999 | T58: =R58*79.999/100 -> 79.999 | U58: =R58*69.999/100 -> 69.999 | V58: =R58*59.999/100 -> 59.999 | W58: 0.1
Q59: iIHT2 | R59: 120 | S59: =R59*89.999/100 -> 107.9988 | T59: =R59*79.999/100 -> 95.9988 | U59: =R59*69.999/100 -> 83.9988 | V59: =R59*59.999/100 -> 71.9988 | W59: 0.1
Q60: IHT3 | R60: 150 | S60: 134.9985 | T60: =R60*79.999/100 -> 119.9985 | U60: =R60*69.999/100 -> 104.9985 | V60: =R60*59.999/100 -> 89.9985 | W60: 0.1

Sheet 11
G1: IHT TS | H1: HWT
B5: IHT TS | G5: COUNTRY LOGO
A6: Organisation | B6: ='Fiche organisateur N2'!F5 -> 0
A7: Ville | B7: ='Fiche organisateur N2'!F6 -> 0 | C7: Date : | E7: ='Fiche organisateur N2'!$H$8 -> 0
A8: Contact : | B8: 0
A9: Propriètaire | B9: ='Fiche organisateur N2'!$C$27 -> 0 | C9: Race et sexe | E9: ='Fiche organisateur N2'!$G$27 -> 0
A10: Conducteur | B10: ='Fiche organisateur N2'!$D$27 -> 0 | C10: Né | E10: ='Fiche organisateur N2'!$K$27 -> 0
A11: Nom du chien | B11: ='Fiche organisateur N2'!$E$27 -> 0 | C11: PEDIGREE | E11: ='Fiche organisateur N2'!$J$27 -> 0
A12: Affixe | B12: ='Fiche organisateur N2'!$F$27 -> 0 | C12: Identifiant | E12: ='Fiche organisateur N2'!$L$17 -> 0
A14: for the country--->
A15: EXERCISES | B15: OBSERVATIONS | C15: Mini | D15: SCORE | E15: GUARDING | G15: MOVING | I15: DIFFICULT PASSAGES | K15: BEHAVIOUR
A16: ='00'!A16 -> 0 | D16: =IF(COUNT(E16:L16)=0,"-",E16+G16+I16+K16-C16) -> 0 | E16: ='00'!E16 -> 0 | G16: ='00'!G16 -> 0 | I16: ='00'!I16 -> 0 | K16: ='00'!K16 -> 0
A17: 0 | D17: 0 | E17: ='00'!E17 -> 0 | G17: ='00'!G17 -> 0 | I17: ='00'!I17 -> 0 | K17: ='00'!K17 -> 0
A18: ='00'!A18 -> 0 | D18: 0 | E18: ='00'!E18 -> 0 | G18: ='00'!G18 -> 0 | I18: ='00'!I18 -> 0 | K18: ='00'!K18 -> 0
A19: ='00'!A19 -> 0 | D19: 0 | E19: ='00'!E19 -> 0 | G19: ='00'!G19 -> 0 | I19: ='00'!I19 -> 0 | K19: ='00'!K19 -> 0
A20: ='00'!A20 -> 0 | D20: 0 | E20: ='00'!E20 -> 0 | G20: ='00'!G20 -> 0 | I20: ='00'!I20 -> 0 | K20: ='00'!K20 -> 0
A21: ='00'!A21 -> 0 | D21: 0 | E21: ='00'!E21 -> 0 | G21: ='00'!G21 -> 0 | I21: ='00'!I21 -> 0 | K21: ='00'!K21 -> 0
A22: ='00'!A22 -> 0 | D22: 0 | E22: ='00'!E22 -> 0 | G22: ='00'!G22 -> 0 | I22: ='00'!I22 -> 0 | K22: ='00'!K22 -> 0
A23: ='00'!A23 -> 0 | D23: 0 | E23: ='00'!E23 -> 0 | G23: ='00'!G23 -> 0 | I23: ='00'!I23 -> 0 | K23: ='00'!K23 -> 0
A24: ='00'!A24 -> 0 | D24: 0 | E24: ='00'!E24 -> 0 | G24: ='00'!G24 -> 0 | I24: ='00'!I24 -> 0 | K24: ='00'!K24 -> 0
A25: ='00'!A25 -> 0 | D25: 0 | E25: ='00'!E25 -> 0 | G25: ='00'!G25 -> 0 | I25: ='00'!I25 -> 0 | K25: ='00'!K25 -> 0
A26: ='00'!A26 -> 0 | D26: 0 | E26: ='00'!E26 -> 0 | G26: ='00'!G26 -> 0 | I26: ='00'!I26 -> 0 | K26: ='00'!K26 -> 0
A27: ='00'!A27 -> 0 | D27: 0 | E27: ='00'!E27 -> 0 | G27: ='00'!G27 -> 0 | I27: ='00'!I27 -> 0 | K27: ='00'!K27 -> 0
A28: ='00'!A28 -> 0 | D28: 0 | E28: ='00'!E28 -> 0 | G28: ='00'!G28 -> 0 | I28: ='00'!I28 -> 0 | K28: ='00'!K28 -> 0
A29: ='00'!A29 -> 0 | D29: 0 | E29: ='00'!E29 -> 0 | G29: ='00'!G29 -> 0 | I29: ='00'!I29 -> 0 | K29: ='00'!K29 -> 0
A30: ='00'!A30 -> 0 | D30: 0 | E30: ='00'!E30 -> 0 | G30: ='00'!G30 -> 0 | I30: ='00'!I30 -> 0 | K30: ='00'!K30 -> 0
A31: ='00'!A31 -> 0 | D31: 0 | E31: ='00'!E31 -> 0 | G31: ='00'!G31 -> 0 | I31: ='00'!I31 -> 0 | K31: ='00'!K31 -> 0
A32: ='00'!A32 -> Aptitude naturelle | D32: 0 | E32: ='00'!E32 -> 0 | G32: ='00'!G32 -> 0 | I32: ='00'!I32 -> 0 | K32: ='00'!K32 -> 0
A33: ='00'!A33 -> Gentillesse | D33: 0 | E33: ='00'!E33 -> 0 | G33: ='00'!G33 -> 0 | I33: ='00'!I33 -> 0 | K33: ='00'!K33 -> 0
A34: ='00'!A34 -> Intelligence de l'execution | D34: 0 | E34: ='00'!E34 -> 0 | G34: ='00'!G34 -> 0 | I34: ='00'!I34 -> 0 | K34: ='00'!K34 -> 0
A35: ='00'!A35 -> Obéissance | D35: 0 | E35: ='00'!E35 -> 0 | G35: ='00'!G35 -> 0 | I35: ='00'!I35 -> 0 | K35: ='00'!K35 -> 0
A36: POINTS TOTAL | C36: =SUM(C16:C35) -> 0 | D36: =SUM(D16:D35) -> 0 | E36: ='00'!E36 -> 50 | G36: ='00'!G36 -> 30 | I36: ='00'!I36 -> 0 | K36: ='00'!K36 -> 20
A37: Détails des pénéalités | D37: 0 | E37: Pénalités en Négatif | I37: RANKING
A38: POINTS | B38: =IF((C36)=0,"-",D36+D37) -> - | C38: =IF(COUNT(D38:K38)=0,"-",D38+F38+H38+J38-B38) -> - | D38: EVALUATION | F38: =$L$55 -> - | I38: ='Rapport de concours '!N27 -> X | L38: =COUNT(S17:S34) -> 0
A39: CACIT / RCACIT / CACT / RCACT : | B39: . | D39: <== UPON JUDGE'S DECISION
A40: Observations : | Q40: 0
Q45: 48 | R45: IHT1 | S45: GUARDING | U45: 35
Q46: 49 | R46: IHT1 | S46: MOVING | U46: 45
Q47: 50 | R47: IHT1 | S47: DIFFICULT PASS | U47: 10
Q48: 51 | R48: IHT1 | S48: BEHAVIOUR | U48: 10
Q49: 52 | R49: IHT2 | S49: GUARDING | U49: 35
Q50: 53 | R50: IHT2 | S50: MOVING | U50: 55
Q51: 54 | R51: IHT2 | S51: DIFFICULT PASS | U51: 20
Q52: 55 | R52: IHT2 | S52: BEHAVIOUR | U52: 10
Q53: 56 | R53: IHT3 | S53: GUARDING | U53: 40
Q54: 57 | R54: IHT3 | S54: MOVING | U54: 70
L55: =IF(B38="-","-",IF(B38>S58,"EXCELLENT",IF(B38>T58,"TRES BON",IF(B38>U58,"BON",IF(B38>V58,"insuffisant",IF(B37>0.1,"insuffisant ","éliminé ")))))) -> - | Q55: 58 | R55: IHT3 | S55: DIFFICULT PASS | U55: 30
Q56: 59 | R56: IHT3 | S56: BEHAVIOUR | U56: 10
Q58: IHT1 | R58: 100 | S58: =R58*89.999/100 -> 89.999 | T58: =R58*79.999/100 -> 79.999 | U58: =R58*69.999/100 -> 69.999 | V58: =R58*59.999/100 -> 59.999 | W58: 0.1
Q59: iIHT2 | R59: 120 | S59: =R59*89.999/100 -> 107.9988 | T59: =R59*79.999/100 -> 95.9988 | U59: =R59*69.999/100 -> 83.9988 | V59: =R59*59.999/100 -> 71.9988 | W59: 0.1
Q60: IHT3 | R60: 150 | S60: 134.9985 | T60: =R60*79.999/100 -> 119.9985 | U60: =R60*69.999/100 -> 104.9985 | V60: =R60*59.999/100 -> 89.9985 | W60: 0.1

Sheet 12
G1: IHT TS | H1: ='Fiche organisateur N1'!#REF! -> 
B5: IHT TS | G5: COUNTRY LOGO
A6: Organisation | B6: ='Fiche organisateur N2'!F5 -> 0
A7: Ville | B7: ='Fiche organisateur N2'!F6 -> 0 | C7: Date : | E7: ='Fiche organisateur N2'!$H$8 -> 0
A8: Contact : | B8: 0
A9: Propriètaire | B9: ='Fiche organisateur N2'!$C$28 -> 0 | C9: Race et sexe | E9: ='Fiche organisateur N2'!$G$28 -> 0
A10: Conducteur | B10: ='Fiche organisateur N2'!$D$28 -> 0 | C10: Né | E10: ='Fiche organisateur N2'!$K$28 -> 0
A11: Nom du chien | B11: ='Fiche organisateur N2'!$E$28 -> 0 | C11: PEDIGREE | E11: ='Fiche organisateur N2'!$J$28 -> 0
A12: Affixe | B12: ='Fiche organisateur N2'!$F$28 -> 0 | C12: Identifiant | E12: ='Fiche organisateur N2'!$L$28 -> 0
A14: for the country--->
A15: EXERCISES | B15: OBSERVATIONS | C15: Mini | D15: SCORE | E15: GUARDING | G15: MOVING | I15: DIFFICULT PASSAGES | K15: BEHAVIOUR
A16: ='00'!A16 -> 0 | D16: =IF(COUNT(E16:L16)=0,"-",E16+G16+I16+K16-C16) -> 0 | E16: ='00'!E16 -> 0 | G16: ='00'!G16 -> 0 | I16: ='00'!I16 -> 0 | K16: ='00'!K16 -> 0
A17: 0 | D17: 0 | E17: ='00'!E17 -> 0 | G17: ='00'!G17 -> 0 | I17: ='00'!I17 -> 0 | K17: ='00'!K17 -> 0
A18: ='00'!A18 -> 0 | D18: 0 | E18: ='00'!E18 -> 0 | G18: ='00'!G18 -> 0 | I18: ='00'!I18 -> 0 | K18: ='00'!K18 -> 0
A19: ='00'!A19 -> 0 | D19: 0 | E19: ='00'!E19 -> 0 | G19: ='00'!G19 -> 0 | I19: ='00'!I19 -> 0 | K19: ='00'!K19 -> 0
A20: ='00'!A20 -> 0 | D20: 0 | E20: ='00'!E20 -> 0 | G20: ='00'!G20 -> 0 | I20: ='00'!I20 -> 0 | K20: ='00'!K20 -> 0
A21: ='00'!A21 -> 0 | D21: 0 | E21: ='00'!E21 -> 0 | G21: ='00'!G21 -> 0 | I21: ='00'!I21 -> 0 | K21: ='00'!K21 -> 0
A22: ='00'!A22 -> 0 | D22: 0 | E22: ='00'!E22 -> 0 | G22: ='00'!G22 -> 0 | I22: ='00'!I22 -> 0 | K22: ='00'!K22 -> 0
A23: ='00'!A23 -> 0 | D23: 0 | E23: ='00'!E23 -> 0 | G23: ='00'!G23 -> 0 | I23: ='00'!I23 -> 0 | K23: ='00'!K23 -> 0
A24: ='00'!A24 -> 0 | D24: 0 | E24: ='00'!E24 -> 0 | G24: ='00'!G24 -> 0 | I24: ='00'!I24 -> 0 | K24: ='00'!K24 -> 0
A25: ='00'!A25 -> 0 | D25: 0 | E25: ='00'!E25 -> 0 | G25: ='00'!G25 -> 0 | I25: ='00'!I25 -> 0 | K25: ='00'!K25 -> 0
A26: ='00'!A26 -> 0 | D26: 0 | E26: ='00'!E26 -> 0 | G26: ='00'!G26 -> 0 | I26: ='00'!I26 -> 0 | K26: ='00'!K26 -> 0
A27: ='00'!A27 -> 0 | D27: 0 | E27: ='00'!E27 -> 0 | G27: ='00'!G27 -> 0 | I27: ='00'!I27 -> 0 | K27: ='00'!K27 -> 0
A28: ='00'!A28 -> 0 | D28: 0 | E28: ='00'!E28 -> 0 | G28: ='00'!G28 -> 0 | I28: ='00'!I28 -> 0 | K28: ='00'!K28 -> 0
A29: ='00'!A29 -> 0 | D29: 0 | E29: ='00'!E29 -> 0 | G29: ='00'!G29 -> 0 | I29: ='00'!I29 -> 0 | K29: ='00'!K29 -> 0
A30: ='00'!A30 -> 0 | D30: 0 | E30: ='00'!E30 -> 0 | G30: ='00'!G30 -> 0 | I30: ='00'!I30 -> 0 | K30: ='00'!K30 -> 0
A31: ='00'!A31 -> 0 | D31: 0 | E31: ='00'!E31 -> 0 | G31: ='00'!G31 -> 0 | I31: ='00'!I31 -> 0 | K31: ='00'!K31 -> 0
A32: ='00'!A32 -> Aptitude naturelle | D32: 0 | E32: ='00'!E32 -> 0 | G32: ='00'!G32 -> 0 | I32: ='00'!I32 -> 0 | K32: ='00'!K32 -> 0
A33: ='00'!A33 -> Gentillesse | D33: 0 | E33: ='00'!E33 -> 0 | G33: ='00'!G33 -> 0 | I33: ='00'!I33 -> 0 | K33: ='00'!K33 -> 0
A34: ='00'!A34 -> Intelligence de l'execution | D34: 0 | E34: ='00'!E34 -> 0 | G34: ='00'!G34 -> 0 | I34: ='00'!I34 -> 0 | K34: ='00'!K34 -> 0
A35: ='00'!A35 -> Obéissance | D35: 0 | E35: ='00'!E35 -> 0 | G35: ='00'!G35 -> 0 | I35: ='00'!I35 -> 0 | K35: ='00'!K35 -> 0
A36: POINTS TOTAL | C36: =SUM(C16:C35) -> 0 | D36: =SUM(D16:D35) -> 0 | E36: ='00'!E36 -> 50 | G36: ='00'!G36 -> 30 | I36: ='00'!I36 -> 0 | K36: ='00'!K36 -> 20
A37: Détails des pénéalités | D37: 0 | E37: Pénalités en Négatif | I37: RANKING
A38: POINTS | B38: =IF((C36)=0,"-",D36+D37) -> - | C38: =IF(COUNT(D38:K38)=0,"-",D38+F38+H38+J38-B38) -> - | D38: EVALUATION | F38: =$L$55 -> - | I38: ='Rapport de concours '!N28 -> X | L38: =COUNT(S17:S34) -> 0
A39: CACIT / RCACIT / CACT / RCACT : | B39: . | D39: <== UPON JUDGE'S DECISION
A40: Observations : | Q40: 0
Q45: 48 | R45: IHT1 | S45: GUARDING | U45: 35
Q46: 49 | R46: IHT1 | S46: MOVING | U46: 45
Q47: 50 | R47: IHT1 | S47: DIFFICULT PASS | U47: 10
Q48: 51 | R48: IHT1 | S48: BEHAVIOUR | U48: 10
Q49: 52 | R49: IHT2 | S49: GUARDING | U49: 35
Q50: 53 | R50: IHT2 | S50: MOVING | U50: 55
Q51: 54 | R51: IHT2 | S51: DIFFICULT PASS | U51: 20
Q52: 55 | R52: IHT2 | S52: BEHAVIOUR | U52: 10
Q53: 56 | R53: IHT3 | S53: GUARDING | U53: 40
Q54: 57 | R54: IHT3 | S54: MOVING | U54: 70
L55: =IF(B38="-","-",IF(B38>S58,"EXCELLENT",IF(B38>T58,"TRES BON",IF(B38>U58,"BON",IF(B38>V58,"insuffisant",IF(B37>0.1,"insuffisant ","éliminé ")))))) -> - | Q55: 58 | R55: IHT3 | S55: DIFFICULT PASS | U55: 30
Q56: 59 | R56: IHT3 | S56: BEHAVIOUR | U56: 10
Q58: IHT1 | R58: 100 | S58: =R58*89.999/100 -> 89.999 | T58: =R58*79.999/100 -> 79.999 | U58: =R58*69.999/100 -> 69.999 | V58: =R58*59.999/100 -> 59.999 | W58: 0.1
Q59: iIHT2 | R59: 120 | S59: =R59*89.999/100 -> 107.9988 | T59: =R59*79.999/100 -> 95.9988 | U59: =R59*69.999/100 -> 83.9988 | V59: =R59*59.999/100 -> 71.9988 | W59: 0.1
Q60: IHT3 | R60: 150 | S60: 134.9985 | T60: =R60*79.999/100 -> 119.9985 | U60: =R60*69.999/100 -> 104.9985 | V60: =R60*59.999/100 -> 89.9985 | W60: 0.1

Sheet 13
G1: IHT TS | H1: HWT
B5: IHT TS | G5: COUNTRY LOGO
A6: Organisation | B6: ='Fiche organisateur N2'!F5 -> 0
A7: Ville | B7: ='Fiche organisateur N2'!F6 -> 0 | C7: Date : | E7: ='Fiche organisateur N2'!$H$8 -> 0
A8: Contact : | B8: 0
A9: Propriètaire | B9: ='Fiche organisateur N2'!$C$29 -> 0 | C9: Race et sexe | E9: ='Fiche organisateur N2'!$G$29 -> 0
A10: Conducteur | B10: ='Fiche organisateur N2'!$D$29 -> 0 | C10: Né | E10: ='Fiche organisateur N2'!$K$29 -> 0
A11: Nom du chien | B11: ='Fiche organisateur N2'!$E$29 -> 0 | C11: PEDIGREE | E11: ='Fiche organisateur N2'!$J$29 -> 0
A12: Affixe | B12: ='Fiche organisateur N2'!$F$29 -> 0 | C12: Identifiant | E12: ='Fiche organisateur N2'!$L$29 -> 0
A14: for the country--->
A15: EXERCISES | B15: OBSERVATIONS | C15: Mini | D15: SCORE | E15: GUARDING | G15: MOVING | I15: DIFFICULT PASSAGES | K15: BEHAVIOUR
A16: ='00'!A16 -> 0 | D16: =IF(COUNT(E16:L16)=0,"-",E16+G16+I16+K16-C16) -> 0 | E16: ='00'!E16 -> 0 | G16: ='00'!G16 -> 0 | I16: ='00'!I16 -> 0 | K16: ='00'!K16 -> 0
A17: 0 | D17: 0 | E17: ='00'!E17 -> 0 | G17: ='00'!G17 -> 0 | I17: ='00'!I17 -> 0 | K17: ='00'!K17 -> 0
A18: ='00'!A18 -> 0 | D18: 0 | E18: ='00'!E18 -> 0 | G18: ='00'!G18 -> 0 | I18: ='00'!I18 -> 0 | K18: ='00'!K18 -> 0
A19: ='00'!A19 -> 0 | D19: 0 | E19: ='00'!E19 -> 0 | G19: ='00'!G19 -> 0 | I19: ='00'!I19 -> 0 | K19: ='00'!K19 -> 0
A20: ='00'!A20 -> 0 | D20: 0 | E20: ='00'!E20 -> 0 | G20: ='00'!G20 -> 0 | I20: ='00'!I20 -> 0 | K20: ='00'!K20 -> 0
A21: ='00'!A21 -> 0 | D21: 0 | E21: ='00'!E21 -> 0 | G21: ='00'!G21 -> 0 | I21: ='00'!I21 -> 0 | K21: ='00'!K21 -> 0
A22: ='00'!A22 -> 0 | D22: 0 | E22: ='00'!E22 -> 0 | G22: ='00'!G22 -> 0 | I22: ='00'!I22 -> 0 | K22: ='00'!K22 -> 0
A23: ='00'!A23 -> 0 | D23: 0 | E23: ='00'!E23 -> 0 | G23: ='00'!G23 -> 0 | I23: ='00'!I23 -> 0 | K23: ='00'!K23 -> 0
A24: ='00'!A24 -> 0 | D24: 0 | E24: ='00'!E24 -> 0 | G24: ='00'!G24 -> 0 | I24: ='00'!I24 -> 0 | K24: ='00'!K24 -> 0
A25: ='00'!A25 -> 0 | D25: 0 | E25: ='00'!E25 -> 0 | G25: ='00'!G25 -> 0 | I25: ='00'!I25 -> 0 | K25: ='00'!K25 -> 0
A26: ='00'!A26 -> 0 | D26: 0 | E26: ='00'!E26 -> 0 | G26: ='00'!G26 -> 0 | I26: ='00'!I26 -> 0 | K26: ='00'!K26 -> 0
A27: ='00'!A27 -> 0 | D27: 0 | E27: ='00'!E27 -> 0 | G27: ='00'!G27 -> 0 | I27: ='00'!I27 -> 0 | K27: ='00'!K27 -> 0
A28: ='00'!A28 -> 0 | D28: 0 | E28: ='00'!E28 -> 0 | G28: ='00'!G28 -> 0 | I28: ='00'!I28 -> 0 | K28: ='00'!K28 -> 0
A29: ='00'!A29 -> 0 | D29: 0 | E29: ='00'!E29 -> 0 | G29: ='00'!G29 -> 0 | I29: ='00'!I29 -> 0 | K29: ='00'!K29 -> 0
A30: ='00'!A30 -> 0 | D30: 0 | E30: ='00'!E30 -> 0 | G30: ='00'!G30 -> 0 | I30: ='00'!I30 -> 0 | K30: ='00'!K30 -> 0
A31: ='00'!A31 -> 0 | D31: 0 | E31: ='00'!E31 -> 0 | G31: ='00'!G31 -> 0 | I31: ='00'!I31 -> 0 | K31: ='00'!K31 -> 0
A32: ='00'!A32 -> Aptitude naturelle | D32: 0 | E32: ='00'!E32 -> 0 | G32: ='00'!G32 -> 0 | I32: ='00'!I32 -> 0 | K32: ='00'!K32 -> 0
A33: ='00'!A33 -> Gentillesse | D33: 0 | E33: ='00'!E33 -> 0 | G33: ='00'!G33 -> 0 | I33: ='00'!I33 -> 0 | K33: ='00'!K33 -> 0
A34: ='00'!A34 -> Intelligence de l'execution | D34: 0 | E34: ='00'!E34 -> 0 | G34: ='00'!G34 -> 0 | I34: ='00'!I34 -> 0 | K34: ='00'!K34 -> 0
A35: ='00'!A35 -> Obéissance | D35: 0 | E35: ='00'!E35 -> 0 | G35: ='00'!G35 -> 0 | I35: ='00'!I35 -> 0 | K35: ='00'!K35 -> 0
A36: POINTS TOTAL | C36: =SUM(C16:C35) -> 0 | D36: =SUM(D16:D35) -> 0 | E36: ='00'!E36 -> 50 | G36: ='00'!G36 -> 30 | I36: ='00'!I36 -> 0 | K36: ='00'!K36 -> 20
A37: Détails des pénéalités | D37: 0 | E37: Pénalités en Négatif | I37: RANKING
A38: POINTS | B38: =IF((C36)=0,"-",D36+D37) -> - | C38: =IF(COUNT(D38:K38)=0,"-",D38+F38+H38+J38-B38) -> - | D38: EVALUATION | F38: =$L$55 -> - | I38: ='Rapport de concours '!N29 -> X | L38: =COUNT(S17:S34) -> 0
A39: CACIT / RCACIT / CACT / RCACT : | B39: . | D39: <== UPON JUDGE'S DECISION
A40: Observations : | Q40: 0
Q45: 48 | R45: IHT1 | S45: GUARDING | U45: 35
Q46: 49 | R46: IHT1 | S46: MOVING | U46: 45
Q47: 50 | R47: IHT1 | S47: DIFFICULT PASS | U47: 10
Q48: 51 | R48: IHT1 | S48: BEHAVIOUR | U48: 10
Q49: 52 | R49: IHT2 | S49: GUARDING | U49: 35
Q50: 53 | R50: IHT2 | S50: MOVING | U50: 55
Q51: 54 | R51: IHT2 | S51: DIFFICULT PASS | U51: 20
Q52: 55 | R52: IHT2 | S52: BEHAVIOUR | U52: 10
Q53: 56 | R53: IHT3 | S53: GUARDING | U53: 40
Q54: 57 | R54: IHT3 | S54: MOVING | U54: 70
L55: =IF(B38="-","-",IF(B38>S58,"EXCELLENT",IF(B38>T58,"TRES BON",IF(B38>U58,"BON",IF(B38>V58,"insuffisant",IF(B37>0.1,"insuffisant ","éliminé ")))))) -> - | Q55: 58 | R55: IHT3 | S55: DIFFICULT PASS | U55: 30
Q56: 59 | R56: IHT3 | S56: BEHAVIOUR | U56: 10
Q58: IHT1 | R58: 100 | S58: =R58*89.999/100 -> 89.999 | T58: =R58*79.999/100 -> 79.999 | U58: =R58*69.999/100 -> 69.999 | V58: =R58*59.999/100 -> 59.999 | W58: 0.1
Q59: iIHT2 | R59: 120 | S59: =R59*89.999/100 -> 107.9988 | T59: =R59*79.999/100 -> 95.9988 | U59: =R59*69.999/100 -> 83.9988 | V59: =R59*59.999/100 -> 71.9988 | W59: 0.1
Q60: IHT3 | R60: 150 | S60: 134.9985 | T60: =R60*79.999/100 -> 119.9985 | U60: =R60*69.999/100 -> 104.9985 | V60: =R60*59.999/100 -> 89.9985 | W60: 0.1

Sheet 14
G1: IHT TS | H1: HWT
B5: IHT TS | G5: COUNTRY LOGO
A6: Organisation | B6: ='Fiche organisateur N2'!F5 -> 0
A7: Ville | B7: ='Fiche organisateur N2'!F6 -> 0 | C7: Date : | E7: ='Fiche organisateur N2'!$H$8 -> 0
A8: Contact : | B8: 0
A9: Propriètaire | B9: ='Fiche organisateur N2'!$C$30 -> 0 | C9: Race et sexe | E9: ='Fiche organisateur N2'!$G$30 -> 0
A10: Conducteur | B10: ='Fiche organisateur N2'!$D$30 -> 0 | C10: Né | E10: ='Fiche organisateur N2'!$K$30 -> 0
A11: Nom du chien | B11: ='Fiche organisateur N2'!$E$30 -> 0 | C11: PEDIGREE | E11: ='Fiche organisateur N2'!$J$30 -> 0
A12: Affixe | B12: ='Fiche organisateur N2'!$F$30 -> 0 | C12: Identifiant | E12: ='Fiche organisateur N2'!$L$30 -> 0
A14: for the country--->
A15: EXERCISES | B15: OBSERVATIONS | C15: Mini | D15: SCORE | E15: GUARDING | G15: MOVING | I15: DIFFICULT PASSAGES | K15: BEHAVIOUR
A16: ='00'!A16 -> 0 | D16: =IF(COUNT(E16:L16)=0,"-",E16+G16+I16+K16-C16) -> 0 | E16: ='00'!E16 -> 0 | G16: ='00'!G16 -> 0 | I16: ='00'!I16 -> 0 | K16: ='00'!K16 -> 0
A17: 0 | D17: 0 | E17: ='00'!E17 -> 0 | G17: ='00'!G17 -> 0 | I17: ='00'!I17 -> 0 | K17: ='00'!K17 -> 0
A18: ='00'!A18 -> 0 | D18: 0 | E18: ='00'!E18 -> 0 | G18: ='00'!G18 -> 0 | I18: ='00'!I18 -> 0 | K18: ='00'!K18 -> 0
A19: ='00'!A19 -> 0 | D19: 0 | E19: ='00'!E19 -> 0 | G19: ='00'!G19 -> 0 | I19: ='00'!I19 -> 0 | K19: ='00'!K19 -> 0
A20: ='00'!A20 -> 0 | D20: 0 | E20: ='00'!E20 -> 0 | G20: ='00'!G20 -> 0 | I20: ='00'!I20 -> 0 | K20: ='00'!K20 -> 0
A21: ='00'!A21 -> 0 | D21: 0 | E21: ='00'!E21 -> 0 | G21: ='00'!G21 -> 0 | I21: ='00'!I21 -> 0 | K21: ='00'!K21 -> 0
A22: ='00'!A22 -> 0 | D22: 0 | E22: ='00'!E22 -> 0 | G22: ='00'!G22 -> 0 | I22: ='00'!I22 -> 0 | K22: ='00'!K22 -> 0
A23: ='00'!A23 -> 0 | D23: 0 | E23: ='00'!E23 -> 0 | G23: ='00'!G23 -> 0 | I23: ='00'!I23 -> 0 | K23: ='00'!K23 -> 0
A24: ='00'!A24 -> 0 | D24: 0 | E24: ='00'!E24 -> 0 | G24: ='00'!G24 -> 0 | I24: ='00'!I24 -> 0 | K24: ='00'!K24 -> 0
A25: ='00'!A25 -> 0 | D25: 0 | E25: ='00'!E25 -> 0 | G25: ='00'!G25 -> 0 | I25: ='00'!I25 -> 0 | K25: ='00'!K25 -> 0
A26: ='00'!A26 -> 0 | D26: 0 | E26: ='00'!E26 -> 0 | G26: ='00'!G26 -> 0 | I26: ='00'!I26 -> 0 | K26: ='00'!K26 -> 0
A27: ='00'!A27 -> 0 | D27: 0 | E27: ='00'!E27 -> 0 | G27: ='00'!G27 -> 0 | I27: ='00'!I27 -> 0 | K27: ='00'!K27 -> 0
A28: ='00'!A28 -> 0 | D28: 0 | E28: ='00'!E28 -> 0 | G28: ='00'!G28 -> 0 | I28: ='00'!I28 -> 0 | K28: ='00'!K28 -> 0
A29: ='00'!A29 -> 0 | D29: 0 | E29: ='00'!E29 -> 0 | G29: ='00'!G29 -> 0 | I29: ='00'!I29 -> 0 | K29: ='00'!K29 -> 0
A30: ='00'!A30 -> 0 | D30: 0 | E30: ='00'!E30 -> 0 | G30: ='00'!G30 -> 0 | I30: ='00'!I30 -> 0 | K30: ='00'!K30 -> 0
A31: ='00'!A31 -> 0 | D31: 0 | E31: ='00'!E31 -> 0 | G31: ='00'!G31 -> 0 | I31: ='00'!I31 -> 0 | K31: ='00'!K31 -> 0
A32: ='00'!A32 -> Aptitude naturelle | D32: 0 | E32: ='00'!E32 -> 0 | G32: ='00'!G32 -> 0 | I32: ='00'!I32 -> 0 | K32: ='00'!K32 -> 0
A33: ='00'!A33 -> Gentillesse | D33: 0 | E33: ='00'!E33 -> 0 | G33: ='00'!G33 -> 0 | I33: ='00'!I33 -> 0 | K33: ='00'!K33 -> 0
A34: ='00'!A34 -> Intelligence de l'execution | D34: 0 | E34: ='00'!E34 -> 0 | G34: ='00'!G34 -> 0 | I34: ='00'!I34 -> 0 | K34: ='00'!K34 -> 0
A35: ='00'!A35 -> Obéissance | D35: 0 | E35: ='00'!E35 -> 0 | G35: ='00'!G35 -> 0 | I35: ='00'!I35 -> 0 | K35: ='00'!K35 -> 0
A36: POINTS TOTAL | C36: =SUM(C16:C35) -> 0 | D36: =SUM(D16:D35) -> 0 | E36: ='00'!E36 -> 50 | G36: ='00'!G36 -> 30 | I36: ='00'!I36 -> 0 | K36: ='00'!K36 -> 20
A37: Détails des pénéalités | D37: 0 | E37: Pénalités en Négatif | I37: RANKING
A38: POINTS | B38: =IF((C36)=0,"-",D36+D37) -> - | C38: =IF(COUNT(D38:K38)=0,"-",D38+F38+H38+J38-B38) -> - | D38: EVALUATION | F38: =$L$55 -> - | I38: ='Rapport de concours '!N30 -> X | L38: =COUNT(S17:S34) -> 0
A39: CACIT / RCACIT / CACT / RCACT : | B39: . | D39: <== UPON JUDGE'S DECISION
A40: Observations : | Q40: 0
Q45: 48 | R45: IHT1 | S45: GUARDING | U45: 35
Q46: 49 | R46: IHT1 | S46: MOVING | U46: 45
Q47: 50 | R47: IHT1 | S47: DIFFICULT PASS | U47: 10
Q48: 51 | R48: IHT1 | S48: BEHAVIOUR | U48: 10
Q49: 52 | R49: IHT2 | S49: GUARDING | U49: 35
Q50: 53 | R50: IHT2 | S50: MOVING | U50: 55
Q51: 54 | R51: IHT2 | S51: DIFFICULT PASS | U51: 20
Q52: 55 | R52: IHT2 | S52: BEHAVIOUR | U52: 10
Q53: 56 | R53: IHT3 | S53: GUARDING | U53: 40
Q54: 57 | R54: IHT3 | S54: MOVING | U54: 70
L55: =IF(B38="-","-",IF(B38>S58,"EXCELLENT",IF(B38>T58,"TRES BON",IF(B38>U58,"BON",IF(B38>V58,"insuffisant",IF(B37>0.1,"insuffisant ","éliminé ")))))) -> - | Q55: 58 | R55: IHT3 | S55: DIFFICULT PASS | U55: 30
Q56: 59 | R56: IHT3 | S56: BEHAVIOUR | U56: 10
Q58: IHT1 | R58: 100 | S58: =R58*89.999/100 -> 89.999 | T58: =R58*79.999/100 -> 79.999 | U58: =R58*69.999/100 -> 69.999 | V58: =R58*59.999/100 -> 59.999 | W58: 0.1
Q59: iIHT2 | R59: 120 | S59: =R59*89.999/100 -> 107.9988 | T59: =R59*79.999/100 -> 95.9988 | U59: =R59*69.999/100 -> 83.9988 | V59: =R59*59.999/100 -> 71.9988 | W59: 0.1
Q60: IHT3 | R60: 150 | S60: 134.9985 | T60: =R60*79.999/100 -> 119.9985 | U60: =R60*69.999/100 -> 104.9985 | V60: =R60*59.999/100 -> 89.9985 | W60: 0.1

Sheet 15
G1: IHT TS | H1: HWT
B5: IHT TS | G5: COUNTRY LOGO
A6: Organisation | B6: ='Fiche organisateur N2'!F5 -> 0
A7: Ville | B7: ='Fiche organisateur N2'!F6 -> 0 | C7: Date : | E7: ='Fiche organisateur N2'!$H$8 -> 0
A8: Contact : | B8: 0
A9: Propriètaire | B9: ='Fiche organisateur N2'!$C$31 -> 0 | C9: Race et sexe | E9: ='Fiche organisateur N2'!$G$31 -> 0
A10: Conducteur | B10: ='Fiche organisateur N2'!$D$31 -> 0 | C10: Né | E10: ='Fiche organisateur N2'!$K$31 -> 0
A11: Nom du chien | B11: ='Fiche organisateur N2'!$E$31 -> 0 | C11: PEDIGREE | E11: ='Fiche organisateur N2'!$J$31 -> 0
A12: Affixe | B12: ='Fiche organisateur N2'!$F$31 -> 0 | C12: Identifiant | E12: ='Fiche organisateur N2'!$L$31 -> 0
A14: for the country--->
A15: EXERCISES | B15: OBSERVATIONS | C15: Mini | D15: SCORE | E15: GUARDING | G15: MOVING | I15: DIFFICULT PASSAGES | K15: BEHAVIOUR
A16: ='00'!A16 -> 0 | D16: =IF(COUNT(E16:L16)=0,"-",E16+G16+I16+K16-C16) -> 0 | E16: ='00'!E16 -> 0 | G16: ='00'!G16 -> 0 | I16: ='00'!I16 -> 0 | K16: ='00'!K16 -> 0
A17: 0 | D17: 0 | E17: ='00'!E17 -> 0 | G17: ='00'!G17 -> 0 | I17: ='00'!I17 -> 0 | K17: ='00'!K17 -> 0
A18: ='00'!A18 -> 0 | D18: 0 | E18: ='00'!E18 -> 0 | G18: ='00'!G18 -> 0 | I18: ='00'!I18 -> 0 | K18: ='00'!K18 -> 0
A19: ='00'!A19 -> 0 | D19: 0 | E19: ='00'!E19 -> 0 | G19: ='00'!G19 -> 0 | I19: ='00'!I19 -> 0 | K19: ='00'!K19 -> 0
A20: ='00'!A20 -> 0 | D20: 0 | E20: ='00'!E20 -> 0 | G20: ='00'!G20 -> 0 | I20: ='00'!I20 -> 0 | K20: ='00'!K20 -> 0
A21: ='00'!A21 -> 0 | D21: 0 | E21: ='00'!E21 -> 0 | G21: ='00'!G21 -> 0 | I21: ='00'!I21 -> 0 | K21: ='00'!K21 -> 0
A22: ='00'!A22 -> 0 | D22: 0 | E22: ='00'!E22 -> 0 | G22: ='00'!G22 -> 0 | I22: ='00'!I22 -> 0 | K22: ='00'!K22 -> 0
A23: ='00'!A23 -> 0 | D23: 0 | E23: ='00'!E23 -> 0 | G23: ='00'!G23 -> 0 | I23: ='00'!I23 -> 0 | K23: ='00'!K23 -> 0
A24: ='00'!A24 -> 0 | D24: 0 | E24: ='00'!E24 -> 0 | G24: ='00'!G24 -> 0 | I24: ='00'!I24 -> 0 | K24: ='00'!K24 -> 0
A25: ='00'!A25 -> 0 | D25: 0 | E25: ='00'!E25 -> 0 | G25: ='00'!G25 -> 0 | I25: ='00'!I25 -> 0 | K25: ='00'!K25 -> 0
A26: ='00'!A26 -> 0 | D26: 0 | E26: ='00'!E26 -> 0 | G26: ='00'!G26 -> 0 | I26: ='00'!I26 -> 0 | K26: ='00'!K26 -> 0
A27: ='00'!A27 -> 0 | D27: 0 | E27: ='00'!E27 -> 0 | G27: ='00'!G27 -> 0 | I27: ='00'!I27 -> 0 | K27: ='00'!K27 -> 0
A28: ='00'!A28 -> 0 | D28: 0 | E28: ='00'!E28 -> 0 | G28: ='00'!G28 -> 0 | I28: ='00'!I28 -> 0 | K28: ='00'!K28 -> 0
A29: ='00'!A29 -> 0 | D29: 0 | E29: ='00'!E29 -> 0 | G29: ='00'!G29 -> 0 | I29: ='00'!I29 -> 0 | K29: ='00'!K29 -> 0
A30: ='00'!A30 -> 0 | D30: 0 | E30: ='00'!E30 -> 0 | G30: ='00'!G30 -> 0 | I30: ='00'!I30 -> 0 | K30: ='00'!K30 -> 0
A31: ='00'!A31 -> 0 | D31: 0 | E31: ='00'!E31 -> 0 | G31: ='00'!G31 -> 0 | I31: ='00'!I31 -> 0 | K31: ='00'!K31 -> 0
A32: ='00'!A32 -> Aptitude naturelle | D32: 0 | E32: ='00'!E32 -> 0 | G32: ='00'!G32 -> 0 | I32: ='00'!I32 -> 0 | K32: ='00'!K32 -> 0
A33: ='00'!A33 -> Gentillesse | D33: 0 | E33: ='00'!E33 -> 0 | G33: ='00'!G33 -> 0 | I33: ='00'!I33 -> 0 | K33: ='00'!K33 -> 0
A34: ='00'!A34 -> Intelligence de l'execution | D34: 0 | E34: ='00'!E34 -> 0 | G34: ='00'!G34 -> 0 | I34: ='00'!I34 -> 0 | K34: ='00'!K34 -> 0
A35: ='00'!A35 -> Obéissance | D35: 0 | E35: ='00'!E35 -> 0 | G35: ='00'!G35 -> 0 | I35: ='00'!I35 -> 0 | K35: ='00'!K35 -> 0
A36: POINTS TOTAL | C36: =SUM(C16:C35) -> 0 | D36: =SUM(D16:D35) -> 0 | E36: ='00'!E36 -> 50 | G36: ='00'!G36 -> 30 | I36: ='00'!I36 -> 0 | K36: ='00'!K36 -> 20
A37: Détails des pénéalités | D37: 0 | E37: Pénalités en Négatif | I37: RANKING
A38: POINTS | B38: =IF((C36)=0,"-",D36+D37) -> - | C38: =IF(COUNT(D38:K38)=0,"-",D38+F38+H38+J38-B38) -> - | D38: EVALUATION | F38: =$L$55 -> - | I38: ='Rapport de concours '!N31 -> X | L38: =COUNT(S17:S34) -> 0
A39: CACIT / RCACIT / CACT / RCACT : | B39: . | D39: <== UPON JUDGE'S DECISION
A40: Observations : | Q40: 0
Q45: 48 | R45: IHT1 | S45: GUARDING | U45: 35
Q46: 49 | R46: IHT1 | S46: MOVING | U46: 45
Q47: 50 | R47: IHT1 | S47: DIFFICULT PASS | U47: 10
Q48: 51 | R48: IHT1 | S48: BEHAVIOUR | U48: 10
Q49: 52 | R49: IHT2 | S49: GUARDING | U49: 35
Q50: 53 | R50: IHT2 | S50: MOVING | U50: 55
Q51: 54 | R51: IHT2 | S51: DIFFICULT PASS | U51: 20
Q52: 55 | R52: IHT2 | S52: BEHAVIOUR | U52: 10
Q53: 56 | R53: IHT3 | S53: GUARDING | U53: 40
Q54: 57 | R54: IHT3 | S54: MOVING | U54: 70
L55: =IF(B38="-","-",IF(B38>S58,"EXCELLENT",IF(B38>T58,"TRES BON",IF(B38>U58,"BON",IF(B38>V58,"insuffisant",IF(B37>0.1,"insuffisant ","éliminé ")))))) -> - | Q55: 58 | R55: IHT3 | S55: DIFFICULT PASS | U55: 30
Q56: 59 | R56: IHT3 | S56: BEHAVIOUR | U56: 10
Q58: IHT1 | R58: 100 | S58: =R58*89.999/100 -> 89.999 | T58: =R58*79.999/100 -> 79.999 | U58: =R58*69.999/100 -> 69.999 | V58: =R58*59.999/100 -> 59.999 | W58: 0.1
Q59: iIHT2 | R59: 120 | S59: =R59*89.999/100 -> 107.9988 | T59: =R59*79.999/100 -> 95.9988 | U59: =R59*69.999/100 -> 83.9988 | V59: =R59*59.999/100 -> 71.9988 | W59: 0.1
Q60: IHT3 | R60: 150 | S60: 134.9985 | T60: =R60*79.999/100 -> 119.9985 | U60: =R60*69.999/100 -> 104.9985 | V60: =R60*59.999/100 -> 89.9985 | W60: 0.1

Sheet 16
G1: IHT TS | H1: HWT
B5: IHT TS | G5: COUNTRY LOGO
A6: Organisation | B6: ='Fiche organisateur N2'!F5 -> 0
A7: Ville | B7: ='Fiche organisateur N2'!F6 -> 0 | C7: Date : | E7: ='Fiche organisateur N2'!$H$8 -> 0
A8: Contact : | B8: 0
A9: Propriètaire | B9: ='Fiche organisateur N2'!$C$32 -> 0 | C9: Race et sexe | E9: ='Fiche organisateur N2'!$G$32 -> 0
A10: Conducteur | B10: ='Fiche organisateur N2'!$D$32 -> 0 | C10: Né | E10: ='Fiche organisateur N2'!$K$32 -> 0
A11: Nom du chien | B11: ='Fiche organisateur N2'!$E$32 -> 0 | C11: PEDIGREE | E11: ='Fiche organisateur N2'!$J$32 -> 0
A12: Affixe | B12: ='Fiche organisateur N2'!$F$32 -> 0 | C12: Identifiant | E12: ='Fiche organisateur N2'!$L$32 -> 0
A14: for the country--->
A15: EXERCISES | B15: OBSERVATIONS | C15: Mini | D15: SCORE | E15: GUARDING | G15: MOVING | I15: DIFFICULT PASSAGES | K15: BEHAVIOUR
A16: ='00'!A16 -> 0 | D16: =IF(COUNT(E16:L16)=0,"-",E16+G16+I16+K16-C16) -> 0 | E16: ='00'!E16 -> 0 | G16: ='00'!G16 -> 0 | I16: ='00'!I16 -> 0 | K16: ='00'!K16 -> 0
A17: 0 | D17: 0 | E17: ='00'!E17 -> 0 | G17: ='00'!G17 -> 0 | I17: ='00'!I17 -> 0 | K17: ='00'!K17 -> 0
A18: ='00'!A18 -> 0 | D18: 0 | E18: ='00'!E18 -> 0 | G18: ='00'!G18 -> 0 | I18: ='00'!I18 -> 0 | K18: ='00'!K18 -> 0
A19: ='00'!A19 -> 0 | D19: 0 | E19: ='00'!E19 -> 0 | G19: ='00'!G19 -> 0 | I19: ='00'!I19 -> 0 | K19: ='00'!K19 -> 0
A20: ='00'!A20 -> 0 | D20: 0 | E20: ='00'!E20 -> 0 | G20: ='00'!G20 -> 0 | I20: ='00'!I20 -> 0 | K20: ='00'!K20 -> 0
A21: ='00'!A21 -> 0 | D21: 0 | E21: ='00'!E21 -> 0 | G21: ='00'!G21 -> 0 | I21: ='00'!I21 -> 0 | K21: ='00'!K21 -> 0
A22: ='00'!A22 -> 0 | D22: 0 | E22: ='00'!E22 -> 0 | G22: ='00'!G22 -> 0 | I22: ='00'!I22 -> 0 | K22: ='00'!K22 -> 0
A23: ='00'!A23 -> 0 | D23: 0 | E23: ='00'!E23 -> 0 | G23: ='00'!G23 -> 0 | I23: ='00'!I23 -> 0 | K23: ='00'!K23 -> 0
A24: ='00'!A24 -> 0 | D24: 0 | E24: ='00'!E24 -> 0 | G24: ='00'!G24 -> 0 | I24: ='00'!I24 -> 0 | K24: ='00'!K24 -> 0
A25: ='00'!A25 -> 0 | D25: 0 | E25: ='00'!E25 -> 0 | G25: ='00'!G25 -> 0 | I25: ='00'!I25 -> 0 | K25: ='00'!K25 -> 0
A26: ='00'!A26 -> 0 | D26: 0 | E26: ='00'!E26 -> 0 | G26: ='00'!G26 -> 0 | I26: ='00'!I26 -> 0 | K26: ='00'!K26 -> 0
A27: ='00'!A27 -> 0 | D27: 0 | E27: ='00'!E27 -> 0 | G27: ='00'!G27 -> 0 | I27: ='00'!I27 -> 0 | K27: ='00'!K27 -> 0
A28: ='00'!A28 -> 0 | D28: 0 | E28: ='00'!E28 -> 0 | G28: ='00'!G28 -> 0 | I28: ='00'!I28 -> 0 | K28: ='00'!K28 -> 0
A29: ='00'!A29 -> 0 | D29: 0 | E29: ='00'!E29 -> 0 | G29: ='00'!G29 -> 0 | I29: ='00'!I29 -> 0 | K29: ='00'!K29 -> 0
A30: ='00'!A30 -> 0 | D30: 0 | E30: ='00'!E30 -> 0 | G30: ='00'!G30 -> 0 | I30: ='00'!I30 -> 0 | K30: ='00'!K30 -> 0
A31: ='00'!A31 -> 0 | D31: 0 | E31: ='00'!E31 -> 0 | G31: ='00'!G31 -> 0 | I31: ='00'!I31 -> 0 | K31: ='00'!K31 -> 0
A32: ='00'!A32 -> Aptitude naturelle | D32: 0 | E32: ='00'!E32 -> 0 | G32: ='00'!G32 -> 0 | I32: ='00'!I32 -> 0 | K32: ='00'!K32 -> 0
A33: ='00'!A33 -> Gentillesse | D33: 0 | E33: ='00'!E33 -> 0 | G33: ='00'!G33 -> 0 | I33: ='00'!I33 -> 0 | K33: ='00'!K33 -> 0
A34: ='00'!A34 -> Intelligence de l'execution | D34: 0 | E34: ='00'!E34 -> 0 | G34: ='00'!G34 -> 0 | I34: ='00'!I34 -> 0 | K34: ='00'!K34 -> 0
A35: ='00'!A35 -> Obéissance | D35: 0 | E35: ='00'!E35 -> 0 | G35: ='00'!G35 -> 0 | I35: ='00'!I35 -> 0 | K35: ='00'!K35 -> 0
A36: POINTS TOTAL | C36: =SUM(C16:C35) -> 0 | D36: =SUM(D16:D35) -> 0 | E36: ='00'!E36 -> 50 | G36: ='00'!G36 -> 30 | I36: ='00'!I36 -> 0 | K36: ='00'!K36 -> 20
A37: Détails des pénéalités | D37: 0 | E37: Pénalités en Négatif | I37: RANKING
A38: POINTS | B38: =IF((C36)=0,"-",D36+D37) -> - | C38: =IF(COUNT(D38:K38)=0,"-",D38+F38+H38+J38-B38) -> - | D38: EVALUATION | F38: =$L$55 -> - | I38: ='Rapport de concours '!N32 -> X | L38: =COUNT(S17:S34) -> 0
A39: CACIT / RCACIT / CACT / RCACT : | B39: . | D39: <== UPON JUDGE'S DECISION
A40: Observations : | Q40: 0
Q45: 48 | R45: IHT1 | S45: GUARDING | U45: 35
Q46: 49 | R46: IHT1 | S46: MOVING | U46: 45
Q47: 50 | R47: IHT1 | S47: DIFFICULT PASS | U47: 10
Q48: 51 | R48: IHT1 | S48: BEHAVIOUR | U48: 10
Q49: 52 | R49: IHT2 | S49: GUARDING | U49: 35
Q50: 53 | R50: IHT2 | S50: MOVING | U50: 55
Q51: 54 | R51: IHT2 | S51: DIFFICULT PASS | U51: 20
Q52: 55 | R52: IHT2 | S52: BEHAVIOUR | U52: 10
Q53: 56 | R53: IHT3 | S53: GUARDING | U53: 40
Q54: 57 | R54: IHT3 | S54: MOVING | U54: 70
L55: =IF(B38="-","-",IF(B38>S58,"EXCELLENT",IF(B38>T58,"TRES BON",IF(B38>U58,"BON",IF(B38>V58,"insuffisant",IF(B37>0.1,"insuffisant ","éliminé ")))))) -> - | Q55: 58 | R55: IHT3 | S55: DIFFICULT PASS | U55: 30
Q56: 59 | R56: IHT3 | S56: BEHAVIOUR | U56: 10
Q58: IHT1 | R58: 100 | S58: =R58*89.999/100 -> 89.999 | T58: =R58*79.999/100 -> 79.999 | U58: =R58*69.999/100 -> 69.999 | V58: =R58*59.999/100 -> 59.999 | W58: 0.1
Q59: iIHT2 | R59: 120 | S59: =R59*89.999/100 -> 107.9988 | T59: =R59*79.999/100 -> 95.9988 | U59: =R59*69.999/100 -> 83.9988 | V59: =R59*59.999/100 -> 71.9988 | W59: 0.1
Q60: IHT3 | R60: 150 | S60: 134.9985 | T60: =R60*79.999/100 -> 119.9985 | U60: =R60*69.999/100 -> 104.9985 | V60: =R60*59.999/100 -> 89.9985 | W60: 0.1

Sheet 17
G1: IHT TS | H1: HWT
B5: IHT TS | G5: COUNTRY LOGO
A6: Organisation | B6: ='Fiche organisateur N2'!F5 -> 0
A7: Ville | B7: ='Fiche organisateur N2'!F6 -> 0 | C7: Date : | E7: ='Fiche organisateur N2'!$H$8 -> 0
A8: Contact : | B8: 0
A9: Propriètaire | B9: ='Fiche organisateur N2'!$C$33 -> 0 | C9: Race et sexe | E9: ='Fiche organisateur N2'!$G$33 -> 0
A10: Conducteur | B10: ='Fiche organisateur N2'!$D$33 -> 0 | C10: Né | E10: ='Fiche organisateur N2'!$K$33 -> 0
A11: Nom du chien | B11: ='Fiche organisateur N2'!$E$33 -> 0 | C11: PEDIGREE | E11: ='Fiche organisateur N2'!$J$33 -> 0
A12: Affixe | B12: ='Fiche organisateur N2'!$F$33 -> 0 | C12: Identifiant | E12: ='Fiche organisateur N2'!$L$33 -> 0
A14: for the country--->
A15: EXERCISES | B15: OBSERVATIONS | C15: Mini | D15: SCORE | E15: GUARDING | G15: MOVING | I15: DIFFICULT PASSAGES | K15: BEHAVIOUR
A16: ='00'!A16 -> 0 | D16: =IF(COUNT(E16:L16)=0,"-",E16+G16+I16+K16-C16) -> 0 | E16: ='00'!E16 -> 0 | G16: ='00'!G16 -> 0 | I16: ='00'!I16 -> 0 | K16: ='00'!K16 -> 0
A17: 0 | D17: 0 | E17: ='00'!E17 -> 0 | G17: ='00'!G17 -> 0 | I17: ='00'!I17 -> 0 | K17: ='00'!K17 -> 0
A18: ='00'!A18 -> 0 | D18: 0 | E18: ='00'!E18 -> 0 | G18: ='00'!G18 -> 0 | I18: ='00'!I18 -> 0 | K18: ='00'!K18 -> 0
A19: ='00'!A19 -> 0 | D19: 0 | E19: ='00'!E19 -> 0 | G19: ='00'!G19 -> 0 | I19: ='00'!I19 -> 0 | K19: ='00'!K19 -> 0
A20: ='00'!A20 -> 0 | D20: 0 | E20: ='00'!E20 -> 0 | G20: ='00'!G20 -> 0 | I20: ='00'!I20 -> 0 | K20: ='00'!K20 -> 0
A21: ='00'!A21 -> 0 | D21: 0 | E21: ='00'!E21 -> 0 | G21: ='00'!G21 -> 0 | I21: ='00'!I21 -> 0 | K21: ='00'!K21 -> 0
A22: ='00'!A22 -> 0 | D22: 0 | E22: ='00'!E22 -> 0 | G22: ='00'!G22 -> 0 | I22: ='00'!I22 -> 0 | K22: ='00'!K22 -> 0
A23: ='00'!A23 -> 0 | D23: 0 | E23: ='00'!E23 -> 0 | G23: ='00'!G23 -> 0 | I23: ='00'!I23 -> 0 | K23: ='00'!K23 -> 0
A24: ='00'!A24 -> 0 | D24: 0 | E24: ='00'!E24 -> 0 | G24: ='00'!G24 -> 0 | I24: ='00'!I24 -> 0 | K24: ='00'!K24 -> 0
A25: ='00'!A25 -> 0 | D25: 0 | E25: ='00'!E25 -> 0 | G25: ='00'!G25 -> 0 | I25: ='00'!I25 -> 0 | K25: ='00'!K25 -> 0
A26: ='00'!A26 -> 0 | D26: 0 | E26: ='00'!E26 -> 0 | G26: ='00'!G26 -> 0 | I26: ='00'!I26 -> 0 | K26: ='00'!K26 -> 0
A27: ='00'!A27 -> 0 | D27: 0 | E27: ='00'!E27 -> 0 | G27: ='00'!G27 -> 0 | I27: ='00'!I27 -> 0 | K27: ='00'!K27 -> 0
A28: ='00'!A28 -> 0 | D28: 0 | E28: ='00'!E28 -> 0 | G28: ='00'!G28 -> 0 | I28: ='00'!I28 -> 0 | K28: ='00'!K28 -> 0
A29: ='00'!A29 -> 0 | D29: 0 | E29: ='00'!E29 -> 0 | G29: ='00'!G29 -> 0 | I29: ='00'!I29 -> 0 | K29: ='00'!K29 -> 0
A30: ='00'!A30 -> 0 | D30: 0 | E30: ='00'!E30 -> 0 | G30: ='00'!G30 -> 0 | I30: ='00'!I30 -> 0 | K30: ='00'!K30 -> 0
A31: ='00'!A31 -> 0 | D31: 0 | E31: ='00'!E31 -> 0 | G31: ='00'!G31 -> 0 | I31: ='00'!I31 -> 0 | K31: ='00'!K31 -> 0
A32: ='00'!A32 -> Aptitude naturelle | D32: 0 | E32: ='00'!E32 -> 0 | G32: ='00'!G32 -> 0 | I32: ='00'!I32 -> 0 | K32: ='00'!K32 -> 0
A33: ='00'!A33 -> Gentillesse | D33: 0 | E33: ='00'!E33 -> 0 | G33: ='00'!G33 -> 0 | I33: ='00'!I33 -> 0 | K33: ='00'!K33 -> 0
A34: ='00'!A34 -> Intelligence de l'execution | D34: 0 | E34: ='00'!E34 -> 0 | G34: ='00'!G34 -> 0 | I34: ='00'!I34 -> 0 | K34: ='00'!K34 -> 0
A35: ='00'!A35 -> Obéissance | D35: 0 | E35: ='00'!E35 -> 0 | G35: ='00'!G35 -> 0 | I35: ='00'!I35 -> 0 | K35: ='00'!K35 -> 0
A36: POINTS TOTAL | C36: =SUM(C16:C35) -> 0 | D36: =SUM(D16:D35) -> 0 | E36: ='00'!E36 -> 50 | G36: ='00'!G36 -> 30 | I36: ='00'!I36 -> 0 | K36: ='00'!K36 -> 20
A37: Détails des pénéalités | D37: 0 | E37: Pénalités en Négatif | I37: RANKING
A38: POINTS | B38: =IF((C36)=0,"-",D36+D37) -> - | C38: =IF(COUNT(D38:K38)=0,"-",D38+F38+H38+J38-B38) -> - | D38: EVALUATION | F38: =$L$55 -> - | I38: ='Rapport de concours '!N33 -> X | L38: =COUNT(S17:S34) -> 0
A39: CACIT / RCACIT / CACT / RCACT : | B39: . | D39: <== UPON JUDGE'S DECISION
A40: Observations : | Q40: 0
Q45: 48 | R45: IHT1 | S45: GUARDING | U45: 35
Q46: 49 | R46: IHT1 | S46: MOVING | U46: 45
Q47: 50 | R47: IHT1 | S47: DIFFICULT PASS | U47: 10
Q48: 51 | R48: IHT1 | S48: BEHAVIOUR | U48: 10
Q49: 52 | R49: IHT2 | S49: GUARDING | U49: 35
Q50: 53 | R50: IHT2 | S50: MOVING | U50: 55
Q51: 54 | R51: IHT2 | S51: DIFFICULT PASS | U51: 20
Q52: 55 | R52: IHT2 | S52: BEHAVIOUR | U52: 10
Q53: 56 | R53: IHT3 | S53: GUARDING | U53: 40
Q54: 57 | R54: IHT3 | S54: MOVING | U54: 70
L55: =IF(B38="-","-",IF(B38>S58,"EXCELLENT",IF(B38>T58,"TRES BON",IF(B38>U58,"BON",IF(B38>V58,"insuffisant",IF(B37>0.1,"insuffisant ","éliminé ")))))) -> - | Q55: 58 | R55: IHT3 | S55: DIFFICULT PASS | U55: 30
Q56: 59 | R56: IHT3 | S56: BEHAVIOUR | U56: 10
Q58: IHT1 | R58: 100 | S58: =R58*89.999/100 -> 89.999 | T58: =R58*79.999/100 -> 79.999 | U58: =R58*69.999/100 -> 69.999 | V58: =R58*59.999/100 -> 59.999 | W58: 0.1
Q59: iIHT2 | R59: 120 | S59: =R59*89.999/100 -> 107.9988 | T59: =R59*79.999/100 -> 95.9988 | U59: =R59*69.999/100 -> 83.9988 | V59: =R59*59.999/100 -> 71.9988 | W59: 0.1
Q60: IHT3 | R60: 150 | S60: 134.9985 | T60: =R60*79.999/100 -> 119.9985 | U60: =R60*69.999/100 -> 104.9985 | V60: =R60*59.999/100 -> 89.9985 | W60: 0.1

Sheet 18
G1: IHT TS | H1: HWT
B5: IHT TS | G5: COUNTRY LOGO
A6: Organisation | B6: ='Fiche organisateur N2'!F5 -> 0
A7: Ville | B7: ='Fiche organisateur N2'!F6 -> 0 | C7: Date : | E7: ='Fiche organisateur N2'!$H$8 -> 0
A8: Contact : | B8: 0
A9: Propriètaire | B9: ='Fiche organisateur N2'!$C$34 -> 0 | C9: Race et sexe | E9: ='Fiche organisateur N2'!$G$34 -> 0
A10: Conducteur | B10: ='Fiche organisateur N2'!$D$34 -> 0 | C10: Né | E10: ='Fiche organisateur N2'!$K$34 -> 0
A11: Nom du chien | B11: ='Fiche organisateur N2'!$E$34 -> 0 | C11: PEDIGREE | E11: ='Fiche organisateur N2'!$J$34 -> 0
A12: Affixe | B12: ='Fiche organisateur N2'!$F$34 -> 0 | C12: Identifiant | E12: ='Fiche organisateur N2'!$L$34 -> 0
A14: for the country--->
A15: EXERCISES | B15: OBSERVATIONS | C15: Mini | D15: SCORE | E15: GUARDING | G15: MOVING | I15: DIFFICULT PASSAGES | K15: BEHAVIOUR
A16: ='00'!A16 -> 0 | D16: =IF(COUNT(E16:L16)=0,"-",E16+G16+I16+K16-C16) -> 0 | E16: ='00'!E16 -> 0 | G16: ='00'!G16 -> 0 | I16: ='00'!I16 -> 0 | K16: ='00'!K16 -> 0
A17: 0 | D17: 0 | E17: ='00'!E17 -> 0 | G17: ='00'!G17 -> 0 | I17: ='00'!I17 -> 0 | K17: ='00'!K17 -> 0
A18: ='00'!A18 -> 0 | D18: 0 | E18: ='00'!E18 -> 0 | G18: ='00'!G18 -> 0 | I18: ='00'!I18 -> 0 | K18: ='00'!K18 -> 0
A19: ='00'!A19 -> 0 | D19: 0 | E19: ='00'!E19 -> 0 | G19: ='00'!G19 -> 0 | I19: ='00'!I19 -> 0 | K19: ='00'!K19 -> 0
A20: ='00'!A20 -> 0 | D20: 0 | E20: ='00'!E20 -> 0 | G20: ='00'!G20 -> 0 | I20: ='00'!I20 -> 0 | K20: ='00'!K20 -> 0
A21: ='00'!A21 -> 0 | D21: 0 | E21: ='00'!E21 -> 0 | G21: ='00'!G21 -> 0 | I21: ='00'!I21 -> 0 | K21: ='00'!K21 -> 0
A22: ='00'!A22 -> 0 | D22: 0 | E22: ='00'!E22 -> 0 | G22: ='00'!G22 -> 0 | I22: ='00'!I22 -> 0 | K22: ='00'!K22 -> 0
A23: ='00'!A23 -> 0 | D23: 0 | E23: ='00'!E23 -> 0 | G23: ='00'!G23 -> 0 | I23: ='00'!I23 -> 0 | K23: ='00'!K23 -> 0
A24: ='00'!A24 -> 0 | D24: 0 | E24: ='00'!E24 -> 0 | G24: ='00'!G24 -> 0 | I24: ='00'!I24 -> 0 | K24: ='00'!K24 -> 0
A25: ='00'!A25 -> 0 | D25: 0 | E25: ='00'!E25 -> 0 | G25: ='00'!G25 -> 0 | I25: ='00'!I25 -> 0 | K25: ='00'!K25 -> 0
A26: ='00'!A26 -> 0 | D26: 0 | E26: ='00'!E26 -> 0 | G26: ='00'!G26 -> 0 | I26: ='00'!I26 -> 0 | K26: ='00'!K26 -> 0
A27: ='00'!A27 -> 0 | D27: 0 | E27: ='00'!E27 -> 0 | G27: ='00'!G27 -> 0 | I27: ='00'!I27 -> 0 | K27: ='00'!K27 -> 0
A28: ='00'!A28 -> 0 | D28: 0 | E28: ='00'!E28 -> 0 | G28: ='00'!G28 -> 0 | I28: ='00'!I28 -> 0 | K28: ='00'!K28 -> 0
A29: ='00'!A29 -> 0 | D29: 0 | E29: ='00'!E29 -> 0 | G29: ='00'!G29 -> 0 | I29: ='00'!I29 -> 0 | K29: ='00'!K29 -> 0
A30: ='00'!A30 -> 0 | D30: 0 | E30: ='00'!E30 -> 0 | G30: ='00'!G30 -> 0 | I30: ='00'!I30 -> 0 | K30: ='00'!K30 -> 0
A31: ='00'!A31 -> 0 | D31: 0 | E31: ='00'!E31 -> 0 | G31: ='00'!G31 -> 0 | I31: ='00'!I31 -> 0 | K31: ='00'!K31 -> 0
A32: ='00'!A32 -> Aptitude naturelle | D32: 0 | E32: ='00'!E32 -> 0 | G32: ='00'!G32 -> 0 | I32: ='00'!I32 -> 0 | K32: ='00'!K32 -> 0
A33: ='00'!A33 -> Gentillesse | D33: 0 | E33: ='00'!E33 -> 0 | G33: ='00'!G33 -> 0 | I33: ='00'!I33 -> 0 | K33: ='00'!K33 -> 0
A34: ='00'!A34 -> Intelligence de l'execution | D34: 0 | E34: ='00'!E34 -> 0 | G34: ='00'!G34 -> 0 | I34: ='00'!I34 -> 0 | K34: ='00'!K34 -> 0
A35: ='00'!A35 -> Obéissance | D35: 0 | E35: ='00'!E35 -> 0 | G35: ='00'!G35 -> 0 | I35: ='00'!I35 -> 0 | K35: ='00'!K35 -> 0
A36: POINTS TOTAL | C36: =SUM(C16:C35) -> 0 | D36: =SUM(D16:D35) -> 0 | E36: ='00'!E36 -> 50 | G36: ='00'!G36 -> 30 | I36: ='00'!I36 -> 0 | K36: ='00'!K36 -> 20
A37: Détails des pénéalités | D37: 0 | E37: Pénalités en Négatif | I37: RANKING
A38: POINTS | B38: =IF((C36)=0,"-",D36+D37) -> - | C38: =IF(COUNT(D38:K38)=0,"-",D38+F38+H38+J38-B38) -> - | D38: EVALUATION | F38: =$L$55 -> - | I38: ='Rapport de concours '!N34 -> X | L38: =COUNT(S17:S34) -> 0
A39: CACIT / RCACIT / CACT / RCACT : | D39: <== UPON JUDGE'S DECISION
A40: Observations : | Q40: 0
Q45: 48 | R45: IHT1 | S45: GUARDING | U45: 35
Q46: 49 | R46: IHT1 | S46: MOVING | U46: 45
Q47: 50 | R47: IHT1 | S47: DIFFICULT PASS | U47: 10
Q48: 51 | R48: IHT1 | S48: BEHAVIOUR | U48: 10
Q49: 52 | R49: IHT2 | S49: GUARDING | U49: 35
Q50: 53 | R50: IHT2 | S50: MOVING | U50: 55
Q51: 54 | R51: IHT2 | S51: DIFFICULT PASS | U51: 20
Q52: 55 | R52: IHT2 | S52: BEHAVIOUR | U52: 10
Q53: 56 | R53: IHT3 | S53: GUARDING | U53: 40
Q54: 57 | R54: IHT3 | S54: MOVING | U54: 70
L55: =IF(B38="-","-",IF(B38>S58,"EXCELLENT",IF(B38>T58,"TRES BON",IF(B38>U58,"BON",IF(B38>V58,"insuffisant",IF(B37>0.1,"insuffisant ","éliminé ")))))) -> - | Q55: 58 | R55: IHT3 | S55: DIFFICULT PASS | U55: 30
Q56: 59 | R56: IHT3 | S56: BEHAVIOUR | U56: 10
Q58: IHT1 | R58: 100 | S58: =R58*89.999/100 -> 89.999 | T58: =R58*79.999/100 -> 79.999 | U58: =R58*69.999/100 -> 69.999 | V58: =R58*59.999/100 -> 59.999 | W58: 0.1
Q59: iIHT2 | R59: 120 | S59: =R59*89.999/100 -> 107.9988 | T59: =R59*79.999/100 -> 95.9988 | U59: =R59*69.999/100 -> 83.9988 | V59: =R59*59.999/100 -> 71.9988 | W59: 0.1
Q60: IHT3 | R60: 150 | S60: 134.9985 | T60: =R60*79.999/100 -> 119.9985 | U60: =R60*69.999/100 -> 104.9985 | V60: =R60*59.999/100 -> 89.9985 | W60: 0.1
